{"text_format":"1","workbook":"xlsx","n_sheets":5,"sheets":["Prestaciones 021","011-022","Hoja1","SP 031A","B 031"],"not_rendered":{"charts":0,"images":5,"macros":1,"external_links":1,"defined_names":3,"comments":0,"pivot_tables":0},"unopened":[],"bounds":{"document_bytes":16777216,"sheet_cells":100000,"rows_first":2000,"rows_last":500,"rows_between":2000,"halvings":0,"cell_chars":16384,"cell_head_chars":4096},"cells_cut":0,"cells_raw":0,"read":"whole","date_system":"1900"}

{"sheet":"Prestaciones 021","index":0,"n_rows":39,"n_cols":27,"rows_kept":39,"cut":false,"hidden":true,"merged":[[11,24,12,24],[11,25,12,25],[9,16,12,17],[1,0,1,26],[2,0,2,26],[3,0,3,26],[5,2,5,3],[7,0,7,26],[8,0,8,26],[9,0,12,0],[9,1,12,1],[9,2,12,3],[9,4,12,4],[9,5,12,5],[9,24,10,25],[9,26,12,26],[9,18,10,18],[9,21,12,21],[9,22,10,22],[9,23,10,23],[11,20,12,20],[11,22,12,22],[11,23,12,23],[11,18,12,18],[11,19,12,19],[9,19,10,19],[9,20,10,20],[31,5,31,19],[31,23,31,25],[32,5,32,19],[32,23,32,25],[13,2,13,3],[13,16,13,17],[15,2,15,3],[15,4,15,17],[30,5,30,19],[30,23,30,25],[14,2,14,3],[14,16,14,17]]}
[]
["NÓMINA ADICIONAL PARA PAGO DE PRESTACIONES "]
["RENGLÓN 022 \"PERSONAL POR CONTRATO\"  "]
[]
[]
[]
[]
["PAGO DE PRESTACIONES"]
["AGUINALDO, BONO VACACIONAL Y BONO 14 "]
["No.","Empleado","Puesto ",null,"Contrato","Fecha de \nIngreso",null,null,null,null,null,null,null,null,null,null,"Días Laborados en el Año",null,"RENGLÓN 022","RENGLÓN 026","RENGLON 27","Total Devengado Mensual","Renglón 071","Renglón 073","Renglón 072",null,"Líquido"]
[]
[null,null,null,null,null,null,null,null,null,null,null,null,null,null,null,null,null,null,"Sueldo Mensual","Bono Profesional","Bono            66-2000",null,"Aguinaldo","Bono Vacacional","Salarios Devengados","Bono 14"]
[]
[1,"Heber Amilcar Barrios de León","Encargado de Inventarios",null,"10-2016-022-AMSA","2017-06-13",null,null,{"$f":"(200/365)*(26+31+30+31+30+31+31+30+31+30+31)","v":181.91780821917808},{"$f":"#REF!+I14","v":{"$error":"#REF!"}},null,null,null,null,null,null,382,null,12000,375,250,{"$f":"SUM(S14:U14)","v":12625},{"$f":"12625*352/365","v":12175.342465753425},{"$f":"382/365*200","v":209.31506849315068},{"$f":"(12625*1)+(12625/31*30)","v":24842.741935483871},{"$f":"Y14/12","v":2070.2284946236559},{"$f":"W14+X14+Z14","v":14454.886028870233}]
[2,"Edgar Eduardo Pérez Cabrera","Encargado de Inventarios",null,"08-2017-021-AMSA","2017-01-01",null,null,{"$f":"(200/365)*(26+31+30+31+30+31+31+30+31+30+31)","v":181.91780821917808},{"$f":"#REF!+I15","v":{"$error":"#REF!"}},null,null,null,null,null,null,58,null,3000,1500,250,{"$f":"SUM(S15:U15)","v":4750},{"$f":"12625*352/365","v":12175.342465753425},{"$f":"382/365*200","v":209.31506849315068},{"$f":"(12625*1)+(12625/31*30)","v":24842.741935483871},{"$f":"Y15/12","v":2070.2284946236559},{"$f":"W15+X15+Z15","v":14454.886028870233}]
[null,null,null,null,"Totales",null,null,null,null,null,null,null,null,null,null,null,null,null,{"$f":"SUM(S14:S14)","v":12000},375,250,12625,{"$f":"SUM(W14)","v":12175.342465753425},{"$f":"SUM(X14)","v":209.31506849315068},{"$f":"SUM(Y14)","v":24842.741935483871},{"$f":"SUM(Z14)","v":2070.2284946236559},{"$f":"SUM(AA14:AA14)","v":14454.886028870233}]
[null,null,null,null,null,null,{"$f":"SUM(G16:G16)","v":0},{"$f":"SUM(#REF!)","v":{"$error":"#REF!"}},{"$f":"SUM(I14:I16)","v":363.83561643835617},{"$f":"SUM(J14:J16)","v":{"$error":"#REF!"}}]
["Al señor  Brian Antonio Archila Koppler se le esta efectuando el pago de prestaciones laborales hasta el día 28 de febrero de 2017, según Acuerdo número RH-047-2016 de fecha 31 de octubre de 2016."]
[]
[]
[]
[]
[]
[]
[]
[]
[]
[]
[]
["Elaboró",null,null,null,"Revisó:",null,null,null,null,null,null,null,null,null,null,null,null,null,null,null,null,null,"Vo.Bo."]
[null,"Yeimy Daleicy Rodriguez González",null,null,null,"Víctor Aníbal López Aquino",null,null,null,null,null,null,null,null,null,null,null,null,null,null,null,null,null,"Ing. Oscar Amed Juárez Sosa"]
[null,"Encargada de Nómina",null,null,null,"Jefe Administrativo Financiero",null,null,null,null,null,null,null,null,null,null,null,null,null,null,null,null,null,"Director Ejecutivo"]
[null,"AMSA",null,null,null,"AMSA",null,null,null,null,null,null,null,null,null,null,null,null,null,null,null,null,null,"AMSA"]
[]
[]
[]
[]
[]
[null,null,null,null,null,null,null,null,null,null,null,null,null,null,null,null,null,null,null,null,null,null,null,null,null,null,"1/1"]

{"sheet":"011-022","index":1,"n_rows":12,"n_cols":30,"rows_kept":12,"cut":false,"hidden":false,"merged":[[6,15,9,15],[6,16,9,16],[6,29,9,29],[6,17,9,17],[6,18,9,18],[6,19,9,19],[6,20,9,20],[6,21,9,21],[8,25,9,25],[8,26,9,26],[8,28,9,28],[6,22,9,22],[6,23,9,23],[6,24,9,24],[6,25,6,28],[3,0,3,29],[5,0,5,29],[10,7,10,8],[6,0,9,0],[6,1,9,1],[6,2,9,2],[6,3,9,3],[6,4,9,4],[6,5,9,5],[6,6,9,6],[6,7,9,8],[6,9,9,9],[6,10,9,10],[6,11,9,11],[6,12,9,12],[6,14,9,14]]}
[" "]
[]
[]
["AUTORIDAD PARA EL MANEJO SUSTENTABLE DE LA CUENCA Y DEL LAGO DE AMATITLÁN\nNÓMINA DE SUELDOS CORRESPONDIENTES AL MES DE MAYO 2021 "]
[]
["RENGLÓN 011 PERSONAL PERMANENTE"]
["No.","Renglón","Puesto Nominal","Puesto Funcional","Código\nPuesto","CÓDIGO DE\nEMPLEADO","fecha de ingreso","NOMBRE",null,"Contrato","Fecha de \nIngreso","NIT","IGSS",null,"CÉDULA","EXTENDIDA EN ","FECHA DE\nNACIMIENTO","DIRECCIÓN","TELÉFONO","CORREO ELECTRÓNICO","ESTADO CIVIL","PROFESIÓN","OTROS ESTUDIOS","COLEGIADO\nACTIVO","CUENTA\nBANCARIA","Devengado Mensual",null,null,null,"TOTAL DEVENGADO MENSUAL"]
[null,null,null,null,null,null,null,null,null,null,null,null,null,null,null,null,null,null,null,null,null,null,null,null,null,"Renglón 022","Renglón 026","Renglón 027","Renglón 063"]
[null,null,null,null,null,null,null,null,null,null,null,null,null,"DPI",null,null,null,null,null,null,null,null,null,null,null,"Sueldo\nMensual","Bono \nProfesional","Bono\n66-2000","Gastos de\nRepresent."]
[null,null,null,null,null,null,null,null,null,null,null,null,null,null,null,null,null,null,null,null,null,null,null,null,null,null,null,27]
[1,"011","Director Ejecutivo ","Director Ejecutivo ",351677,null,null,"Edgar Rolando Zamora Ruíz ",null,"05-2019-022-AMSA","2019-05-28",null,null,null,null,null,null,null,null,null,null,null,null,null,null,17500,0,250,12000,{"$f":"ROUND(SUM(Z11:AC11),2)","v":29750}]
[null,null,null,null,null,null,null,null,null,null,null,null,null,null,null,null,null,null,null,null,null,null,null,null,null,17500,0,250,12000,29750]

{"sheet":"Hoja1","index":2,"n_rows":20,"n_cols":42,"rows_kept":20,"cut":false,"hidden":false,"merged":[[5,9,5,10],[9,9,9,10],[11,9,11,10]]}
[]
[]
[]
[]
[]
[3,"022",null,"Director Ejecutivo III","Jefe Ordenamiento Territorial",351670,null,null,null,"Julio Christian Montenegro Guzman ",null,"11-2019-022-AMSA","2019-11-18",null,null,null,null,null,null,null,null,null,null,null,null,null,null,{"$f":"13500/31*17","v":7403.2258064516136},{"$f":"375/31*17","v":205.64516129032259},{"$f":"250/31*17","v":137.09677419354838},0,{"$f":"ROUND(SUM(AB6:AE6),2)","v":7745.97},{"$f":"ROUND(SUM(AB6:AC6)*15%,2)","v":1141.33},{"$f":"ROUND(SUM(AB6+AC6)*1.344%,2)","v":102.26},{"$f":"ROUND(SUM(AB6+AC6)*3%,2)","v":228.27},381.38,null,null,null,{"$f":"SUM(AG6:AM6)","v":1853.2399999999998},{"$f":"AF6-AN6","v":5892.7300000000005},9901370183]
[]
[]
[]
[1,"022",null,"Subdirector Ejecutivo II","Auditor Interno",308379,null,null,null,"Edgar René Torres",null,"04-2020-022-AMSA","2020-01-20",null,null,null,null,null,null,null,null,null,null,null,null,null,null,{"$f":"ROUND(10000*12/31+10000,2)","v":13870.97},{"$f":"ROUND(375*12/31+375,2)","v":520.16},{"$f":"ROUND(250*12/31+250,2)","v":346.77},0,{"$f":"ROUND(SUM(AB10:AE10),2)","v":14737.9},{"$f":"ROUND(SUM(AB10:AC10)*15%,2)","v":2158.67},{"$f":"ROUND(SUM(AB10+AC10)*1.344%,2)","v":193.42},{"$f":"ROUND(SUM(AB10+AC10)*3%,2)","v":431.73},215.51,null,null,null,{"$f":"SUM(AG10:AM10)","v":2999.33},{"$f":"AF10-AN10","v":11738.57},9901350757]
[8,"022",null,"Director Ejecutivo III","Jefe Ordenamiento Territorial",351670,null,null,null,"Brayan Onasis Estevez Ruiz",null,"03-2020-022-AMSA","2020-01-20",null,null,null,null,null,null,null,null,null,null,null,null,null,null,{"$f":"ROUND(13500*12/31+13500,2)","v":18725.810000000001},{"$f":"ROUND(375*12/31+375,2)","v":520.16},{"$f":"ROUND(250*12/31+250,2)","v":346.77},0,{"$f":"ROUND(SUM(AB11:AE11),2)","v":19592.740000000002},{"$f":"ROUND(SUM(AB11:AC11)*15%,2)","v":2886.9},{"$f":"ROUND(SUM(AB11+AC11)*1.344%,2)","v":258.67},{"$f":"ROUND(SUM(AB11+AC11)*3%,2)","v":577.38},351.68,null,null,null,3065.36,11059.64,9901370183]
[9,"022",null,"Director Ejecutivo II","Jefa de Relaciones Interinstitucionales",351672,null,null,null,"Maria Alejandra Guzman García",null,"02-2020-022-AMSA","2020-01-20",null,null,null,null,null,null,null,null,null,null,null,null,null,null,{"$f":"ROUND(12000*12/31+12000,2)","v":16645.16},0,{"$f":"ROUND(250*12/31+250,2)","v":346.77},0,{"$f":"ROUND(SUM(AB12:AE12),2)","v":16991.93},{"$f":"ROUND(SUM(AB12:AC12)*15%,2)","v":2496.77},{"$f":"ROUND(SUM(AB12+AC12)*1.344%,2)","v":223.71},{"$f":"ROUND(SUM(AB12+AC12)*3%,2)","v":499.35},278.73,null,null,null,2586.2999999999997,9663.7000000000007,990054468]
[10,"022",null,"Director Ejecutivo ll","Jefe de Evaluacion y Seguimiento",351678,null,null,null,"Harold Alexander Cruz Juarez",null,"01-2020-022-AMSA","2020-01-20",null,null,null,null,null,null,null,null,null,null,null,null,null,null,{"$f":"ROUND(12000*12/31+12000,2)","v":16645.16},{"$f":"ROUND(375*12/31+375,2)","v":520.16},{"$f":"ROUND(250*12/31+250,2)","v":346.77},0,{"$f":"ROUND(SUM(AB13:AE13),2)","v":17512.09},{"$f":"ROUND(SUM(AB13:AC13)*15%,2)","v":2574.8000000000002},{"$f":"ROUND(SUM(AB13+AC13)*1.344%,2)","v":230.7},{"$f":"ROUND(SUM(AB13+AC13)*3%,2)","v":514.96},293.32,null,null,null,2717.0299999999997,9907.9700000000012]
[]
[null,null,null,null,null,12000,{"$f":"F15/2","v":6000}]
[]
[]
[]
[]
[null,4,990091724,775400,46905030,"Loida Rebeca Vásquez Zuleta ","Encargada de Nomina","04-2020-021-AMSA","2020-01-02","2015-04-13",5300,0,2000,250,{"$f":"K20+M20+N20","v":7550},{"$f":"ROUND(SUM(K20:M20)*13%,2)","v":949},{"$f":"ROUND(SUM(K20:M20)*1.344%,2)","v":98.11},{"$f":"ROUND(SUM(K20:M20)*3%,2)","v":219},null,118.24,0,{"$f":"SUM(P20:U20)","v":1384.35},{"$f":"O20-V20","v":6165.65}]

{"sheet":"SP 031A","index":3,"n_rows":134,"n_cols":24,"rows_kept":134,"cut":false,"hidden":true,"merged":[[123,5,123,22],[132,3,132,10],[132,14,132,20],[116,1,116,6],[116,7,116,22],[118,4,118,23],[119,1,119,4],[119,18,119,22],[120,1,120,22],[125,6,125,22],[108,0,108,22],[109,1,109,21],[111,0,111,24],[112,0,112,24],[114,5,114,11],[114,18,114,22],[91,18,91,22],[92,1,92,22],[95,5,95,22],[104,3,104,10],[104,14,104,20],[97,6,97,22],[65,1,65,22],[90,4,90,23],[77,3,77,10],[77,14,77,20],[80,0,80,22],[81,1,81,21],[83,0,83,24],[84,0,84,24],[86,5,86,11],[86,18,86,22],[88,1,88,6],[88,7,88,22],[39,18,39,22],[40,1,40,22],[43,5,43,22],[45,6,45,22],[70,6,70,22],[68,5,68,22],[53,0,53,22],[54,1,54,21],[56,0,56,24],[57,0,57,24],[59,5,59,11],[59,18,59,22],[61,1,61,6],[61,7,61,22],[63,4,63,23],[64,18,64,22],[38,4,38,23],[25,3,25,10],[25,14,25,20],[28,0,28,22],[29,1,29,21],[31,0,31,24],[32,0,32,24],[34,5,34,11],[34,18,34,22],[36,1,36,6],[36,7,36,22],[16,5,16,22],[1,0,1,22],[2,1,2,21],[4,0,4,24],[5,0,5,24],[7,5,7,11],[7,18,7,22],[9,1,9,6],[9,7,9,22],[11,4,11,23],[12,18,12,22],[13,1,13,22]]}
[]
["AUTORIDAD PARA EL MANEJO SUSTENTABLE DE LA CUENCA Y DEL LAGO DE AMATITLÁN."]
[null,"PRESIDENCIA DE LA REPÚBLICA."]
[]
[{"$f":"#REF!","v":{"$error":"#REF!"}}]
[{"$f":"#REF!","v":{"$error":"#REF!"}}]
[]
[null,"GUATEMALA,",null,null,null,{"$f":"TODAY()","v":"2021-06-11"},null,null,null,null,null,null,null,null,"CANTIDAD:",null,null,null,{"$f":"+#REF!","v":{"$error":"#REF!"}}]
[]
[null,"UNIDAD SOLICITANTE:",null,null,null,null,null,"RECURSOS HUMANOS"]
[]
[null,"CANTIDAD:",null,null,{"$f":"PesosMN(S8)","v":{"$error":"#VALUE!"}}]
[null,"NOMINA: ",null,null,null,null,null,{"$f":"+A6","v":{"$error":"#REF!"}},null,null,null,null,null,null,null,null,"VENCE:"]
[]
[null,"CUR",null,"x",null,"CHEQUE AMSA",null,null,null,"",null,"CAJA CHICA"]
[null,null,null,""]
[null,"A NOMBRE DE:",null,null,null,"AMSA"]
[null,null,null,""]
[null,"OBSERVACIONES:",null,null,null,null,{"$f":"#REF!","v":{"$error":"#REF!"}}]
[null,null,null,null,null,null," 031 \"JORNALES\" "]
[]
[]
[null,null,null,null,null,null,null,null,null,null,null,null,null,null,null,null,null,null,null,null,null,null,null," "]
[null,null,null,null,null,null,null,null,null,null,null,null," "]
[]
[]
[null,"     "]
[]
["AUTORIDAD PARA EL MANEJO SUSTENTABLE DE LA CUENCA Y DEL LAGO DE AMATITLÁN."]
[null,"PRESIDENCIA DE LA REPÚBLICA."]
[]
[{"$f":"'[1]031'!E42","v":{"$error":"#REF!"}}]
[{"$f":"+#REF!","v":{"$error":"#REF!"}}]
[]
[null,"GUATEMALA,",null,null,null,{"$f":"F8","v":"2021-06-11"},null,null,null,null,null,null,null,null,"CANTIDAD:",null,null,null,{"$f":"+#REF!","v":{"$error":"#REF!"}}]
[]
[null,"UNIDAD SOLICITANTE:",null,null,null,null,null,"RECURSOS HUMANOS"]
[]
[null,"CANTIDAD:",null,null,{"$f":"PesosMN(S35)","v":{"$error":"#VALUE!"}}]
[null,"NOMINA: ",null,null,null,null,null,{"$f":"+A33","v":{"$error":"#REF!"}},null,null,null,null,null,null,null,null,"VENCE:"]
[]
[null,"CUR",null,"x",null,"CHEQUE AMSA",null,null,null,"",null,"CAJA CHICA"]
[null,null,null,""]
[null,"A NOMBRE DE:",null,null,null,"AMSA"]
[null,null,null,""]
[null,"OBSERVACIONES:",null,null,null,null,{"$f":"G19","v":{"$error":"#REF!"}}]
[null,null,null,null,null,null,"031 \"JORNALES\" DE LA DIVISIÓN DE DESECHOS SÓLIDOS."]
[]
[]
[]
[]
[null,"     "]
[]
["AUTORIDAD PARA EL MANEJO SUSTENTABLE DE LA CUENCA Y DEL LAGO DE AMATITLÁN."]
[null,"PRESIDENCIA DE LA REPÚBLICA."]
[]
[{"$f":"'[1]031'!E78","v":{"$error":"#REF!"}}]
[{"$f":"+#REF!","v":{"$error":"#REF!"}}]
[]
[null,"GUATEMALA,",null,null,null,{"$f":"F8","v":"2021-06-11"},null,null,null,null,null,null,null,null,"CANTIDAD:",null,null,null,{"$f":"+#REF!","v":{"$error":"#REF!"}}]
[]
[null,"UNIDAD SOLICITANTE:",null,null,null,null,null,"RECURSOS HUMANOS"]
[]
[null,"CANTIDAD:",null,null,{"$f":"PesosMN(S60)","v":{"$error":"#VALUE!"}}]
[null,"NOMINA:",null,null,null,null,null,{"$f":"A58","v":{"$error":"#REF!"}},null,null,null,null,null,null,null,null,"VENCE:"]
[]
[null,"CUR",null,"x",null,"CHEQUE AMSA",null,null,null,"",null,"CAJA CHICA"]
[null,null,null,""]
[null,"A NOMBRE DE:",null,null,null,"AMSA"]
[null,null,null,""]
[null,"OBSERVACIONES:",null,null,null,null,{"$f":"G19","v":{"$error":"#REF!"}}]
[null,null,null,null,null,null,"031 \"JORNALES\" DE LA DIVISIÓN DE DESECHOS LÍQUIDOS."]
[]
[]
[null,null,null,null,null,null,null,null,null,null,null,null,null,null,null,null,null,null,null,null,null,null,null," "]
[]
[]
[]
[null,"     "]
[]
["AUTORIDAD PARA EL MANEJO SUSTENTABLE DE LA CUENCA Y DEL LAGO DE AMATITLÁN."]
[null,"PRESIDENCIA DE LA REPÚBLICA."]
[]
[{"$f":"'[1]031'!E116","v":{"$error":"#REF!"}}]
[{"$f":"+#REF!","v":{"$error":"#REF!"}}]
[]
[null,"GUATEMALA,",null,null,null,{"$f":"F8","v":"2021-06-11"},null,null,null,null,null,null,null,null,"CANTIDAD:",null,null,null,{"$f":"+#REF!","v":{"$error":"#REF!"}}]
[]
[null,"UNIDAD SOLICITANTE:",null,null,null,null,null,"RECURSOS HUMANOS"]
[]
[null,"CANTIDAD:",null,null,{"$f":"PesosMN(S87)","v":{"$error":"#VALUE!"}}]
[null,"NOMINA:",null,null,null,null,null,{"$f":"A85","v":{"$error":"#REF!"}},null,null,null,null,null,null,null,null,"VENCE:"]
[]
[null,"CUR",null,"x",null,"CHEQUE AMSA",null,null,null,"",null,"CAJA CHICA"]
[null,null,null,""]
[null,"A NOMBRE DE:",null,null,null,"AMSA"]
[null,null,null,""]
[null,"OBSERVACIONES:",null,null,null,null,{"$f":"G19","v":{"$error":"#REF!"}}]
[null,null,null,null,null,null,"031 \"JORNALES\" DE LA DIVISIÓN DE MANTENIMIENTO Y LIMPIEZA DEL LAGO."]
[]
[]
[null,null,null,null,null,null,null,null,null,null,null,null,null,null,null,null,null,null,null,null,null,null,null," "]
[]
[]
[]
[null,"     "]
[]
[]
["AUTORIDAD PARA EL MANEJO SUSTENTABLE DE LA CUENCA Y DEL LAGO DE AMATITLÁN."]
[null,"PRESIDENCIA DE LA REPÚBLICA."]
[]
[{"$f":"'[1]031'!E161","v":{"$error":"#REF!"}}]
[{"$f":"+#REF!","v":{"$error":"#REF!"}}]
[]
[null,"GUATEMALA,",null,null,null,{"$f":"F8","v":"2021-06-11"},null,null,null,null,null,null,null,null,"CANTIDAD:",null,null,null,{"$f":"+#REF!","v":{"$error":"#REF!"}}]
[]
[null,"UNIDAD SOLICITANTE:",null,null,null,null,null,"RECURSOS HUMANOS"]
[]
[null,"CANTIDAD:",null,null,{"$f":"PesosMN(S115)","v":{"$error":"#VALUE!"}}]
[null,"NOMINA No.",null,null,null,null,null,null,{"$f":"A113","v":{"$error":"#REF!"}},null,null,null,null,null,null,null,"VENCE:"]
[null," "]
[null,"CUR",null,"x",null,"CHEQUE AMSA",null,null,null,"",null,"CAJA CHICA"]
[null,null,null,""]
[null,"A NOMBRE DE:",null,null,null,"AMSA"]
[null,null,null,""]
[null,"OBSERVACIONES:",null,null,null,null,{"$f":"G19","v":{"$error":"#REF!"}}]
[null,null,null,null,null,null,"031 \"JORNALES\" DE LA DIVISIÓN FORESTAL."]
[]
[]
[null,null,null,null,null,null,null,null,null,null,null,null,null,null,null,null,null,null,null,null,null,null,null," "]
[]
[]
[]
[null,"     "]

{"sheet":"B 031","index":4,"n_rows":3691,"n_cols":19,"rows_kept":3691,"cut":false,"hidden":true,"merged":[[3671,12,3671,14],[3671,16,3671,18],[3673,12,3673,14],[3674,12,3674,14],[3675,16,3675,18],[3676,16,3676,18],[3677,16,3677,18],[3678,10,3678,11],[3678,12,3678,14],[3678,16,3678,18],[3679,10,3679,11],[3679,12,3679,14],[3688,0,3688,7],[3688,12,3688,19],[3689,0,3689,7],[3689,12,3689,19],[3690,0,3690,7],[3690,12,3690,19],[3660,0,3660,19],[3661,0,3661,19],[3664,0,3664,19],[3665,0,3665,19],[3667,0,3667,1],[3667,2,3667,8],[3667,10,3667,12],[3667,13,3667,14],[3667,15,3667,16],[3667,17,3667,19],[3668,0,3668,1],[3668,2,3668,4],[3668,5,3668,7],[3668,8,3668,11],[3668,12,3668,14],[3668,15,3668,19],[3669,0,3669,2],[3669,3,3669,4],[3669,5,3669,9],[3669,10,3669,12],[3669,13,3669,14],[3669,15,3669,17],[3669,18,3669,19],[3632,12,3632,14],[3632,16,3632,18],[3634,12,3634,14],[3635,12,3635,14],[3636,16,3636,18],[3637,16,3637,18],[3638,16,3638,18],[3639,10,3639,11],[3639,12,3639,14],[3639,16,3639,18],[3640,10,3640,11],[3640,12,3640,14],[3649,0,3649,7],[3649,12,3649,19],[3650,0,3650,7],[3650,12,3650,19],[3651,0,3651,7],[3651,12,3651,19],[3621,0,3621,19],[3622,0,3622,19],[3625,0,3625,19],[3626,0,3626,19],[3628,0,3628,1],[3628,2,3628,8],[3628,10,3628,12],[3628,13,3628,14],[3628,15,3628,16],[3628,17,3628,19],[3629,0,3629,1],[3629,2,3629,4],[3629,5,3629,7],[3629,8,3629,11],[3629,12,3629,14],[3629,15,3629,19],[3630,0,3630,2],[3630,3,3630,4],[3630,5,3630,9],[3630,10,3630,12],[3630,13,3630,14],[3630,15,3630,17],[3630,18,3630,19],[3600,12,3600,14],[3600,16,3600,18],[3602,12,3602,14],[3603,12,3603,14],[3604,16,3604,18],[3605,16,3605,18],[3606,16,3606,18],[3607,10,3607,11],[3607,12,3607,14],[3607,16,3607,18],[3608,10,3608,11],[3608,12,3608,14],[3617,0,3617,7],[3617,12,3617,19],[3618,0,3618,7],[3618,12,3618,19],[3619,0,3619,7],[3619,12,3619,19],[3589,0,3589,19],[3590,0,3590,19],[3593,0,3593,19],[3594,0,3594,19],[3596,0,3596,1],[3596,2,3596,8],[3596,10,3596,12],[3596,13,3596,14],[3596,15,3596,16],[3596,17,3596,19],[3597,0,3597,1],[3597,2,3597,4],[3597,5,3597,7],[3597,8,3597,11],[3597,12,3597,14],[3597,15,3597,19],[3598,0,3598,2],[3598,3,3598,4],[3598,5,3598,9],[3598,10,3598,12],[3598,13,3598,14],[3598,15,3598,17],[3598,18,3598,19],[3561,12,3561,14],[3561,16,3561,18],[3563,12,3563,14],[3564,12,3564,14],[3565,16,3565,18],[3566,16,3566,18],[3567,16,3567,18],[3568,10,3568,11],[3568,12,3568,14],[3568,16,3568,18],[3569,10,3569,11],[3569,12,3569,14],[3578,0,3578,7],[3578,12,3578,19],[3579,0,3579,7],[3579,12,3579,19],[3580,0,3580,7],[3580,12,3580,19],[3550,0,3550,19],[3551,0,3551,19],[3554,0,3554,19],[3555,0,3555,19],[3557,0,3557,1],[3557,2,3557,8],[3557,10,3557,12],[3557,13,3557,14],[3557,15,3557,16],[3557,17,3557,19],[3558,0,3558,1],[3558,2,3558,4],[3558,5,3558,7],[3558,8,3558,11],[3558,12,3558,14],[3558,15,3558,19],[3559,0,3559,2],[3559,3,3559,4],[3559,5,3559,9],[3559,10,3559,12],[3559,13,3559,14],[3559,15,3559,17],[3559,18,3559,19],[3529,12,3529,14],[3529,16,3529,18],[3531,12,3531,14],[3532,12,3532,14],[3533,16,3533,18],[3534,16,3534,18],[3535,16,3535,18],[3536,10,3536,11],[3536,12,3536,14],[3536,16,3536,18],[3537,10,3537,11],[3537,12,3537,14],[3546,0,3546,7],[3546,12,3546,19],[3547,0,3547,7],[3547,12,3547,19],[3548,0,3548,7],[3548,12,3548,19],[3518,0,3518,19],[3519,0,3519,19],[3522,0,3522,19],[3523,0,3523,19],[3525,0,3525,1],[3525,2,3525,8],[3525,10,3525,12],[3525,13,3525,14],[3525,15,3525,16],[3525,17,3525,19],[3526,0,3526,1],[3526,2,3526,4],[3526,5,3526,7],[3526,8,3526,11],[3526,12,3526,14],[3526,15,3526,19],[3527,0,3527,2],[3527,3,3527,4],[3527,5,3527,9],[3527,10,3527,12],[3527,13,3527,14],[3527,15,3527,17],[3527,18,3527,19],[3490,12,3490,14],[3490,16,3490,18],[3492,12,3492,14],[3493,12,3493,14],[3494,16,3494,18],[3495,16,3495,18],[3496,16,3496,18],[3497,10,3497,11],[3497,12,3497,14],[3497,16,3497,18],[3498,10,3498,11],[3498,12,3498,14],[3507,0,3507,7],[3507,12,3507,19],[3508,0,3508,7],[3508,12,3508,19],[3509,0,3509,7],[3509,12,3509,19],[3479,0,3479,19],[3480,0,3480,19],[3483,0,3483,19],[3484,0,3484,19],[3486,0,3486,1],[3486,2,3486,8],[3486,10,3486,12],[3486,13,3486,14],[3486,15,3486,16],[3486,17,3486,19],[3487,0,3487,1],[3487,2,3487,4],[3487,5,3487,7],[3487,8,3487,11],[3487,12,3487,14],[3487,15,3487,19],[3488,0,3488,2],[3488,3,3488,4],[3488,5,3488,9],[3488,10,3488,12],[3488,13,3488,14],[3488,15,3488,17],[3488,18,3488,19],[3458,12,3458,14],[3458,16,3458,18],[3460,12,3460,14],[3461,12,3461,14],[3462,16,3462,18],[3463,16,3463,18],[3464,16,3464,18],[3465,10,3465,11],[3465,12,3465,14],[3465,16,3465,18],[3466,10,3466,11],[3466,12,3466,14],[3475,0,3475,7],[3475,12,3475,19],[3476,0,3476,7],[3476,12,3476,19],[3477,0,3477,7],[3477,12,3477,19],[3447,0,3447,19],[3448,0,3448,19],[3451,0,3451,19],[3452,0,3452,19],[3454,0,3454,1],[3454,2,3454,8],[3454,10,3454,12],[3454,13,3454,14],[3454,15,3454,16],[3454,17,3454,19],[3455,0,3455,1],[3455,2,3455,4],[3455,5,3455,7],[3455,8,3455,11],[3455,12,3455,14],[3455,15,3455,19],[3456,0,3456,2],[3456,3,3456,4],[3456,5,3456,9],[3456,10,3456,12],[3456,13,3456,14],[3456,15,3456,17],[3456,18,3456,19],[3419,12,3419,14],[3419,16,3419,18],[3421,12,3421,14],[3422,12,3422,14],[3423,16,3423,18],[3424,16,3424,18],[3425,16,3425,18],[3426,10,3426,11],[3426,12,3426,14],[3426,16,3426,18],[3427,10,3427,11],[3427,12,3427,14],[3436,0,3436,7],[3436,12,3436,19],[3437,0,3437,7],[3437,12,3437,19],[3438,0,3438,7],[3438,12,3438,19],[3408,0,3408,19],[3409,0,3409,19],[3412,0,3412,19],[3413,0,3413,19],[3415,0,3415,1],[3415,2,3415,8],[3415,10,3415,12],[3415,13,3415,14],[3415,15,3415,16],[3415,17,3415,19],[3416,0,3416,1],[3416,2,3416,4],[3416,5,3416,7],[3416,8,3416,11],[3416,12,3416,14],[3416,15,3416,19],[3417,0,3417,2],[3417,3,3417,4],[3417,5,3417,9],[3417,10,3417,12],[3417,13,3417,14],[3417,15,3417,17],[3417,18,3417,19],[3387,12,3387,14],[3387,16,3387,18],[3389,12,3389,14],[3390,12,3390,14],[3391,16,3391,18],[3392,16,3392,18],[3393,16,3393,18],[3394,10,3394,11],[3394,12,3394,14],[3394,16,3394,18],[3395,10,3395,11],[3395,12,3395,14],[3404,0,3404,7],[3404,12,3404,19],[3405,0,3405,7],[3405,12,3405,19],[3406,0,3406,7],[3406,12,3406,19],[3376,0,3376,19],[3377,0,3377,19],[3380,0,3380,19],[3381,0,3381,19],[3383,0,3383,1],[3383,2,3383,8],[3383,10,3383,12],[3383,13,3383,14],[3383,15,3383,16],[3383,17,3383,19],[3384,0,3384,1],[3384,2,3384,4],[3384,5,3384,7],[3384,8,3384,11],[3384,12,3384,14],[3384,15,3384,19],[3385,0,3385,2],[3385,3,3385,4],[3385,5,3385,9],[3385,10,3385,12],[3385,13,3385,14],[3385,15,3385,17],[3385,18,3385,19],[3348,12,3348,14],[3348,16,3348,18],[3350,12,3350,14],[3351,12,3351,14],[3352,16,3352,18],[3353,16,3353,18],[3354,16,3354,18],[3355,10,3355,11],[3355,12,3355,14],[3355,16,3355,18],[3356,10,3356,11],[3356,12,3356,14],[3365,0,3365,7],[3365,12,3365,19],[3366,0,3366,7],[3366,12,3366,19],[3367,0,3367,7],[3367,12,3367,19],[3337,0,3337,19],[3338,0,3338,19],[3341,0,3341,19],[3342,0,3342,19],[3344,0,3344,1],[3344,2,3344,8],[3344,10,3344,12],[3344,13,3344,14],[3344,15,3344,16],[3344,17,3344,19],[3345,0,3345,1],[3345,2,3345,4],[3345,5,3345,7],[3345,8,3345,11],[3345,12,3345,14],[3345,15,3345,19],[3346,0,3346,2],[3346,3,3346,4],[3346,5,3346,9],[3346,10,3346,12],[3346,13,3346,14],[3346,15,3346,17],[3346,18,3346,19],[3316,12,3316,14],[3316,16,3316,18],[3318,12,3318,14],[3319,12,3319,14],[3320,16,3320,18],[3322,16,3322,18],[3323,16,3323,18],[3324,10,3324,11],[3324,12,3324,14],[3324,16,3324,18],[3325,10,3325,11],[3325,12,3325,14],[3333,0,3333,7],[3333,12,3333,19],[3334,0,3334,7],[3334,12,3334,19],[3335,0,3335,7],[3335,12,3335,19],[3321,16,3321,18],[3305,0,3305,19],[3306,0,3306,19],[3309,0,3309,19],[3310,0,3310,19],[3312,0,3312,1],[3312,2,3312,8],[3312,10,3312,12],[3312,13,3312,14],[3312,15,3312,16],[3312,17,3312,19],[3313,0,3313,1],[3313,2,3313,4],[3313,5,3313,7],[3313,8,3313,11],[3313,12,3313,14],[3313,15,3313,19],[3314,0,3314,2],[3314,3,3314,4],[3314,5,3314,9],[3314,10,3314,12],[3314,13,3314,14],[3314,15,3314,17],[3314,18,3314,19],[3277,12,3277,14],[3277,16,3277,18],[3279,12,3279,14],[3280,12,3280,14],[3281,16,3281,18],[3283,16,3283,18],[3284,16,3284,18],[3285,10,3285,11],[3285,12,3285,14],[3285,16,3285,18],[3286,10,3286,11],[3286,12,3286,14],[3294,0,3294,7],[3294,12,3294,19],[3295,0,3295,7],[3295,12,3295,19],[3296,0,3296,7],[3296,12,3296,19],[3282,16,3282,18],[3266,0,3266,19],[3267,0,3267,19],[3270,0,3270,19],[3271,0,3271,19],[3273,0,3273,1],[3273,2,3273,8],[3273,10,3273,12],[3273,13,3273,14],[3273,15,3273,16],[3273,17,3273,19],[3274,0,3274,1],[3274,2,3274,4],[3274,5,3274,7],[3274,8,3274,11],[3274,12,3274,14],[3274,15,3274,19],[3275,0,3275,2],[3275,3,3275,4],[3275,5,3275,9],[3275,10,3275,12],[3275,13,3275,14],[3275,15,3275,17],[3275,18,3275,19],[3245,12,3245,14],[3245,16,3245,18],[3247,12,3247,14],[3248,12,3248,14],[3249,16,3249,18],[3250,16,3250,18],[3251,16,3251,18],[3252,10,3252,11],[3252,12,3252,14],[3252,16,3252,18],[3253,10,3253,11],[3253,12,3253,14],[3262,0,3262,7],[3262,12,3262,19],[3263,0,3263,7],[3263,12,3263,19],[3264,0,3264,7],[3264,12,3264,19],[3234,0,3234,19],[3235,0,3235,19],[3238,0,3238,19],[3239,0,3239,19],[3241,0,3241,1],[3241,2,3241,8],[3241,10,3241,12],[3241,13,3241,14],[3241,15,3241,16],[3241,17,3241,19],[3242,0,3242,1],[3242,2,3242,4],[3242,5,3242,7],[3242,8,3242,11],[3242,12,3242,14],[3242,15,3242,19],[3243,0,3243,2],[3243,3,3243,4],[3243,5,3243,9],[3243,10,3243,12],[3243,13,3243,14],[3243,15,3243,17],[3243,18,3243,19],[3206,12,3206,14],[3206,16,3206,18],[3208,12,3208,14],[3209,12,3209,14],[3210,16,3210,18],[3211,16,3211,18],[3212,16,3212,18],[3213,10,3213,11],[3213,12,3213,14],[3213,16,3213,18],[3214,10,3214,11],[3214,12,3214,14],[3223,0,3223,7],[3223,12,3223,19],[3224,0,3224,7],[3224,12,3224,19],[3225,0,3225,7],[3225,12,3225,19],[3195,0,3195,19],[3196,0,3196,19],[3199,0,3199,19],[3200,0,3200,19],[3202,0,3202,1],[3202,2,3202,8],[3202,10,3202,12],[3202,13,3202,14],[3202,15,3202,16],[3202,17,3202,19],[3203,0,3203,1],[3203,2,3203,4],[3203,5,3203,7],[3203,8,3203,11],[3203,12,3203,14],[3203,15,3203,19],[3204,0,3204,2],[3204,3,3204,4],[3204,5,3204,9],[3204,10,3204,12],[3204,13,3204,14],[3204,15,3204,17],[3204,18,3204,19],[3174,12,3174,14],[3174,16,3174,18],[3176,12,3176,14],[3177,12,3177,14],[3178,16,3178,18],[3179,16,3179,18],[3180,16,3180,18],[3181,10,3181,11],[3181,12,3181,14],[3181,16,3181,18],[3182,10,3182,11],[3182,12,3182,14],[3191,0,3191,7],[3191,12,3191,19],[3192,0,3192,7],[3192,12,3192,19],[3193,0,3193,7],[3193,12,3193,19],[3163,0,3163,19],[3164,0,3164,19],[3167,0,3167,19],[3168,0,3168,19],[3170,0,3170,1],[3170,2,3170,8],[3170,10,3170,12],[3170,13,3170,14],[3170,15,3170,16],[3170,17,3170,19],[3171,0,3171,1],[3171,2,3171,4],[3171,5,3171,7],[3171,8,3171,11],[3171,12,3171,14],[3171,15,3171,19],[3172,0,3172,2],[3172,3,3172,4],[3172,5,3172,9],[3172,10,3172,12],[3172,13,3172,14],[3172,15,3172,17],[3172,18,3172,19],[3135,12,3135,14],[3135,16,3135,18],[3137,12,3137,14],[3138,12,3138,14],[3139,16,3139,18],[3140,16,3140,18],[3141,16,3141,18],[3142,10,3142,11],[3142,12,3142,14],[3142,16,3142,18],[3143,10,3143,11],[3143,12,3143,14],[3152,0,3152,7],[3152,12,3152,19],[3153,0,3153,7],[3153,12,3153,19],[3154,0,3154,7],[3154,12,3154,19],[3124,0,3124,19],[3125,0,3125,19],[3128,0,3128,19],[3129,0,3129,19],[3131,0,3131,1],[3131,2,3131,8],[3131,10,3131,12],[3131,13,3131,14],[3131,15,3131,16],[3131,17,3131,19],[3132,0,3132,1],[3132,2,3132,4],[3132,5,3132,7],[3132,8,3132,11],[3132,12,3132,14],[3132,15,3132,19],[3133,0,3133,2],[3133,3,3133,4],[3133,5,3133,9],[3133,10,3133,12],[3133,13,3133,14],[3133,15,3133,17],[3133,18,3133,19],[3111,10,3111,11],[3111,12,3111,14],[3120,0,3120,7],[3120,12,3120,19],[3121,0,3121,7],[3121,12,3121,19],[3122,0,3122,7],[3122,12,3122,19],[3103,12,3103,14],[3103,16,3103,18],[3105,12,3105,14],[3106,12,3106,14],[3107,16,3107,18],[3108,16,3108,18],[3109,16,3109,18],[3110,10,3110,11],[3110,12,3110,14],[3110,16,3110,18],[3100,0,3100,1],[3100,2,3100,4],[3100,5,3100,7],[3100,8,3100,11],[3100,12,3100,14],[3100,15,3100,19],[3101,0,3101,2],[3101,3,3101,4],[3101,5,3101,9],[3101,10,3101,12],[3101,13,3101,14],[3101,15,3101,17],[3101,18,3101,19],[3093,0,3093,19],[3096,0,3096,19],[3097,0,3097,19],[3099,0,3099,1],[3099,2,3099,8],[3099,10,3099,12],[3099,13,3099,14],[3099,15,3099,16],[3099,17,3099,19],[3072,10,3072,11],[3072,12,3072,14],[3081,0,3081,7],[3081,12,3081,19],[3082,0,3082,7],[3082,12,3082,19],[3083,0,3083,7],[3083,12,3083,19],[3092,0,3092,19],[3064,12,3064,14],[3064,16,3064,18],[3066,12,3066,14],[3067,12,3067,14],[3068,16,3068,18],[3069,16,3069,18],[3070,16,3070,18],[3071,10,3071,11],[3071,12,3071,14],[3071,16,3071,18],[3061,0,3061,1],[3061,2,3061,4],[3061,5,3061,7],[3061,8,3061,11],[3061,12,3061,14],[3061,15,3061,19],[3062,0,3062,2],[3062,3,3062,4],[3062,5,3062,9],[3062,10,3062,12],[3062,13,3062,14],[3062,15,3062,17],[3062,18,3062,19],[3054,0,3054,19],[3057,0,3057,19],[3058,0,3058,19],[3060,0,3060,1],[3060,2,3060,8],[3060,10,3060,12],[3060,13,3060,14],[3060,15,3060,16],[3060,17,3060,19],[3040,10,3040,11],[3040,12,3040,14],[3049,0,3049,7],[3049,12,3049,19],[3050,0,3050,7],[3050,12,3050,19],[3051,0,3051,7],[3051,12,3051,19],[3053,0,3053,19],[3032,12,3032,14],[3032,16,3032,18],[3034,12,3034,14],[3035,12,3035,14],[3036,16,3036,18],[3037,16,3037,18],[3038,16,3038,18],[3039,10,3039,11],[3039,12,3039,14],[3039,16,3039,18],[3029,0,3029,1],[3029,2,3029,4],[3029,5,3029,7],[3029,8,3029,11],[3029,12,3029,14],[3029,15,3029,19],[3030,0,3030,2],[3030,3,3030,4],[3030,5,3030,9],[3030,10,3030,12],[3030,13,3030,14],[3030,15,3030,17],[3030,18,3030,19],[3022,0,3022,19],[3025,0,3025,19],[3026,0,3026,19],[3028,0,3028,1],[3028,2,3028,8],[3028,10,3028,12],[3028,13,3028,14],[3028,15,3028,16],[3028,17,3028,19],[3001,10,3001,11],[3001,12,3001,14],[3010,0,3010,7],[3010,12,3010,19],[3011,0,3011,7],[3011,12,3011,19],[3012,0,3012,7],[3012,12,3012,19],[3021,0,3021,19],[2993,12,2993,14],[2993,16,2993,18],[2995,12,2995,14],[2996,12,2996,14],[2997,16,2997,18],[2998,16,2998,18],[2999,16,2999,18],[3000,10,3000,11],[3000,12,3000,14],[3000,16,3000,18],[2990,0,2990,1],[2990,2,2990,4],[2990,5,2990,7],[2990,8,2990,11],[2990,12,2990,14],[2990,15,2990,19],[2991,0,2991,2],[2991,3,2991,4],[2991,5,2991,9],[2991,10,2991,12],[2991,13,2991,14],[2991,15,2991,17],[2991,18,2991,19],[2983,0,2983,19],[2986,0,2986,19],[2987,0,2987,19],[2989,0,2989,1],[2989,2,2989,8],[2989,10,2989,12],[2989,13,2989,14],[2989,15,2989,16],[2989,17,2989,19],[2969,10,2969,11],[2969,12,2969,14],[2978,0,2978,7],[2978,12,2978,19],[2979,0,2979,7],[2979,12,2979,19],[2980,0,2980,7],[2980,12,2980,19],[2982,0,2982,19],[2961,12,2961,14],[2961,16,2961,18],[2963,12,2963,14],[2964,12,2964,14],[2965,16,2965,18],[2966,16,2966,18],[2967,16,2967,18],[2968,10,2968,11],[2968,12,2968,14],[2968,16,2968,18],[2958,0,2958,1],[2958,2,2958,4],[2958,5,2958,7],[2958,8,2958,11],[2958,12,2958,14],[2958,15,2958,19],[2959,0,2959,2],[2959,3,2959,4],[2959,5,2959,9],[2959,10,2959,12],[2959,13,2959,14],[2959,15,2959,17],[2959,18,2959,19],[2951,0,2951,19],[2954,0,2954,19],[2955,0,2955,19],[2957,0,2957,1],[2957,2,2957,8],[2957,10,2957,12],[2957,13,2957,14],[2957,15,2957,16],[2957,17,2957,19],[2930,10,2930,11],[2930,12,2930,14],[2939,0,2939,7],[2939,12,2939,19],[2940,0,2940,7],[2940,12,2940,19],[2941,0,2941,7],[2941,12,2941,19],[2950,0,2950,19],[2922,12,2922,14],[2922,16,2922,18],[2924,12,2924,14],[2925,12,2925,14],[2926,16,2926,18],[2927,16,2927,18],[2928,16,2928,18],[2929,10,2929,11],[2929,12,2929,14],[2929,16,2929,18],[2919,0,2919,1],[2919,2,2919,4],[2919,5,2919,7],[2919,8,2919,11],[2919,12,2919,14],[2919,15,2919,19],[2920,0,2920,2],[2920,3,2920,4],[2920,5,2920,9],[2920,10,2920,12],[2920,13,2920,14],[2920,15,2920,17],[2920,18,2920,19],[2912,0,2912,19],[2915,0,2915,19],[2916,0,2916,19],[2918,0,2918,1],[2918,2,2918,8],[2918,10,2918,12],[2918,13,2918,14],[2918,15,2918,16],[2918,17,2918,19],[2898,10,2898,11],[2898,12,2898,14],[2907,0,2907,7],[2907,12,2907,19],[2908,0,2908,7],[2908,12,2908,19],[2909,0,2909,7],[2909,12,2909,19],[2911,0,2911,19],[2890,12,2890,14],[2890,16,2890,18],[2892,12,2892,14],[2893,12,2893,14],[2894,16,2894,18],[2895,16,2895,18],[2896,16,2896,18],[2897,10,2897,11],[2897,12,2897,14],[2897,16,2897,18],[2887,0,2887,1],[2887,2,2887,4],[2887,5,2887,7],[2887,8,2887,11],[2887,12,2887,14],[2887,15,2887,19],[2888,0,2888,2],[2888,3,2888,4],[2888,5,2888,9],[2888,10,2888,12],[2888,13,2888,14],[2888,15,2888,17],[2888,18,2888,19],[2880,0,2880,19],[2883,0,2883,19],[2884,0,2884,19],[2886,0,2886,1],[2886,2,2886,8],[2886,10,2886,12],[2886,13,2886,14],[2886,15,2886,16],[2886,17,2886,19],[2859,10,2859,11],[2859,12,2859,14],[2868,0,2868,7],[2868,12,2868,19],[2869,0,2869,7],[2869,12,2869,19],[2870,0,2870,7],[2870,12,2870,19],[2879,0,2879,19],[2851,12,2851,14],[2851,16,2851,18],[2853,12,2853,14],[2854,12,2854,14],[2855,16,2855,18],[2856,16,2856,18],[2857,16,2857,18],[2858,10,2858,11],[2858,12,2858,14],[2858,16,2858,18],[2848,0,2848,1],[2848,2,2848,4],[2848,5,2848,7],[2848,8,2848,11],[2848,12,2848,14],[2848,15,2848,19],[2849,0,2849,2],[2849,3,2849,4],[2849,5,2849,9],[2849,10,2849,12],[2849,13,2849,14],[2849,15,2849,17],[2849,18,2849,19],[2841,0,2841,19],[2844,0,2844,19],[2845,0,2845,19],[2847,0,2847,1],[2847,2,2847,8],[2847,10,2847,12],[2847,13,2847,14],[2847,15,2847,16],[2847,17,2847,19],[2827,10,2827,11],[2827,12,2827,14],[2836,0,2836,7],[2836,12,2836,19],[2837,0,2837,7],[2837,12,2837,19],[2838,0,2838,7],[2838,12,2838,19],[2840,0,2840,19],[2819,12,2819,14],[2819,16,2819,18],[2821,12,2821,14],[2822,12,2822,14],[2823,16,2823,18],[2824,16,2824,18]],"merged_total":4268,"flags":["merged_cut"]}
["GOBIERNO DE LA REPÚBLICA DE GUATEMALA"]
["AUTORIDAD PARA EL MANEJO SUSTENTABLE DE LA CUENCA Y DEL LAGO DE AMATITLÁN"]
[]
[]
["Boleta de Liquidación Mensual Renglón 031 \"Jornales\"   Correspondiente al mes de septiembre 2014"]
[{"$f":"#REF!","v":{"$error":"#REF!"}}]
[]
["Empleado:",null,{"$f":"#REF!","v":{"$error":"#REF!"}},null,null,null,null,null,null,null,"Certificación No.",null,null,{"$f":"#REF!","v":{"$error":"#REF!"}},null,"Fecha:",null,"2014-08-31"]
["Contrato:",null,{"$f":"#REF!","v":{"$error":"#REF!"}},null,null,"Puesto Funcional:",null,null,{"$f":"#REF!","v":{"$error":"#REF!"}},null,null,null,"Titulo Jornal:",null,null,{"$f":"#REF!","v":{"$error":"#REF!"}}]
["Cuenta / Banco:",null,null,{"$f":"#REF!","v":{"$error":"#REF!"}},null,"Banco de Desarrollo Rural, S.A.",null,null,null,null,"Jornal Diario:",null,null,{"$f":"#REF!","v":{"$error":"#REF!"}},null,"Días Trabajados:",null,null,{"$f":"#REF!","v":{"$error":"#REF!"}}]
[]
[null,null,null,null,null,null,null,null,null,null,null,null,"Ingresos",null,null,null,"Deducciones "]
[]
[null,"031","DEVENGADO",null,null,null,null,null,null,null,null,null,{"$f":"#REF!","v":{"$error":"#REF!"}}]
[null,"033","BONO ACUERDO GUBERNATIVO 66-2000",null,null,null,null,null,null,null,null,null,{"$f":"#REF!","v":{"$error":"#REF!"}}]
[null,"201","I.G.S.S",null,null,null,null,null,null,null,null,null,null,null,null,null,{"$f":"#REF!","v":{"$error":"#REF!"}}]
[null,"118","MONTEPÍO",null,null,null,null,null,null,null,null,null,null,null,null,null,0]
[null,"211","RETENCIONES JUDICIALES",null,null,null,null,null,null,null,null,null,null,null,null,null,{"$f":"#REF!","v":{"$error":"#REF!"}}]
[null,null,null,null,null,null,null,null,null,null,"Total  :",null,{"$f":"SUM(M14:O18)","v":{"$error":"#REF!"}},null,null,null,{"$f":"SUM(Q16:S18)","v":{"$error":"#REF!"}}]
[null,null,null,null,null,null,null,null,null,null,"Liquido :",null,{"$f":"M19-Q19","v":{"$error":"#REF!"}}]
[]
[]
[]
[]
[]
[]
[]
[]
["María José Ceballos López",null,null,null,null,null,null,null,null,null,null,null,{"$f":"C8","v":{"$error":"#REF!"}}]
["Encargada de Nómina",null,null,null,null,null,null,null,null,null,null,null,{"$f":"P9","v":{"$error":"#REF!"}}]
["AMSA ",null,null,null,null,null,null,null,null,null,null,null,"AMSA"]
[]
[]
[]
[]
[]
[]
[]
[]
["GOBIERNO DE LA REPÚBLICA DE GUATEMALA"]
["AUTORIDAD PARA EL MANEJO SUSTENTABLE DE LA CUENCA Y DEL LAGO DE AMATITLÁN"]
[]
[]
[{"$f":"A5","v":"Boleta de Liquidación Mensual Renglón 031 \"Jornales\"   Correspondiente al mes de septiembre 2014"}]
[{"$f":"A6","v":{"$error":"#REF!"}}]
[]
["Empleado:",null,{"$f":"C8","v":{"$error":"#REF!"}},null,null,null,null,null,null,null,"Certificación No.",null,null,{"$f":"N8","v":{"$error":"#REF!"}},null,"Fecha:",null,{"$f":"R8","v":"2014-08-31"}]
["Contrato:",null,{"$f":"C9","v":{"$error":"#REF!"}},null,null,"Puesto Funcional:",null,null,{"$f":"I9","v":{"$error":"#REF!"}},null,null,null,"Titulo Jornal:",null,null,{"$f":"P9","v":{"$error":"#REF!"}}]
["Cuenta / Banco:",null,null,{"$f":"D10","v":{"$error":"#REF!"}},null,"Banco de Desarrollo Rural, S.A.",null,null,null,null,"Jornal Diario:",null,null,{"$f":"N10","v":{"$error":"#REF!"}},null,"Días Trabajados:",null,null,{"$f":"S10","v":{"$error":"#REF!"}}]
[]
[null,null,null,null,null,null,null,null,null,null,null,null,"Ingresos",null,null,null,"Deducciones "]
[]
[null,"031","DEVENGADO",null,null,null,null,null,null,null,null,null,{"$f":"M14","v":{"$error":"#REF!"}}]
[null,"033","BONO ACUERDO GUBERNATIVO 66-2000",null,null,null,null,null,null,null,null,null,{"$f":"M15","v":{"$error":"#REF!"}}]
[null,"201","I.G.S.S",null,null,null,null,null,null,null,null,null,null,null,null,null,{"$f":"Q16","v":{"$error":"#REF!"}}]
[null,"118","MONTEPÍO",null,null,null,null,null,null,null,null,null,null,null,null,null,{"$f":"Q17","v":0}]
[null,"211","RETENCIONES JUDICIALES",null,null,null,null,null,null,null,null,null,null,null,null,null,{"$f":"Q18","v":{"$error":"#REF!"}}]
[null,null,null,null,null,null,null,null,null,null,"Total  :",null,{"$f":"SUM(M53:O57)","v":{"$error":"#REF!"}},null,null,null,{"$f":"SUM(Q55:S57)","v":{"$error":"#REF!"}}]
[null,null,null,null,null,null,null,null,null,null,"Liquido :",null,{"$f":"M58-Q58","v":{"$error":"#REF!"}}]
[]
[]
[]
[]
[]
[]
[]
[]
[{"$f":"A29","v":"María José Ceballos López"},null,null,null,null,null,null,null,null,null,null,null,{"$f":"C47","v":{"$error":"#REF!"}}]
[{"$f":"A30","v":"Encargada de Nómina"},null,null,null,null,null,null,null,null,null,null,null,{"$f":"P48","v":{"$error":"#REF!"}}]
[{"$f":"A31","v":"AMSA "},null,null,null,null,null,null,null,null,null,null,null,"AMSA"]
[]
["GOBIERNO DE LA REPÚBLICA DE GUATEMALA"]
["AUTORIDAD PARA EL MANEJO SUSTENTABLE DE LA CUENCA Y DEL LAGO DE AMATITLÁN"]
[]
[]
[{"$f":"A5","v":"Boleta de Liquidación Mensual Renglón 031 \"Jornales\"   Correspondiente al mes de septiembre 2014"}]
[{"$f":"A6","v":{"$error":"#REF!"}}]
[]
["Empleado:",null,{"$f":"#REF!","v":{"$error":"#REF!"}},null,null,null,null,null,null,null,"Certificación No.",null,null,{"$f":"N8+1","v":{"$error":"#REF!"}},null,"Fecha:",null,{"$f":"R8","v":"2014-08-31"}]
["Contrato:",null,{"$f":"#REF!","v":{"$error":"#REF!"}},null,null,"Puesto Funcional:",null,null,{"$f":"#REF!","v":{"$error":"#REF!"}},null,null,null,"Titulo Jornal:",null,null,{"$f":"#REF!","v":{"$error":"#REF!"}}]
["Cuenta / Banco:",null,null,{"$f":"#REF!","v":{"$error":"#REF!"}},null,"Banco de Desarrollo Rural, S.A.",null,null,null,null,"Jornal Diario:",null,null,{"$f":"#REF!","v":{"$error":"#REF!"}},null,"Días Trabajados:",null,null,{"$f":"#REF!","v":{"$error":"#REF!"}}]
[]
[null,null,null,null,null,null,null,null,null,null,null,null,"Ingresos",null,null,null,"Deducciones "]
[]
[null,"031","DEVENGADO",null,null,null,null,null,null,null,null,null,{"$f":"#REF!","v":{"$error":"#REF!"}}]
[null,"033","BONO ACUERDO GUBERNATIVO 66-2000",null,null,null,null,null,null,null,null,null,{"$f":"#REF!","v":{"$error":"#REF!"}}]
[null,"201","I.G.S.S",null,null,null,null,null,null,null,null,null,null,null,null,null,{"$f":"#REF!","v":{"$error":"#REF!"}}]
[null,"118","MONTEPÍO",null,null,null,null,null,null,null,null,null,null,null,null,null,0]
[null,"211","RETENCIONES JUDICIALES",null,null,null,null,null,null,null,null,null,null,null,null,null,{"$f":"#REF!","v":{"$error":"#REF!"}}]
[null,null,null,null,null,null,null,null,null,null,"Total  :",null,{"$f":"SUM(M85:O89)","v":{"$error":"#REF!"}},null,null,null,{"$f":"SUM(Q87:S89)","v":{"$error":"#REF!"}}]
[null,null,null,null,null,null,null,null,null,null,"Liquido :",null,{"$f":"M90-Q90","v":{"$error":"#REF!"}}]
[]
[]
[]
[]
[]
[]
[]
[]
["María José Ceballos López",null,null,null,null,null,null,null,null,null,null,null,{"$f":"C79","v":{"$error":"#REF!"}}]
["Encargada de Nómina",null,null,null,null,null,null,null,null,null,null,null,{"$f":"P80","v":{"$error":"#REF!"}}]
["AMSA ",null,null,null,null,null,null,null,null,null,null,null,"AMSA"]
[]
[]
[]
[]
[]
[]
[]
[]
["GOBIERNO DE LA REPÚBLICA DE GUATEMALA"]
["AUTORIDAD PARA EL MANEJO SUSTENTABLE DE LA CUENCA Y DEL LAGO DE AMATITLÁN"]
[]
[]
[{"$f":"A76","v":"Boleta de Liquidación Mensual Renglón 031 \"Jornales\"   Correspondiente al mes de septiembre 2014"}]
[{"$f":"A77","v":{"$error":"#REF!"}}]
[]
["Empleado:",null,{"$f":"C79","v":{"$error":"#REF!"}},null,null,null,null,null,null,null,"Certificación No.",null,null,{"$f":"N79","v":{"$error":"#REF!"}},null,"Fecha:",null,{"$f":"R79","v":"2014-08-31"}]
["Contrato:",null,{"$f":"C80","v":{"$error":"#REF!"}},null,null,"Puesto Funcional:",null,null,{"$f":"I80","v":{"$error":"#REF!"}},null,null,null,"Titulo Jornal:",null,null,{"$f":"P80","v":{"$error":"#REF!"}}]
["Cuenta / Banco:",null,null,{"$f":"D81","v":{"$error":"#REF!"}},null,"Banco de Desarrollo Rural, S.A.",null,null,null,null,"Jornal Diario:",null,null,{"$f":"N81","v":{"$error":"#REF!"}},null,"Días Trabajados:",null,null,{"$f":"S81","v":{"$error":"#REF!"}}]
[]
[null,null,null,null,null,null,null,null,null,null,null,null,"Ingresos",null,null,null,"Deducciones "]
[]
[null,"031","DEVENGADO",null,null,null,null,null,null,null,null,null,{"$f":"M85","v":{"$error":"#REF!"}}]
[null,"033","BONO ACUERDO GUBERNATIVO 66-2000",null,null,null,null,null,null,null,null,null,{"$f":"M86","v":{"$error":"#REF!"}}]
[null,"201","I.G.S.S",null,null,null,null,null,null,null,null,null,null,null,null,null,{"$f":"Q87","v":{"$error":"#REF!"}}]
[null,"118","MONTEPÍO",null,null,null,null,null,null,null,null,null,null,null,null,null,{"$f":"Q88","v":0}]
[null,"211","RETENCIONES JUDICIALES",null,null,null,null,null,null,null,null,null,null,null,null,null,{"$f":"Q89","v":{"$error":"#REF!"}}]
[null,null,null,null,null,null,null,null,null,null,"Total  :",null,{"$f":"SUM(M124:O128)","v":{"$error":"#REF!"}},null,null,null,{"$f":"SUM(Q126:S128)","v":{"$error":"#REF!"}}]
[null,null,null,null,null,null,null,null,null,null,"Liquido :",null,{"$f":"M129-Q129","v":{"$error":"#REF!"}}]
[]
[]
[]
[]
[]
[]
[]
[]
[{"$f":"A100","v":"María José Ceballos López"},null,null,null,null,null,null,null,null,null,null,null,{"$f":"C118","v":{"$error":"#REF!"}}]
[{"$f":"A101","v":"Encargada de Nómina"},null,null,null,null,null,null,null,null,null,null,null,{"$f":"P119","v":{"$error":"#REF!"}}]
[{"$f":"A102","v":"AMSA "},null,null,null,null,null,null,null,null,null,null,null,"AMSA"]
[]
["GOBIERNO DE LA REPÚBLICA DE GUATEMALA"]
["AUTORIDAD PARA EL MANEJO SUSTENTABLE DE LA CUENCA Y DEL LAGO DE AMATITLÁN"]
[]
[]
[{"$f":"A76","v":"Boleta de Liquidación Mensual Renglón 031 \"Jornales\"   Correspondiente al mes de septiembre 2014"}]
[{"$f":"A77","v":{"$error":"#REF!"}}]
[]
["Empleado:",null,{"$f":"#REF!","v":{"$error":"#REF!"}},null,null,null,null,null,null,null,"Certificación No.",null,null,{"$f":"N79+1","v":{"$error":"#REF!"}},null,"Fecha:",null,{"$f":"R8","v":"2014-08-31"}]
["Contrato:",null,{"$f":"#REF!","v":{"$error":"#REF!"}},null,null,"Puesto Funcional:",null,null,{"$f":"#REF!","v":{"$error":"#REF!"}},null,null,null,"Titulo Jornal:",null,null,{"$f":"#REF!","v":{"$error":"#REF!"}}]
["Cuenta / Banco:",null,null,{"$f":"#REF!","v":{"$error":"#REF!"}},null,"Banco de Desarrollo Rural, S.A.",null,null,null,null,"Jornal Diario:",null,null,{"$f":"#REF!","v":{"$error":"#REF!"}},null,"Días Trabajados:",null,null,{"$f":"#REF!","v":{"$error":"#REF!"}}]
[]
[null,null,null,null,null,null,null,null,null,null,null,null,"Ingresos",null,null,null,"Deducciones "]
[]
[null,"031","DEVENGADO",null,null,null,null,null,null,null,null,null,{"$f":"#REF!","v":{"$error":"#REF!"}}]
[null,"033","BONO ACUERDO GUBERNATIVO 66-2000",null,null,null,null,null,null,null,null,null,{"$f":"#REF!","v":{"$error":"#REF!"}}]
[null,"201","I.G.S.S",null,null,null,null,null,null,null,null,null,null,null,null,null,{"$f":"#REF!","v":{"$error":"#REF!"}}]
[null,"118","MONTEPÍO",null,null,null,null,null,null,null,null,null,null,null,null,null,0]
[null,"211","RETENCIONES JUDICIALES",null,null,null,null,null,null,null,null,null,null,null,null,null,{"$f":"#REF!","v":{"$error":"#REF!"}}]
[null,null,null,null,null,null,null,null,null,null,"Total  :",null,{"$f":"SUM(M156:O160)","v":{"$error":"#REF!"}},null,null,null,{"$f":"SUM(Q158:S160)","v":{"$error":"#REF!"}}]
[null,null,null,null,null,null,null,null,null,null,"Liquido :",null,{"$f":"M161-Q161","v":{"$error":"#REF!"}}]
[]
[]
[]
[]
[]
[]
[]
[]
["María José Ceballos López",null,null,null,null,null,null,null,null,null,null,null,{"$f":"C150","v":{"$error":"#REF!"}}]
["Encargada de Nómina",null,null,null,null,null,null,null,null,null,null,null,{"$f":"P151","v":{"$error":"#REF!"}}]
["AMSA ",null,null,null,null,null,null,null,null,null,null,null,"AMSA"]
[]
[]
[]
[]
[]
[]
[]
[]
["GOBIERNO DE LA REPÚBLICA DE GUATEMALA"]
["AUTORIDAD PARA EL MANEJO SUSTENTABLE DE LA CUENCA Y DEL LAGO DE AMATITLÁN"]
[]
[]
[{"$f":"A147","v":"Boleta de Liquidación Mensual Renglón 031 \"Jornales\"   Correspondiente al mes de septiembre 2014"}]
[{"$f":"A148","v":{"$error":"#REF!"}}]
[]
["Empleado:",null,{"$f":"C150","v":{"$error":"#REF!"}},null,null,null,null,null,null,null,"Certificación No.",null,null,{"$f":"N150","v":{"$error":"#REF!"}},null,"Fecha:",null,{"$f":"R150","v":"2014-08-31"}]
["Contrato:",null,{"$f":"C151","v":{"$error":"#REF!"}},null,null,"Puesto Funcional:",null,null,{"$f":"I151","v":{"$error":"#REF!"}},null,null,null,"Titulo Jornal:",null,null,{"$f":"P151","v":{"$error":"#REF!"}}]
["Cuenta / Banco:",null,null,{"$f":"D152","v":{"$error":"#REF!"}},null,"Banco de Desarrollo Rural, S.A.",null,null,null,null,"Jornal Diario:",null,null,{"$f":"N152","v":{"$error":"#REF!"}},null,"Días Trabajados:",null,null,{"$f":"S152","v":{"$error":"#REF!"}}]
[]
[null,null,null,null,null,null,null,null,null,null,null,null,"Ingresos",null,null,null,"Deducciones "]
[]
[null,"031","DEVENGADO",null,null,null,null,null,null,null,null,null,{"$f":"M156","v":{"$error":"#REF!"}}]
[null,"033","BONO ACUERDO GUBERNATIVO 66-2000",null,null,null,null,null,null,null,null,null,{"$f":"M157","v":{"$error":"#REF!"}}]
[null,"201","I.G.S.S",null,null,null,null,null,null,null,null,null,null,null,null,null,{"$f":"Q158","v":{"$error":"#REF!"}}]
[null,"118","MONTEPÍO",null,null,null,null,null,null,null,null,null,null,null,null,null,{"$f":"Q159","v":0}]
[null,"211","RETENCIONES JUDICIALES",null,null,null,null,null,null,null,null,null,null,null,null,null,{"$f":"Q160","v":{"$error":"#REF!"}}]
[null,null,null,null,null,null,null,null,null,null,"Total  :",null,{"$f":"SUM(M195:O199)","v":{"$error":"#REF!"}},null,null,null,{"$f":"SUM(Q197:S199)","v":{"$error":"#REF!"}}]
[null,null,null,null,null,null,null,null,null,null,"Liquido :",null,{"$f":"M200-Q200","v":{"$error":"#REF!"}}]
[]
[]
[]
[]
[]
[]
[]
[]
[{"$f":"A171","v":"María José Ceballos López"},null,null,null,null,null,null,null,null,null,null,null,{"$f":"C189","v":{"$error":"#REF!"}}]
[{"$f":"A172","v":"Encargada de Nómina"},null,null,null,null,null,null,null,null,null,null,null,{"$f":"P190","v":{"$error":"#REF!"}}]
[{"$f":"A173","v":"AMSA "},null,null,null,null,null,null,null,null,null,null,null,"AMSA"]
[]
["GOBIERNO DE LA REPÚBLICA DE GUATEMALA"]
["AUTORIDAD PARA EL MANEJO SUSTENTABLE DE LA CUENCA Y DEL LAGO DE AMATITLÁN"]
[]
[]
[{"$f":"A147","v":"Boleta de Liquidación Mensual Renglón 031 \"Jornales\"   Correspondiente al mes de septiembre 2014"}]
[{"$f":"A148","v":{"$error":"#REF!"}}]
[]
["Empleado:",null,{"$f":"#REF!","v":{"$error":"#REF!"}},null,null,null,null,null,null,null,"Certificación No.",null,null,{"$f":"N150+1","v":{"$error":"#REF!"}},null,"Fecha:",null,"2014-09-30"]
["Contrato:",null,{"$f":"#REF!","v":{"$error":"#REF!"}},null,null,"Puesto Funcional:",null,null,{"$f":"#REF!","v":{"$error":"#REF!"}},null,null,null,"Titulo Jornal:",null,null,{"$f":"#REF!","v":{"$error":"#REF!"}}]
["Cuenta / Banco:",null,null,{"$f":"#REF!","v":{"$error":"#REF!"}},null,"Banco de Desarrollo Rural, S.A.",null,null,null,null,"Jornal Diario:",null,null,{"$f":"#REF!","v":{"$error":"#REF!"}},null,"Días Trabajados:",null,null,{"$f":"#REF!","v":{"$error":"#REF!"}}]
[]
[null,null,null,null,null,null,null,null,null,null,null,null,"Ingresos",null,null,null,"Deducciones "]
[]
[null,"031","DEVENGADO",null,null,null,null,null,null,null,null,null,{"$f":"#REF!","v":{"$error":"#REF!"}}]
[null,"033","BONO ACUERDO GUBERNATIVO 66-2000",null,null,null,null,null,null,null,null,null,{"$f":"#REF!","v":{"$error":"#REF!"}}]
[null,"201","I.G.S.S",null,null,null,null,null,null,null,null,null,null,null,null,null,{"$f":"#REF!","v":{"$error":"#REF!"}}]
[null,"118","MONTEPÍO",null,null,null,null,null,null,null,null,null,null,null,null,null,0]
[null,"211","RETENCIONES JUDICIALES",null,null,null,null,null,null,null,null,null,null,null,null,null,{"$f":"#REF!","v":{"$error":"#REF!"}}]
[null,null,null,null,null,null,null,null,null,null,"Total  :",null,{"$f":"SUM(M227:O231)","v":{"$error":"#REF!"}},null,null,null,{"$f":"SUM(Q229:S231)","v":{"$error":"#REF!"}}]
[null,null,null,null,null,null,null,null,null,null,"Liquido :",null,{"$f":"M232-Q232","v":{"$error":"#REF!"}}]
[]
[]
[]
[]
[]
[]
[]
[]
["María José Ceballos López",null,null,null,null,null,null,null,null,null,null,null,{"$f":"C221","v":{"$error":"#REF!"}}]
["Encargada de Nómina",null,null,null,null,null,null,null,null,null,null,null,{"$f":"P222","v":{"$error":"#REF!"}}]
["AMSA ",null,null,null,null,null,null,null,null,null,null,null,"AMSA"]
[]
[]
[]
[]
[]
[]
[]
[]
["GOBIERNO DE LA REPÚBLICA DE GUATEMALA"]
["AUTORIDAD PARA EL MANEJO SUSTENTABLE DE LA CUENCA Y DEL LAGO DE AMATITLÁN"]
[]
[]
[{"$f":"A218","v":"Boleta de Liquidación Mensual Renglón 031 \"Jornales\"   Correspondiente al mes de septiembre 2014"}]
[{"$f":"A219","v":{"$error":"#REF!"}}]
[]
["Empleado:",null,{"$f":"C221","v":{"$error":"#REF!"}},null,null,null,null,null,null,null,"Certificación No.",null,null,{"$f":"N221","v":{"$error":"#REF!"}},null,"Fecha:",null,{"$f":"R221","v":"2014-09-30"}]
["Contrato:",null,{"$f":"C222","v":{"$error":"#REF!"}},null,null,"Puesto Funcional:",null,null,{"$f":"I222","v":{"$error":"#REF!"}},null,null,null,"Titulo Jornal:",null,null,{"$f":"P222","v":{"$error":"#REF!"}}]
["Cuenta / Banco:",null,null,{"$f":"D223","v":{"$error":"#REF!"}},null,"Banco de Desarrollo Rural, S.A.",null,null,null,null,"Jornal Diario:",null,null,{"$f":"N223","v":{"$error":"#REF!"}},null,"Días Trabajados:",null,null,{"$f":"S223","v":{"$error":"#REF!"}}]
[]
[null,null,null,null,null,null,null,null,null,null,null,null,"Ingresos",null,null,null,"Deducciones "]
[]
[null,"031","DEVENGADO",null,null,null,null,null,null,null,null,null,{"$f":"M227","v":{"$error":"#REF!"}}]
[null,"033","BONO ACUERDO GUBERNATIVO 66-2000",null,null,null,null,null,null,null,null,null,{"$f":"M228","v":{"$error":"#REF!"}}]
[null,"201","I.G.S.S",null,null,null,null,null,null,null,null,null,null,null,null,null,{"$f":"Q229","v":{"$error":"#REF!"}}]
[null,"118","MONTEPÍO",null,null,null,null,null,null,null,null,null,null,null,null,null,{"$f":"Q230","v":0}]
[null,"211","RETENCIONES JUDICIALES",null,null,null,null,null,null,null,null,null,null,null,null,null,{"$f":"Q231","v":{"$error":"#REF!"}}]
[null,null,null,null,null,null,null,null,null,null,"Total  :",null,{"$f":"SUM(M266:O270)","v":{"$error":"#REF!"}},null,null,null,{"$f":"SUM(Q268:S270)","v":{"$error":"#REF!"}}]
[null,null,null,null,null,null,null,null,null,null,"Liquido :",null,{"$f":"M271-Q271","v":{"$error":"#REF!"}}]
[]
[]
[]
[]
[]
[]
[]
[]
[{"$f":"A242","v":"María José Ceballos López"},null,null,null,null,null,null,null,null,null,null,null,{"$f":"C260","v":{"$error":"#REF!"}}]
[{"$f":"A243","v":"Encargada de Nómina"},null,null,null,null,null,null,null,null,null,null,null,{"$f":"P261","v":{"$error":"#REF!"}}]
[{"$f":"A244","v":"AMSA "},null,null,null,null,null,null,null,null,null,null,null,"AMSA"]
[]
["GOBIERNO DE LA REPÚBLICA DE GUATEMALA"]
["AUTORIDAD PARA EL MANEJO SUSTENTABLE DE LA CUENCA Y DEL LAGO DE AMATITLÁN"]
[]
[]
[{"$f":"A218","v":"Boleta de Liquidación Mensual Renglón 031 \"Jornales\"   Correspondiente al mes de septiembre 2014"}]
[{"$f":"A219","v":{"$error":"#REF!"}}]
[]
["Empleado:",null,{"$f":"#REF!","v":{"$error":"#REF!"}},null,null,null,null,null,null,null,"Certificación No.",null,null,{"$f":"N221+1","v":{"$error":"#REF!"}},null,"Fecha:",null,{"$f":"R8","v":"2014-08-31"}]
["Contrato:",null,{"$f":"#REF!","v":{"$error":"#REF!"}},null,null,"Puesto Funcional:",null,null,{"$f":"#REF!","v":{"$error":"#REF!"}},null,null,null,"Titulo Jornal:",null,null,{"$f":"#REF!","v":{"$error":"#REF!"}}]
["Cuenta / Banco:",null,null,{"$f":"#REF!","v":{"$error":"#REF!"}},null,"Banco de Desarrollo Rural, S.A.",null,null,null,null,"Jornal Diario:",null,null,{"$f":"#REF!","v":{"$error":"#REF!"}},null,"Días Trabajados:",null,null,{"$f":"#REF!","v":{"$error":"#REF!"}}]
[]
[null,null,null,null,null,null,null,null,null,null,null,null,"Ingresos",null,null,null,"Deducciones "]
[]
[null,"031","DEVENGADO",null,null,null,null,null,null,null,null,null,{"$f":"#REF!","v":{"$error":"#REF!"}}]
[null,"033","BONO ACUERDO GUBERNATIVO 66-2000",null,null,null,null,null,null,null,null,null,{"$f":"#REF!","v":{"$error":"#REF!"}}]
[null,"201","I.G.S.S",null,null,null,null,null,null,null,null,null,null,null,null,null,{"$f":"#REF!","v":{"$error":"#REF!"}}]
[null,"118","MONTEPÍO",null,null,null,null,null,null,null,null,null,null,null,null,null,0]
[null,"211","RETENCIONES JUDICIALES",null,null,null,null,null,null,null,null,null,null,null,null,null,{"$f":"#REF!","v":{"$error":"#REF!"}}]
[null,null,null,null,null,null,null,null,null,null,"Total  :",null,{"$f":"SUM(M298:O302)","v":{"$error":"#REF!"}},null,null,null,{"$f":"SUM(Q300:S302)","v":{"$error":"#REF!"}}]
[null,null,null,null,null,null,null,null,null,null,"Liquido :",null,{"$f":"M303-Q303","v":{"$error":"#REF!"}}]
[]
[]
[]
[]
[]
[]
[]
[]
["María José Ceballos López",null,null,null,null,null,null,null,null,null,null,null,{"$f":"C292","v":{"$error":"#REF!"}}]
["Encargada de Nómina",null,null,null,null,null,null,null,null,null,null,null,{"$f":"P293","v":{"$error":"#REF!"}}]
["AMSA ",null,null,null,null,null,null,null,null,null,null,null,"AMSA"]
[]
[]
[]
[]
[]
[]
[]
[]
["GOBIERNO DE LA REPÚBLICA DE GUATEMALA"]
["AUTORIDAD PARA EL MANEJO SUSTENTABLE DE LA CUENCA Y DEL LAGO DE AMATITLÁN"]
[]
[]
[{"$f":"A289","v":"Boleta de Liquidación Mensual Renglón 031 \"Jornales\"   Correspondiente al mes de septiembre 2014"}]
[{"$f":"A290","v":{"$error":"#REF!"}}]
[]
["Empleado:",null,{"$f":"C292","v":{"$error":"#REF!"}},null,null,null,null,null,null,null,"Certificación No.",null,null,{"$f":"N292","v":{"$error":"#REF!"}},null,"Fecha:",null,{"$f":"R292","v":"2014-08-31"}]
["Contrato:",null,{"$f":"C293","v":{"$error":"#REF!"}},null,null,"Puesto Funcional:",null,null,{"$f":"I293","v":{"$error":"#REF!"}},null,null,null,"Titulo Jornal:",null,null,{"$f":"P293","v":{"$error":"#REF!"}}]
["Cuenta / Banco:",null,null,{"$f":"D294","v":{"$error":"#REF!"}},null,"Banco de Desarrollo Rural, S.A.",null,null,null,null,"Jornal Diario:",null,null,{"$f":"N294","v":{"$error":"#REF!"}},null,"Días Trabajados:",null,null,{"$f":"S294","v":{"$error":"#REF!"}}]
[]
[null,null,null,null,null,null,null,null,null,null,null,null,"Ingresos",null,null,null,"Deducciones "]
[]
[null,"031","DEVENGADO",null,null,null,null,null,null,null,null,null,{"$f":"M298","v":{"$error":"#REF!"}}]
[null,"033","BONO ACUERDO GUBERNATIVO 66-2000",null,null,null,null,null,null,null,null,null,{"$f":"M299","v":{"$error":"#REF!"}}]
[null,"201","I.G.S.S",null,null,null,null,null,null,null,null,null,null,null,null,null,{"$f":"Q300","v":{"$error":"#REF!"}}]
[null,"118","MONTEPÍO",null,null,null,null,null,null,null,null,null,null,null,null,null,{"$f":"Q301","v":0}]
[null,"211","RETENCIONES JUDICIALES",null,null,null,null,null,null,null,null,null,null,null,null,null,{"$f":"Q302","v":{"$error":"#REF!"}}]
[null,null,null,null,null,null,null,null,null,null,"Total  :",null,{"$f":"SUM(M337:O341)","v":{"$error":"#REF!"}},null,null,null,{"$f":"SUM(Q339:S341)","v":{"$error":"#REF!"}}]
[null,null,null,null,null,null,null,null,null,null,"Liquido :",null,{"$f":"M342-Q342","v":{"$error":"#REF!"}}]
[]
[]
[]
[]
[]
[]
[]
[]
[{"$f":"A313","v":"María José Ceballos López"},null,null,null,null,null,null,null,null,null,null,null,{"$f":"C331","v":{"$error":"#REF!"}}]
[{"$f":"A314","v":"Encargada de Nómina"},null,null,null,null,null,null,null,null,null,null,null,{"$f":"P332","v":{"$error":"#REF!"}}]
[{"$f":"A315","v":"AMSA "},null,null,null,null,null,null,null,null,null,null,null,"AMSA"]
[]
["GOBIERNO DE LA REPÚBLICA DE GUATEMALA"]
["AUTORIDAD PARA EL MANEJO SUSTENTABLE DE LA CUENCA Y DEL LAGO DE AMATITLÁN"]
[]
[]
["Boleta de Liquidación Mensual Renglón 031 \"Jornales\"   Correspondiente al mes de Agosto 2015"]
["NÚMERO 45-2015"]
[]
["Empleado:",null,"Yomara Ninett Escobar Calderón",null,null,null,null,null,null,null,"Certificación No.",null,null,7,null,"Fecha:",null,"2015-08-31"]
["Contrato:",null,"11-2014-031-AMSA",null,null,"Puesto Funcional:",null,null,{"$f":"#REF!","v":{"$error":"#REF!"}},null,null,null,"Titulo Jornal:",null,null,"Peón"]
["Cuenta / Banco:",null,null,3164072096,null,"Banco de Desarrollo Rural, S.A.",null,null,null,null,"Jornal Diario:",null,null,74.97,null,"Días Trabajados:",null,null,{"$f":"#REF!","v":{"$error":"#REF!"}}]
[]
[null,null,null,null,null,null,null,null,null,null,null,null,"Ingresos",null,null,null,"Deducciones "]
[]
[null,"031","DEVENGADO",null,null,null,null,null,null,null,null,null,{"$f":"+N365*S365","v":{"$error":"#REF!"}}]
[null,"033","BONO ACUERDO GUBERNATIVO 66-2000",null,null,null,null,null,null,null,null,null,{"$f":"#REF!","v":{"$error":"#REF!"}}]
[null,"201","I.G.S.S",null,null,null,null,null,null,null,null,null,null,null,null,null,{"$f":"ROUND(M369*4.83%,2)","v":{"$error":"#REF!"}}]
[null,"118","MONTEPÍO",null,null,null,null,null,null,null,null,null,null,null,null,null,0]
[null,"211","RETENCIONES JUDICIALES",null,null,null,null,null,null,null,null,null,null,null,null,null,{"$f":"#REF!","v":{"$error":"#REF!"}}]
[null,null,null,null,null,null,null,null,null,null,"Total  :",null,{"$f":"SUM(M369:O373)","v":{"$error":"#REF!"}},null,null,null,{"$f":"SUM(Q371:S373)","v":{"$error":"#REF!"}}]
[null,null,null,null,null,null,null,null,null,null,"Liquido :",null,{"$f":"M374-Q374","v":{"$error":"#REF!"}}]
[]
[]
[]
[]
[]
[]
[]
[]
["Jonnathan René Pernillo Salazar",null,null,null,null,null,null,null,null,null,null,null,{"$f":"C363","v":"Yomara Ninett Escobar Calderón"}]
["Encargado de Nómina",null,null,null,null,null,null,null,null,null,null,null,{"$f":"P364","v":"Peón"}]
["AMSA ",null,null,null,null,null,null,null,null,null,null,null,"AMSA"]
[]
[]
[]
[]
[]
[]
[]
[]
["GOBIERNO DE LA REPÚBLICA DE GUATEMALA"]
["AUTORIDAD PARA EL MANEJO SUSTENTABLE DE LA CUENCA Y DEL LAGO DE AMATITLÁN"]
[]
[]
["Boleta de Liquidación Mensual Renglón 031 \"Jornales\"   Correspondiente al mes de septiembre 2015"]
["NÚMERO 49-2015"]
[]
["Empleado:",null,{"$f":"C363","v":"Yomara Ninett Escobar Calderón"},null,null,null,null,null,null,null,"Certificación No.",null,null,{"$f":"N363","v":7},null,"Fecha:",null,"2015-09-30"]
["Contrato:",null,{"$f":"C364","v":"11-2014-031-AMSA"},null,null,"Puesto Funcional:",null,null,{"$f":"I364","v":{"$error":"#REF!"}},null,null,null,"Titulo Jornal:",null,null,{"$f":"P364","v":"Peón"}]
["Cuenta / Banco:",null,null,{"$f":"D365","v":3164072096},null,"Banco de Desarrollo Rural, S.A.",null,null,null,null,"Jornal Diario:",null,null,{"$f":"N365","v":74.97},null,"Días Trabajados:",null,null,30]
[]
[null,null,null,null,null,null,null,null,null,null,null,null,"Ingresos",null,null,null,"Deducciones "]
[]
[null,"031","DEVENGADO",null,null,null,null,null,null,null,null,null,{"$f":"+N404*S404","v":2249.1}]
[null,"033","BONO ACUERDO GUBERNATIVO 66-2000",null,null,null,null,null,null,null,null,null,{"$f":"M370","v":{"$error":"#REF!"}}]
[null,"201","I.G.S.S",null,null,null,null,null,null,null,null,null,null,null,null,null,{"$f":"ROUND(M408*4.83%,2)","v":108.63}]
[null,"118","MONTEPÍO",null,null,null,null,null,null,null,null,null,null,null,null,null,{"$f":"Q372","v":0}]
[null,"211","RETENCIONES JUDICIALES",null,null,null,null,null,null,null,null,null,null,null,null,null,{"$f":"Q373","v":{"$error":"#REF!"}}]
[null,null,null,null,null,null,null,null,null,null,"Total  :",null,{"$f":"SUM(M408:O412)","v":{"$error":"#REF!"}},null,null,null,{"$f":"SUM(Q410:S412)","v":{"$error":"#REF!"}}]
[null,null,null,null,null,null,null,null,null,null,"Liquido :",null,{"$f":"M413-Q413","v":{"$error":"#REF!"}}]
[]
[]
[]
[]
[]
[]
[]
[]
[{"$f":"A384","v":"Jonnathan René Pernillo Salazar"},null,null,null,null,null,null,null,null,null,null,null,{"$f":"C402","v":"Yomara Ninett Escobar Calderón"}]
[{"$f":"A385","v":"Encargado de Nómina"},null,null,null,null,null,null,null,null,null,null,null,{"$f":"P403","v":"Peón"}]
[{"$f":"A386","v":"AMSA "},null,null,null,null,null,null,null,null,null,null,null,"AMSA"]
[]
["GOBIERNO DE LA REPÚBLICA DE GUATEMALA"]
["AUTORIDAD PARA EL MANEJO SUSTENTABLE DE LA CUENCA Y DEL LAGO DE AMATITLÁN"]
[]
[]
[{"$f":"A360","v":"Boleta de Liquidación Mensual Renglón 031 \"Jornales\"   Correspondiente al mes de Agosto 2015"}]
[{"$f":"A361","v":"NÚMERO 45-2015"}]
[]
["Empleado:",null,{"$f":"#REF!","v":{"$error":"#REF!"}},null,null,null,null,null,null,null,"Certificación No.",null,null,{"$f":"N363+1","v":8},null,"Fecha:",null,{"$f":"R8","v":"2014-08-31"}]
["Contrato:",null,{"$f":"#REF!","v":{"$error":"#REF!"}},null,null,"Puesto Funcional:",null,null,{"$f":"#REF!","v":{"$error":"#REF!"}},null,null,null,"Titulo Jornal:",null,null,{"$f":"#REF!","v":{"$error":"#REF!"}}]
["Cuenta / Banco:",null,null,{"$f":"#REF!","v":{"$error":"#REF!"}},null,"Banco de Desarrollo Rural, S.A.",null,null,null,null,"Jornal Diario:",null,null,{"$f":"#REF!","v":{"$error":"#REF!"}},null,"Días Trabajados:",null,null,{"$f":"#REF!","v":{"$error":"#REF!"}}]
[]
[null,null,null,null,null,null,null,null,null,null,null,null,"Ingresos",null,null,null,"Deducciones "]
[]
[null,"031","DEVENGADO",null,null,null,null,null,null,null,null,null,{"$f":"#REF!","v":{"$error":"#REF!"}}]
[null,"033","BONO ACUERDO GUBERNATIVO 66-2000",null,null,null,null,null,null,null,null,null,{"$f":"#REF!","v":{"$error":"#REF!"}}]
[null,"201","I.G.S.S",null,null,null,null,null,null,null,null,null,null,null,null,null,{"$f":"#REF!","v":{"$error":"#REF!"}}]
[null,"118","MONTEPÍO",null,null,null,null,null,null,null,null,null,null,null,null,null,0]
[null,"211","RETENCIONES JUDICIALES",null,null,null,null,null,null,null,null,null,null,null,null,null,{"$f":"#REF!","v":{"$error":"#REF!"}}]
[null,null,null,null,null,null,null,null,null,null,"Total  :",null,{"$f":"SUM(M440:O444)","v":{"$error":"#REF!"}},null,null,null,{"$f":"SUM(Q442:S444)","v":{"$error":"#REF!"}}]
[null,null,null,null,null,null,null,null,null,null,"Liquido :",null,{"$f":"M445-Q445","v":{"$error":"#REF!"}}]
[]
[]
[]
[]
[]
[]
[]
[]
["María José Ceballos López",null,null,null,null,null,null,null,null,null,null,null,{"$f":"C434","v":{"$error":"#REF!"}}]
["Encargada de Nómina",null,null,null,null,null,null,null,null,null,null,null,{"$f":"P435","v":{"$error":"#REF!"}}]
["AMSA ",null,null,null,null,null,null,null,null,null,null,null,"AMSA"]
[]
[]
[]
[]
[]
[]
[]
[]
["GOBIERNO DE LA REPÚBLICA DE GUATEMALA"]
["AUTORIDAD PARA EL MANEJO SUSTENTABLE DE LA CUENCA Y DEL LAGO DE AMATITLÁN"]
[]
[]
[{"$f":"A431","v":"Boleta de Liquidación Mensual Renglón 031 \"Jornales\"   Correspondiente al mes de Agosto 2015"}]
[{"$f":"A432","v":"NÚMERO 45-2015"}]
[]
["Empleado:",null,{"$f":"C434","v":{"$error":"#REF!"}},null,null,null,null,null,null,null,"Certificación No.",null,null,{"$f":"N434","v":8},null,"Fecha:",null,{"$f":"R434","v":"2014-08-31"}]
["Contrato:",null,{"$f":"C435","v":{"$error":"#REF!"}},null,null,"Puesto Funcional:",null,null,{"$f":"I435","v":{"$error":"#REF!"}},null,null,null,"Titulo Jornal:",null,null,{"$f":"P435","v":{"$error":"#REF!"}}]
["Cuenta / Banco:",null,null,{"$f":"D436","v":{"$error":"#REF!"}},null,"Banco de Desarrollo Rural, S.A.",null,null,null,null,"Jornal Diario:",null,null,{"$f":"N436","v":{"$error":"#REF!"}},null,"Días Trabajados:",null,null,{"$f":"S436","v":{"$error":"#REF!"}}]
[]
[null,null,null,null,null,null,null,null,null,null,null,null,"Ingresos",null,null,null,"Deducciones "]
[]
[null,"031","DEVENGADO",null,null,null,null,null,null,null,null,null,{"$f":"M440","v":{"$error":"#REF!"}}]
[null,"033","BONO ACUERDO GUBERNATIVO 66-2000",null,null,null,null,null,null,null,null,null,{"$f":"M441","v":{"$error":"#REF!"}}]
[null,"201","I.G.S.S",null,null,null,null,null,null,null,null,null,null,null,null,null,{"$f":"Q442","v":{"$error":"#REF!"}}]
[null,"118","MONTEPÍO",null,null,null,null,null,null,null,null,null,null,null,null,null,{"$f":"Q443","v":0}]
[null,"211","RETENCIONES JUDICIALES",null,null,null,null,null,null,null,null,null,null,null,null,null,{"$f":"Q444","v":{"$error":"#REF!"}}]
[null,null,null,null,null,null,null,null,null,null,"Total  :",null,{"$f":"SUM(M479:O483)","v":{"$error":"#REF!"}},null,null,null,{"$f":"SUM(Q481:S483)","v":{"$error":"#REF!"}}]
[null,null,null,null,null,null,null,null,null,null,"Liquido :",null,{"$f":"M484-Q484","v":{"$error":"#REF!"}}]
[]
[]
[]
[]
[]
[]
[]
[]
[{"$f":"A455","v":"María José Ceballos López"},null,null,null,null,null,null,null,null,null,null,null,{"$f":"C473","v":{"$error":"#REF!"}}]
[{"$f":"A456","v":"Encargada de Nómina"},null,null,null,null,null,null,null,null,null,null,null,{"$f":"P474","v":{"$error":"#REF!"}}]
[{"$f":"A457","v":"AMSA "},null,null,null,null,null,null,null,null,null,null,null,"AMSA"]
[]
["GOBIERNO DE LA REPÚBLICA DE GUATEMALA"]
["AUTORIDAD PARA EL MANEJO SUSTENTABLE DE LA CUENCA Y DEL LAGO DE AMATITLÁN"]
[]
[]
["Boleta de Liquidación Mensual Renglón 031 \"Jornales\" Correspondiente al mes de junio de 2014"]
[{"$f":"A432","v":"NÚMERO 45-2015"}]
[]
["Empleado:",null,{"$f":"#REF!","v":{"$error":"#REF!"}},null,null,null,null,null,null,null,"Certificación No.",null,null,{"$f":"N434+1","v":9},null,"Fecha:",null,"2014-06-30"]
["Contrato:",null,{"$f":"#REF!","v":{"$error":"#REF!"}},null,null,"Puesto Funcional:",null,null,{"$f":"#REF!","v":{"$error":"#REF!"}},null,null,null,"Titulo Jornal:",null,null,{"$f":"#REF!","v":{"$error":"#REF!"}}]
["Cuenta / Banco:",null,null,{"$f":"#REF!","v":{"$error":"#REF!"}},null,"Banco de Desarrollo Rural, S.A.",null,null,null,null,"Jornal Diario:",null,null,{"$f":"#REF!","v":{"$error":"#REF!"}},null,"Días Trabajados:",null,null,{"$f":"#REF!","v":{"$error":"#REF!"}}]
[]
[null,null,null,null,null,null,null,null,null,null,null,null,"Ingresos",null,null,null,"Deducciones "]
[]
[null,"031","DEVENGADO",null,null,null,null,null,null,null,null,null,{"$f":"#REF!","v":{"$error":"#REF!"}}]
[null,"033","BONO ACUERDO GUBERNATIVO 66-2000",null,null,null,null,null,null,null,null,null,{"$f":"#REF!","v":{"$error":"#REF!"}}]
[null,"201","I.G.S.S",null,null,null,null,null,null,null,null,null,null,null,null,null,{"$f":"#REF!","v":{"$error":"#REF!"}}]
[null,"118","MONTEPÍO",null,null,null,null,null,null,null,null,null,null,null,null,null,0]
[null,"211","RETENCIONES JUDICIALES",null,null,null,null,null,null,null,null,null,null,null,null,null,{"$f":"#REF!","v":{"$error":"#REF!"}}]
[null,null,null,null,null,null,null,null,null,null,"Total  :",null,{"$f":"SUM(M511:O515)","v":{"$error":"#REF!"}},null,null,null,{"$f":"SUM(Q513:S515)","v":{"$error":"#REF!"}}]
[null,null,null,null,null,null,null,null,null,null,"Liquido :",null,{"$f":"M516-Q516","v":{"$error":"#REF!"}}]
[]
[]
[]
[]
[]
[]
[]
[]
["María José Ceballos López",null,null,null,null,null,null,null,null,null,null,null,{"$f":"C505","v":{"$error":"#REF!"}}]
["Encargada de Nómina",null,null,null,null,null,null,null,null,null,null,null,{"$f":"P506","v":{"$error":"#REF!"}}]
["AMSA ",null,null,null,null,null,null,null,null,null,null,null,"AMSA"]
[]
[]
[]
[]
[]
[]
[]
[]
["GOBIERNO DE LA REPÚBLICA DE GUATEMALA"]
["AUTORIDAD PARA EL MANEJO SUSTENTABLE DE LA CUENCA Y DEL LAGO DE AMATITLÁN"]
[]
[]
[{"$f":"A502","v":"Boleta de Liquidación Mensual Renglón 031 \"Jornales\" Correspondiente al mes de junio de 2014"}]
[{"$f":"A503","v":"NÚMERO 45-2015"}]
[]
["Empleado:",null,{"$f":"C505","v":{"$error":"#REF!"}},null,null,null,null,null,null,null,"Certificación No.",null,null,{"$f":"N505","v":9},null,"Fecha:",null,"2014-06-30"]
["Contrato:",null,{"$f":"C506","v":{"$error":"#REF!"}},null,null,"Puesto Funcional:",null,null,{"$f":"I506","v":{"$error":"#REF!"}},null,null,null,"Titulo Jornal:",null,null,{"$f":"P506","v":{"$error":"#REF!"}}]
["Cuenta / Banco:",null,null,{"$f":"D507","v":{"$error":"#REF!"}},null,"Banco de Desarrollo Rural, S.A.",null,null,null,null,"Jornal Diario:",null,null,{"$f":"N507","v":{"$error":"#REF!"}},null,"Días Trabajados:",null,null,{"$f":"S507","v":{"$error":"#REF!"}}]
[]
[null,null,null,null,null,null,null,null,null,null,null,null,"Ingresos",null,null,null,"Deducciones "]
[]
[null,"031","DEVENGADO",null,null,null,null,null,null,null,null,null,{"$f":"M511","v":{"$error":"#REF!"}}]
[null,"033","BONO ACUERDO GUBERNATIVO 66-2000",null,null,null,null,null,null,null,null,null,{"$f":"M512","v":{"$error":"#REF!"}}]
[null,"201","I.G.S.S",null,null,null,null,null,null,null,null,null,null,null,null,null,{"$f":"Q513","v":{"$error":"#REF!"}}]
[null,"118","MONTEPÍO",null,null,null,null,null,null,null,null,null,null,null,null,null,{"$f":"Q514","v":0}]
[null,"211","RETENCIONES JUDICIALES",null,null,null,null,null,null,null,null,null,null,null,null,null,{"$f":"Q515","v":{"$error":"#REF!"}}]
[null,null,null,null,null,null,null,null,null,null,"Total  :",null,{"$f":"SUM(M550:O554)","v":{"$error":"#REF!"}},null,null,null,{"$f":"SUM(Q552:S554)","v":{"$error":"#REF!"}}]
[null,null,null,null,null,null,null,null,null,null,"Liquido :",null,{"$f":"M555-Q555","v":{"$error":"#REF!"}}]
[]
[]
[]
[]
[]
[]
[]
[]
[{"$f":"A526","v":"María José Ceballos López"},null,null,null,null,null,null,null,null,null,null,null,{"$f":"C544","v":{"$error":"#REF!"}}]
[{"$f":"A527","v":"Encargada de Nómina"},null,null,null,null,null,null,null,null,null,null,null,{"$f":"P545","v":{"$error":"#REF!"}}]
[{"$f":"A528","v":"AMSA "},null,null,null,null,null,null,null,null,null,null,null,"AMSA"]
[]
["GOBIERNO DE LA REPÚBLICA DE GUATEMALA"]
["AUTORIDAD PARA EL MANEJO SUSTENTABLE DE LA CUENCA Y DEL LAGO DE AMATITLÁN"]
[]
[]
[{"$f":"A5","v":"Boleta de Liquidación Mensual Renglón 031 \"Jornales\"   Correspondiente al mes de septiembre 2014"}]
[{"$f":"A503","v":"NÚMERO 45-2015"}]
[]
["Empleado:",null,{"$f":"#REF!","v":{"$error":"#REF!"}},null,null,null,null,null,null,null,"Certificación No.",null,null,{"$f":"N505+1","v":10},null,"Fecha:",null,{"$f":"R8","v":"2014-08-31"}]
["Contrato:",null,{"$f":"#REF!","v":{"$error":"#REF!"}},null,null,"Puesto Funcional:",null,null,{"$f":"#REF!","v":{"$error":"#REF!"}},null,null,null,"Titulo Jornal:",null,null,{"$f":"#REF!","v":{"$error":"#REF!"}}]
["Cuenta / Banco:",null,null,{"$f":"#REF!","v":{"$error":"#REF!"}},null,"Banco de Desarrollo Rural, S.A.",null,null,null,null,"Jornal Diario:",null,null,{"$f":"#REF!","v":{"$error":"#REF!"}},null,"Días Trabajados:",null,null,{"$f":"#REF!","v":{"$error":"#REF!"}}]
[]
[null,null,null,null,null,null,null,null,null,null,null,null,"Ingresos",null,null,null,"Deducciones "]
[]
[null,"031","DEVENGADO",null,null,null,null,null,null,null,null,null,{"$f":"#REF!","v":{"$error":"#REF!"}}]
[null,"033","BONO ACUERDO GUBERNATIVO 66-2000",null,null,null,null,null,null,null,null,null,{"$f":"#REF!","v":{"$error":"#REF!"}}]
[null,"201","I.G.S.S",null,null,null,null,null,null,null,null,null,null,null,null,null,{"$f":"#REF!","v":{"$error":"#REF!"}}]
[null,"118","MONTEPÍO",null,null,null,null,null,null,null,null,null,null,null,null,null,0]
[null,"211","RETENCIONES JUDICIALES",null,null,null,null,null,null,null,null,null,null,null,null,null,{"$f":"#REF!","v":{"$error":"#REF!"}}]
[null,null,null,null,null,null,null,null,null,null,"Total  :",null,{"$f":"SUM(M582:O586)","v":{"$error":"#REF!"}},null,null,null,{"$f":"SUM(Q584:S586)","v":{"$error":"#REF!"}}]
[null,null,null,null,null,null,null,null,null,null,"Liquido :",null,{"$f":"M587-Q587","v":{"$error":"#REF!"}}]
[]
[]
[]
[]
[]
[]
[]
[]
["María José Ceballos López",null,null,null,null,null,null,null,null,null,null,null,{"$f":"C576","v":{"$error":"#REF!"}}]
["Encargada de Nómina",null,null,null,null,null,null,null,null,null,null,null,{"$f":"P577","v":{"$error":"#REF!"}}]
["AMSA ",null,null,null,null,null,null,null,null,null,null,null,"AMSA"]
[]
[]
[]
[]
[]
[]
[]
[]
["GOBIERNO DE LA REPÚBLICA DE GUATEMALA"]
["AUTORIDAD PARA EL MANEJO SUSTENTABLE DE LA CUENCA Y DEL LAGO DE AMATITLÁN"]
[]
[]
[{"$f":"A573","v":"Boleta de Liquidación Mensual Renglón 031 \"Jornales\"   Correspondiente al mes de septiembre 2014"}]
[{"$f":"A574","v":"NÚMERO 45-2015"}]
[]
["Empleado:",null,{"$f":"C576","v":{"$error":"#REF!"}},null,null,null,null,null,null,null,"Certificación No.",null,null,{"$f":"N576","v":10},null,"Fecha:",null,{"$f":"R576","v":"2014-08-31"}]
["Contrato:",null,{"$f":"C577","v":{"$error":"#REF!"}},null,null,"Puesto Funcional:",null,null,{"$f":"I577","v":{"$error":"#REF!"}},null,null,null,"Titulo Jornal:",null,null,{"$f":"P577","v":{"$error":"#REF!"}}]
["Cuenta / Banco:",null,null,{"$f":"D578","v":{"$error":"#REF!"}},null,"Banco de Desarrollo Rural, S.A.",null,null,null,null,"Jornal Diario:",null,null,{"$f":"N578","v":{"$error":"#REF!"}},null,"Días Trabajados:",null,null,{"$f":"S578","v":{"$error":"#REF!"}}]
[]
[null,null,null,null,null,null,null,null,null,null,null,null,"Ingresos",null,null,null,"Deducciones "]
[]
[null,"031","DEVENGADO",null,null,null,null,null,null,null,null,null,{"$f":"M582","v":{"$error":"#REF!"}}]
[null,"033","BONO ACUERDO GUBERNATIVO 66-2000",null,null,null,null,null,null,null,null,null,{"$f":"M583","v":{"$error":"#REF!"}}]
[null,"201","I.G.S.S",null,null,null,null,null,null,null,null,null,null,null,null,null,{"$f":"Q584","v":{"$error":"#REF!"}}]
[null,"118","MONTEPÍO",null,null,null,null,null,null,null,null,null,null,null,null,null,{"$f":"Q585","v":0}]
[null,"211","RETENCIONES JUDICIALES",null,null,null,null,null,null,null,null,null,null,null,null,null,{"$f":"Q586","v":{"$error":"#REF!"}}]
[null,null,null,null,null,null,null,null,null,null,"Total  :",null,{"$f":"SUM(M621:O625)","v":{"$error":"#REF!"}},null,null,null,{"$f":"SUM(Q623:S625)","v":{"$error":"#REF!"}}]
[null,null,null,null,null,null,null,null,null,null,"Liquido :",null,{"$f":"M626-Q626","v":{"$error":"#REF!"}}]
[]
[]
[]
[]
[]
[]
[]
[]
[{"$f":"A597","v":"María José Ceballos López"},null,null,null,null,null,null,null,null,null,null,null,{"$f":"C615","v":{"$error":"#REF!"}}]
[{"$f":"A598","v":"Encargada de Nómina"},null,null,null,null,null,null,null,null,null,null,null,{"$f":"P616","v":{"$error":"#REF!"}}]
[{"$f":"A599","v":"AMSA "},null,null,null,null,null,null,null,null,null,null,null,"AMSA"]
[]
["GOBIERNO DE LA REPÚBLICA DE GUATEMALA"]
["AUTORIDAD PARA EL MANEJO SUSTENTABLE DE LA CUENCA Y DEL LAGO DE AMATITLÁN"]
[]
[]
[{"$f":"A573","v":"Boleta de Liquidación Mensual Renglón 031 \"Jornales\"   Correspondiente al mes de septiembre 2014"}]
[{"$f":"A574","v":"NÚMERO 45-2015"}]
[]
["Empleado:",null,{"$f":"#REF!","v":{"$error":"#REF!"}},null,null,null,null,null,null,null,"Certificación No.",null,null,{"$f":"N576+1","v":11},null,"Fecha:",null,{"$f":"R8","v":"2014-08-31"}]
["Contrato:",null,{"$f":"#REF!","v":{"$error":"#REF!"}},null,null,"Puesto Funcional:",null,null,{"$f":"#REF!","v":{"$error":"#REF!"}},null,null,null,"Titulo Jornal:",null,null,{"$f":"#REF!","v":{"$error":"#REF!"}}]
["Cuenta / Banco:",null,null,{"$f":"#REF!","v":{"$error":"#REF!"}},null,"Banco de Desarrollo Rural, S.A.",null,null,null,null,"Jornal Diario:",null,null,{"$f":"#REF!","v":{"$error":"#REF!"}},null,"Días Trabajados:",null,null,{"$f":"#REF!","v":{"$error":"#REF!"}}]
[]
[null,null,null,null,null,null,null,null,null,null,null,null,"Ingresos",null,null,null,"Deducciones "]
[]
[null,"031","DEVENGADO",null,null,null,null,null,null,null,null,null,{"$f":"#REF!","v":{"$error":"#REF!"}}]
[null,"033","BONO ACUERDO GUBERNATIVO 66-2000",null,null,null,null,null,null,null,null,null,{"$f":"#REF!","v":{"$error":"#REF!"}}]
[null,"201","I.G.S.S",null,null,null,null,null,null,null,null,null,null,null,null,null,{"$f":"#REF!","v":{"$error":"#REF!"}}]
[null,"118","MONTEPÍO",null,null,null,null,null,null,null,null,null,null,null,null,null,0]
[null,"211","RETENCIONES JUDICIALES",null,null,null,null,null,null,null,null,null,null,null,null,null,{"$f":"#REF!","v":{"$error":"#REF!"}}]
[null,null,null,null,null,null,null,null,null,null,"Total  :",null,{"$f":"SUM(M653:O657)","v":{"$error":"#REF!"}},null,null,null,{"$f":"SUM(Q655:S657)","v":{"$error":"#REF!"}}]
[null,null,null,null,null,null,null,null,null,null,"Liquido :",null,{"$f":"M658-Q658","v":{"$error":"#REF!"}}]
[]
[]
[]
[]
[]
[]
[]
[]
["María José Ceballos López",null,null,null,null,null,null,null,null,null,null,null,{"$f":"C647","v":{"$error":"#REF!"}}]
["Encargada de Nómina",null,null,null,null,null,null,null,null,null,null,null,{"$f":"P648","v":{"$error":"#REF!"}}]
["AMSA ",null,null,null,null,null,null,null,null,null,null,null,"AMSA"]
[]
[]
[]
[]
[]
[]
[]
[]
["GOBIERNO DE LA REPÚBLICA DE GUATEMALA"]
["AUTORIDAD PARA EL MANEJO SUSTENTABLE DE LA CUENCA Y DEL LAGO DE AMATITLÁN"]
[]
[]
[{"$f":"A644","v":"Boleta de Liquidación Mensual Renglón 031 \"Jornales\"   Correspondiente al mes de septiembre 2014"}]
[{"$f":"A645","v":"NÚMERO 45-2015"}]
[]
["Empleado:",null,{"$f":"C647","v":{"$error":"#REF!"}},null,null,null,null,null,null,null,"Certificación No.",null,null,{"$f":"N647","v":11},null,"Fecha:",null,{"$f":"R647","v":"2014-08-31"}]
["Contrato:",null,{"$f":"C648","v":{"$error":"#REF!"}},null,null,"Puesto Funcional:",null,null,{"$f":"I648","v":{"$error":"#REF!"}},null,null,null,"Titulo Jornal:",null,null,{"$f":"P648","v":{"$error":"#REF!"}}]
["Cuenta / Banco:",null,null,{"$f":"D649","v":{"$error":"#REF!"}},null,"Banco de Desarrollo Rural, S.A.",null,null,null,null,"Jornal Diario:",null,null,{"$f":"N649","v":{"$error":"#REF!"}},null,"Días Trabajados:",null,null,{"$f":"S649","v":{"$error":"#REF!"}}]
[]
[null,null,null,null,null,null,null,null,null,null,null,null,"Ingresos",null,null,null,"Deducciones "]
[]
[null,"031","DEVENGADO",null,null,null,null,null,null,null,null,null,{"$f":"M653","v":{"$error":"#REF!"}}]
[null,"033","BONO ACUERDO GUBERNATIVO 66-2000",null,null,null,null,null,null,null,null,null,{"$f":"M654","v":{"$error":"#REF!"}}]
[null,"201","I.G.S.S",null,null,null,null,null,null,null,null,null,null,null,null,null,{"$f":"Q655","v":{"$error":"#REF!"}}]
[null,"118","MONTEPÍO",null,null,null,null,null,null,null,null,null,null,null,null,null,{"$f":"Q656","v":0}]
[null,"211","RETENCIONES JUDICIALES",null,null,null,null,null,null,null,null,null,null,null,null,null,{"$f":"Q657","v":{"$error":"#REF!"}}]
[null,null,null,null,null,null,null,null,null,null,"Total  :",null,{"$f":"SUM(M692:O696)","v":{"$error":"#REF!"}},null,null,null,{"$f":"SUM(Q694:S696)","v":{"$error":"#REF!"}}]
[null,null,null,null,null,null,null,null,null,null,"Liquido :",null,{"$f":"M697-Q697","v":{"$error":"#REF!"}}]
[]
[]
[]
[]
[]
[]
[]
[]
[{"$f":"A668","v":"María José Ceballos López"},null,null,null,null,null,null,null,null,null,null,null,{"$f":"C686","v":{"$error":"#REF!"}}]
[{"$f":"A669","v":"Encargada de Nómina"},null,null,null,null,null,null,null,null,null,null,null,{"$f":"P687","v":{"$error":"#REF!"}}]
[{"$f":"A670","v":"AMSA "},null,null,null,null,null,null,null,null,null,null,null,"AMSA"]
[]
["GOBIERNO DE LA REPÚBLICA DE GUATEMALA"]
["AUTORIDAD PARA EL MANEJO SUSTENTABLE DE LA CUENCA Y DEL LAGO DE AMATITLÁN"]
[]
[]
[{"$f":"A644","v":"Boleta de Liquidación Mensual Renglón 031 \"Jornales\"   Correspondiente al mes de septiembre 2014"}]
[{"$f":"A645","v":"NÚMERO 45-2015"}]
[]
["Empleado:",null,{"$f":"#REF!","v":{"$error":"#REF!"}},null,null,null,null,null,null,null,"Certificación No.",null,null,{"$f":"N647+1","v":12},null,"Fecha:",null,{"$f":"R8","v":"2014-08-31"}]
["Contrato:",null,{"$f":"#REF!","v":{"$error":"#REF!"}},null,null,"Puesto Funcional:",null,null,{"$f":"#REF!","v":{"$error":"#REF!"}},null,null,null,"Titulo Jornal:",null,null,{"$f":"#REF!","v":{"$error":"#REF!"}}]
["Cuenta / Banco:",null,null,{"$f":"#REF!","v":{"$error":"#REF!"}},null,"Banco de Desarrollo Rural, S.A.",null,null,null,null,"Jornal Diario:",null,null,{"$f":"#REF!","v":{"$error":"#REF!"}},null,"Días Trabajados:",null,null,{"$f":"#REF!","v":{"$error":"#REF!"}}]
[]
[null,null,null,null,null,null,null,null,null,null,null,null,"Ingresos",null,null,null,"Deducciones "]
[]
[null,"031","DEVENGADO",null,null,null,null,null,null,null,null,null,{"$f":"#REF!","v":{"$error":"#REF!"}}]
[null,"033","BONO ACUERDO GUBERNATIVO 66-2000",null,null,null,null,null,null,null,null,null,{"$f":"#REF!","v":{"$error":"#REF!"}}]
[null,"201","I.G.S.S",null,null,null,null,null,null,null,null,null,null,null,null,null,{"$f":"#REF!","v":{"$error":"#REF!"}}]
[null,"118","MONTEPÍO",null,null,null,null,null,null,null,null,null,null,null,null,null,0]
[null,"211","RETENCIONES JUDICIALES",null,null,null,null,null,null,null,null,null,null,null,null,null,{"$f":"#REF!","v":{"$error":"#REF!"}}]
[null,null,null,null,null,null,null,null,null,null,"Total  :",null,{"$f":"SUM(M724:O728)","v":{"$error":"#REF!"}},null,null,null,{"$f":"SUM(Q726:S728)","v":{"$error":"#REF!"}}]
[null,null,null,null,null,null,null,null,null,null,"Liquido :",null,{"$f":"M729-Q729","v":{"$error":"#REF!"}}]
[]
[]
[]
[]
[]
[]
[]
[]
["María José Ceballos López",null,null,null,null,null,null,null,null,null,null,null,{"$f":"C718","v":{"$error":"#REF!"}}]
["Encargada de Nómina",null,null,null,null,null,null,null,null,null,null,null,{"$f":"P719","v":{"$error":"#REF!"}}]
["AMSA ",null,null,null,null,null,null,null,null,null,null,null,"AMSA"]
[]
[]
[]
[]
[]
[]
[]
[]
["GOBIERNO DE LA REPÚBLICA DE GUATEMALA"]
["AUTORIDAD PARA EL MANEJO SUSTENTABLE DE LA CUENCA Y DEL LAGO DE AMATITLÁN"]
[]
[]
[{"$f":"A715","v":"Boleta de Liquidación Mensual Renglón 031 \"Jornales\"   Correspondiente al mes de septiembre 2014"}]
[{"$f":"A716","v":"NÚMERO 45-2015"}]
[]
["Empleado:",null,{"$f":"C718","v":{"$error":"#REF!"}},null,null,null,null,null,null,null,"Certificación No.",null,null,{"$f":"N718","v":12},null,"Fecha:",null,{"$f":"R718","v":"2014-08-31"}]
["Contrato:",null,{"$f":"C719","v":{"$error":"#REF!"}},null,null,"Puesto Funcional:",null,null,{"$f":"I719","v":{"$error":"#REF!"}},null,null,null,"Titulo Jornal:",null,null,{"$f":"P719","v":{"$error":"#REF!"}}]
["Cuenta / Banco:",null,null,{"$f":"D720","v":{"$error":"#REF!"}},null,"Banco de Desarrollo Rural, S.A.",null,null,null,null,"Jornal Diario:",null,null,{"$f":"N720","v":{"$error":"#REF!"}},null,"Días Trabajados:",null,null,{"$f":"S720","v":{"$error":"#REF!"}}]
[]
[null,null,null,null,null,null,null,null,null,null,null,null,"Ingresos",null,null,null,"Deducciones "]
[]
[null,"031","DEVENGADO",null,null,null,null,null,null,null,null,null,{"$f":"M724","v":{"$error":"#REF!"}}]
[null,"033","BONO ACUERDO GUBERNATIVO 66-2000",null,null,null,null,null,null,null,null,null,{"$f":"M725","v":{"$error":"#REF!"}}]
[null,"201","I.G.S.S",null,null,null,null,null,null,null,null,null,null,null,null,null,{"$f":"Q726","v":{"$error":"#REF!"}}]
[null,"118","MONTEPÍO",null,null,null,null,null,null,null,null,null,null,null,null,null,{"$f":"Q727","v":0}]
[null,"211","RETENCIONES JUDICIALES",null,null,null,null,null,null,null,null,null,null,null,null,null,{"$f":"Q728","v":{"$error":"#REF!"}}]
[null,null,null,null,null,null,null,null,null,null,"Total  :",null,{"$f":"SUM(M763:O767)","v":{"$error":"#REF!"}},null,null,null,{"$f":"SUM(Q765:S767)","v":{"$error":"#REF!"}}]
[null,null,null,null,null,null,null,null,null,null,"Liquido :",null,{"$f":"M768-Q768","v":{"$error":"#REF!"}}]
[]
[]
[]
[]
[]
[]
[]
[]
[{"$f":"A739","v":"María José Ceballos López"},null,null,null,null,null,null,null,null,null,null,null,{"$f":"C757","v":{"$error":"#REF!"}}]
[{"$f":"A740","v":"Encargada de Nómina"},null,null,null,null,null,null,null,null,null,null,null,{"$f":"P758","v":{"$error":"#REF!"}}]
[{"$f":"A741","v":"AMSA "},null,null,null,null,null,null,null,null,null,null,null,"AMSA"]
[]
["GOBIERNO DE LA REPÚBLICA DE GUATEMALA"]
["AUTORIDAD PARA EL MANEJO SUSTENTABLE DE LA CUENCA Y DEL LAGO DE AMATITLÁN"]
[]
[]
[{"$f":"A715","v":"Boleta de Liquidación Mensual Renglón 031 \"Jornales\"   Correspondiente al mes de septiembre 2014"}]
[{"$f":"A716","v":"NÚMERO 45-2015"}]
[]
["Empleado:",null,{"$f":"#REF!","v":{"$error":"#REF!"}},null,null,null,null,null,null,null,"Certificación No.",null,null,{"$f":"N718+1","v":13},null,"Fecha:",null,{"$f":"R8","v":"2014-08-31"}]
["Contrato:",null,{"$f":"#REF!","v":{"$error":"#REF!"}},null,null,"Puesto Funcional:",null,null,{"$f":"#REF!","v":{"$error":"#REF!"}},null,null,null,"Titulo Jornal:",null,null,{"$f":"#REF!","v":{"$error":"#REF!"}}]
["Cuenta / Banco:",null,null,{"$f":"#REF!","v":{"$error":"#REF!"}},null,"Banco de Desarrollo Rural, S.A.",null,null,null,null,"Jornal Diario:",null,null,{"$f":"#REF!","v":{"$error":"#REF!"}},null,"Días Trabajados:",null,null,{"$f":"#REF!","v":{"$error":"#REF!"}}]
[]
[null,null,null,null,null,null,null,null,null,null,null,null,"Ingresos",null,null,null,"Deducciones "]
[]
[null,"031","DEVENGADO",null,null,null,null,null,null,null,null,null,{"$f":"#REF!","v":{"$error":"#REF!"}}]
[null,"033","BONO ACUERDO GUBERNATIVO 66-2000",null,null,null,null,null,null,null,null,null,{"$f":"#REF!","v":{"$error":"#REF!"}}]
[null,"201","I.G.S.S",null,null,null,null,null,null,null,null,null,null,null,null,null,{"$f":"#REF!","v":{"$error":"#REF!"}}]
[null,"118","MONTEPÍO",null,null,null,null,null,null,null,null,null,null,null,null,null,0]
[null,"211","RETENCIONES JUDICIALES",null,null,null,null,null,null,null,null,null,null,null,null,null,{"$f":"#REF!","v":{"$error":"#REF!"}}]
[null,null,null,null,null,null,null,null,null,null,"Total  :",null,{"$f":"SUM(M795:O799)","v":{"$error":"#REF!"}},null,null,null,{"$f":"SUM(Q797:S799)","v":{"$error":"#REF!"}}]
[null,null,null,null,null,null,null,null,null,null,"Liquido :",null,{"$f":"M800-Q800","v":{"$error":"#REF!"}}]
[]
[]
[]
[]
[]
[]
[]
[]
["María José Ceballos López",null,null,null,null,null,null,null,null,null,null,null,{"$f":"C789","v":{"$error":"#REF!"}}]
["Encargada de Nómina",null,null,null,null,null,null,null,null,null,null,null,{"$f":"P790","v":{"$error":"#REF!"}}]
["AMSA ",null,null,null,null,null,null,null,null,null,null,null,"AMSA"]
[]
[]
[]
[]
[]
[]
[]
[]
["GOBIERNO DE LA REPÚBLICA DE GUATEMALA"]
["AUTORIDAD PARA EL MANEJO SUSTENTABLE DE LA CUENCA Y DEL LAGO DE AMATITLÁN"]
[]
[]
[{"$f":"A786","v":"Boleta de Liquidación Mensual Renglón 031 \"Jornales\"   Correspondiente al mes de septiembre 2014"}]
[{"$f":"A787","v":"NÚMERO 45-2015"}]
[]
["Empleado:",null,{"$f":"C789","v":{"$error":"#REF!"}},null,null,null,null,null,null,null,"Certificación No.",null,null,{"$f":"N789","v":13},null,"Fecha:",null,{"$f":"R789","v":"2014-08-31"}]
["Contrato:",null,{"$f":"C790","v":{"$error":"#REF!"}},null,null,"Puesto Funcional:",null,null,{"$f":"I790","v":{"$error":"#REF!"}},null,null,null,"Titulo Jornal:",null,null,{"$f":"P790","v":{"$error":"#REF!"}}]
["Cuenta / Banco:",null,null,{"$f":"D791","v":{"$error":"#REF!"}},null,"Banco de Desarrollo Rural, S.A.",null,null,null,null,"Jornal Diario:",null,null,{"$f":"N791","v":{"$error":"#REF!"}},null,"Días Trabajados:",null,null,{"$f":"S791","v":{"$error":"#REF!"}}]
[]
[null,null,null,null,null,null,null,null,null,null,null,null,"Ingresos",null,null,null,"Deducciones "]
[]
[null,"031","DEVENGADO",null,null,null,null,null,null,null,null,null,{"$f":"M795","v":{"$error":"#REF!"}}]
[null,"033","BONO ACUERDO GUBERNATIVO 66-2000",null,null,null,null,null,null,null,null,null,{"$f":"M796","v":{"$error":"#REF!"}}]
[null,"201","I.G.S.S",null,null,null,null,null,null,null,null,null,null,null,null,null,{"$f":"Q797","v":{"$error":"#REF!"}}]
[null,"118","MONTEPÍO",null,null,null,null,null,null,null,null,null,null,null,null,null,{"$f":"Q798","v":0}]
[null,"211","RETENCIONES JUDICIALES",null,null,null,null,null,null,null,null,null,null,null,null,null,{"$f":"Q799","v":{"$error":"#REF!"}}]
[null,null,null,null,null,null,null,null,null,null,"Total  :",null,{"$f":"SUM(M834:O838)","v":{"$error":"#REF!"}},null,null,null,{"$f":"SUM(Q836:S838)","v":{"$error":"#REF!"}}]
[null,null,null,null,null,null,null,null,null,null,"Liquido :",null,{"$f":"M839-Q839","v":{"$error":"#REF!"}}]
[]
[]
[]
[]
[]
[]
[]
[]
[{"$f":"A810","v":"María José Ceballos López"},null,null,null,null,null,null,null,null,null,null,null,{"$f":"C828","v":{"$error":"#REF!"}}]
[{"$f":"A811","v":"Encargada de Nómina"},null,null,null,null,null,null,null,null,null,null,null,{"$f":"P829","v":{"$error":"#REF!"}}]
[{"$f":"A812","v":"AMSA "},null,null,null,null,null,null,null,null,null,null,null,"AMSA"]
[]
["GOBIERNO DE LA REPÚBLICA DE GUATEMALA"]
["AUTORIDAD PARA EL MANEJO SUSTENTABLE DE LA CUENCA Y DEL LAGO DE AMATITLÁN"]
[]
[]
[{"$f":"A5","v":"Boleta de Liquidación Mensual Renglón 031 \"Jornales\"   Correspondiente al mes de septiembre 2014"}]
[{"$f":"A787","v":"NÚMERO 45-2015"}]
[]
["Empleado:",null,{"$f":"#REF!","v":{"$error":"#REF!"}},null,null,null,null,null,null,null,"Certificación No.",null,null,{"$f":"N789+1","v":14},null,"Fecha:",null,{"$f":"R8","v":"2014-08-31"}]
["Contrato:",null,{"$f":"#REF!","v":{"$error":"#REF!"}},null,null,"Puesto Funcional:",null,null,{"$f":"#REF!","v":{"$error":"#REF!"}},null,null,null,"Titulo Jornal:",null,null,{"$f":"#REF!","v":{"$error":"#REF!"}}]
["Cuenta / Banco:",null,null,{"$f":"#REF!","v":{"$error":"#REF!"}},null,"Banco de Desarrollo Rural, S.A.",null,null,null,null,"Jornal Diario:",null,null,{"$f":"#REF!","v":{"$error":"#REF!"}},null,"Días Trabajados:",null,null,{"$f":"#REF!","v":{"$error":"#REF!"}}]
[]
[null,null,null,null,null,null,null,null,null,null,null,null,"Ingresos",null,null,null,"Deducciones "]
[]
[null,"031","DEVENGADO",null,null,null,null,null,null,null,null,null,{"$f":"#REF!","v":{"$error":"#REF!"}}]
[null,"033","BONO ACUERDO GUBERNATIVO 66-2000",null,null,null,null,null,null,null,null,null,{"$f":"#REF!","v":{"$error":"#REF!"}}]
[null,"201","I.G.S.S",null,null,null,null,null,null,null,null,null,null,null,null,null,{"$f":"#REF!","v":{"$error":"#REF!"}}]
[null,"118","MONTEPÍO",null,null,null,null,null,null,null,null,null,null,null,null,null,0]
[null,"211","RETENCIONES JUDICIALES",null,null,null,null,null,null,null,null,null,null,null,null,null,{"$f":"#REF!","v":{"$error":"#REF!"}}]
[null,null,null,null,null,null,null,null,null,null,"Total  :",null,{"$f":"SUM(M866:O870)","v":{"$error":"#REF!"}},null,null,null,{"$f":"SUM(Q868:S870)","v":{"$error":"#REF!"}}]
[null,null,null,null,null,null,null,null,null,null,"Liquido :",null,{"$f":"M871-Q871","v":{"$error":"#REF!"}}]
[]
[]
[]
[]
[]
[]
[]
[]
["María José Ceballos López",null,null,null,null,null,null,null,null,null,null,null,{"$f":"C860","v":{"$error":"#REF!"}}]
["Encargada de Nómina",null,null,null,null,null,null,null,null,null,null,null,{"$f":"P861","v":{"$error":"#REF!"}}]
["AMSA ",null,null,null,null,null,null,null,null,null,null,null,"AMSA"]
[]
[]
[]
[]
[]
[]
[]
[]
["GOBIERNO DE LA REPÚBLICA DE GUATEMALA"]
["AUTORIDAD PARA EL MANEJO SUSTENTABLE DE LA CUENCA Y DEL LAGO DE AMATITLÁN"]
[]
[]
[{"$f":"A857","v":"Boleta de Liquidación Mensual Renglón 031 \"Jornales\"   Correspondiente al mes de septiembre 2014"}]
[{"$f":"A858","v":"NÚMERO 45-2015"}]
[]
["Empleado:",null,{"$f":"C860","v":{"$error":"#REF!"}},null,null,null,null,null,null,null,"Certificación No.",null,null,{"$f":"N860","v":14},null,"Fecha:",null,{"$f":"R860","v":"2014-08-31"}]
["Contrato:",null,{"$f":"C861","v":{"$error":"#REF!"}},null,null,"Puesto Funcional:",null,null,{"$f":"I861","v":{"$error":"#REF!"}},null,null,null,"Titulo Jornal:",null,null,{"$f":"P861","v":{"$error":"#REF!"}}]
["Cuenta / Banco:",null,null,{"$f":"D862","v":{"$error":"#REF!"}},null,"Banco de Desarrollo Rural, S.A.",null,null,null,null,"Jornal Diario:",null,null,{"$f":"N862","v":{"$error":"#REF!"}},null,"Días Trabajados:",null,null,{"$f":"S862","v":{"$error":"#REF!"}}]
[]
[null,null,null,null,null,null,null,null,null,null,null,null,"Ingresos",null,null,null,"Deducciones "]
[]
[null,"031","DEVENGADO",null,null,null,null,null,null,null,null,null,{"$f":"M866","v":{"$error":"#REF!"}}]
[null,"033","BONO ACUERDO GUBERNATIVO 66-2000",null,null,null,null,null,null,null,null,null,{"$f":"M867","v":{"$error":"#REF!"}}]
[null,"201","I.G.S.S",null,null,null,null,null,null,null,null,null,null,null,null,null,{"$f":"Q868","v":{"$error":"#REF!"}}]
[null,"118","MONTEPÍO",null,null,null,null,null,null,null,null,null,null,null,null,null,{"$f":"Q869","v":0}]
[null,"211","RETENCIONES JUDICIALES",null,null,null,null,null,null,null,null,null,null,null,null,null,{"$f":"Q870","v":{"$error":"#REF!"}}]
[null,null,null,null,null,null,null,null,null,null,"Total  :",null,{"$f":"SUM(M905:O909)","v":{"$error":"#REF!"}},null,null,null,{"$f":"SUM(Q907:S909)","v":{"$error":"#REF!"}}]
[null,null,null,null,null,null,null,null,null,null,"Liquido :",null,{"$f":"M910-Q910","v":{"$error":"#REF!"}}]
[]
[]
[]
[]
[]
[]
[]
[]
[{"$f":"A881","v":"María José Ceballos López"},null,null,null,null,null,null,null,null,null,null,null,{"$f":"C899","v":{"$error":"#REF!"}}]
[{"$f":"A882","v":"Encargada de Nómina"},null,null,null,null,null,null,null,null,null,null,null,{"$f":"P900","v":{"$error":"#REF!"}}]
[{"$f":"A883","v":"AMSA "},null,null,null,null,null,null,null,null,null,null,null,"AMSA"]
[]
["GOBIERNO DE LA REPÚBLICA DE GUATEMALA"]
["AUTORIDAD PARA EL MANEJO SUSTENTABLE DE LA CUENCA Y DEL LAGO DE AMATITLÁN"]
[]
[]
["Boleta de Liquidación Mensual Renglón 031 \"Jornales\"   Correspondiente al mes de octubre 2015"]
[{"$f":"#REF!","v":{"$error":"#REF!"}}]
[]
["Empleado:",null,{"$f":"#REF!","v":{"$error":"#REF!"}},null,null,null,null,null,null,null,"Certificación No.",null,null,{"$f":"N860+1","v":15},null,"Fecha:",null,"2015-10-31"]
["Contrato:",null,{"$f":"#REF!","v":{"$error":"#REF!"}},null,null,"Puesto Funcional:",null,null,{"$f":"#REF!","v":{"$error":"#REF!"}},null,null,null,"Titulo Jornal:",null,null,{"$f":"#REF!","v":{"$error":"#REF!"}}]
["Cuenta / Banco:",null,null,{"$f":"#REF!","v":{"$error":"#REF!"}},null,"Banco de Desarrollo Rural, S.A.",null,null,null,null,"Jornal Diario:",null,null,{"$f":"#REF!","v":{"$error":"#REF!"}},null,"Días Trabajados:",null,null,{"$f":"#REF!","v":{"$error":"#REF!"}}]
[]
[null,null,null,null,null,null,null,null,null,null,null,null,"Ingresos",null,null,null,"Deducciones "]
[]
[null,"031","DEVENGADO",null,null,null,null,null,null,null,null,null,{"$f":"#REF!","v":{"$error":"#REF!"}}]
[null,"033","BONO ACUERDO GUBERNATIVO 66-2000",null,null,null,null,null,null,null,null,null,{"$f":"#REF!","v":{"$error":"#REF!"}}]
[null,"201","I.G.S.S",null,null,null,null,null,null,null,null,null,null,null,null,null,{"$f":"#REF!","v":{"$error":"#REF!"}}]
[null,"118","MONTEPÍO",null,null,null,null,null,null,null,null,null,null,null,null,null,0]
[null,"211","RETENCIONES JUDICIALES",null,null,null,null,null,null,null,null,null,null,null,null,null,{"$f":"#REF!","v":{"$error":"#REF!"}}]
[null,null,null,null,null,null,null,null,null,null,"Total  :",null,{"$f":"SUM(M937:O941)","v":{"$error":"#REF!"}},null,null,null,{"$f":"SUM(Q939:S941)","v":{"$error":"#REF!"}}]
[null,null,null,null,null,null,null,null,null,null,"Liquido :",null,{"$f":"M942-Q942","v":{"$error":"#REF!"}}]
[]
[]
[]
[]
[]
[]
[]
[]
["Jonnathan René Pernillo Salazar",null,null,null,null,null,null,null,null,null,null,null,{"$f":"C931","v":{"$error":"#REF!"}}]
["Encargado de Nómina",null,null,null,null,null,null,null,null,null,null,null,{"$f":"P932","v":{"$error":"#REF!"}}]
["AMSA ",null,null,null,null,null,null,null,null,null,null,null,"AMSA"]
[]
[]
[]
[]
[]
[]
[]
[]
["GOBIERNO DE LA REPÚBLICA DE GUATEMALA"]
["AUTORIDAD PARA EL MANEJO SUSTENTABLE DE LA CUENCA Y DEL LAGO DE AMATITLÁN"]
[]
[]
["Boleta de Liquidación Mensual Renglón 031 \"Jornales\"   Correspondiente al mes de septiembre 2015"]
[" NÚMERO 52-2015"]
[]
["Empleado:",null,{"$f":"C931","v":{"$error":"#REF!"}},null,null,null,null,null,null,null,"Certificación No.",null,null,{"$f":"N931","v":15},null,"Fecha:",null,"2015-09-30"]
["Contrato:",null,{"$f":"C932","v":{"$error":"#REF!"}},null,null,"Puesto Funcional:",null,null,{"$f":"I932","v":{"$error":"#REF!"}},null,null,null,"Titulo Jornal:",null,null,{"$f":"P932","v":{"$error":"#REF!"}}]
["Cuenta / Banco:",null,null,{"$f":"D933","v":{"$error":"#REF!"}},null,"Banco de Desarrollo Rural, S.A.",null,null,null,null,"Jornal Diario:",null,null,{"$f":"N933","v":{"$error":"#REF!"}},null,"Días Trabajados:",null,null,30]
[]
[null,null,null,null,null,null,null,null,null,null,null,null,"Ingresos",null,null,null,"Deducciones "]
[]
[null,"031","DEVENGADO",null,null,null,null,null,null,null,null,null,{"$f":"84.43*S972","v":2532.9}]
[null,"033","BONO ACUERDO GUBERNATIVO 66-2000",null,null,null,null,null,null,null,null,null,{"$f":"M938","v":{"$error":"#REF!"}}]
[null,"201","I.G.S.S",null,null,null,null,null,null,null,null,null,null,null,null,null,{"$f":"ROUND(M976*4.83%,2)","v":122.34}]
[null,"118","MONTEPÍO",null,null,null,null,null,null,null,null,null,null,null,null,null,{"$f":"Q940","v":0}]
[null,"211","RETENCIONES JUDICIALES",null,null,null,null,null,null,null,null,null,null,null,null,null,{"$f":"Q941","v":{"$error":"#REF!"}}]
[null,null,null,null,null,null,null,null,null,null,"Total  :",null,{"$f":"SUM(M976:O980)","v":{"$error":"#REF!"}},null,null,null,{"$f":"SUM(Q978:S980)","v":{"$error":"#REF!"}}]
[null,null,null,null,null,null,null,null,null,null,"Liquido :",null,{"$f":"M981-Q981","v":{"$error":"#REF!"}}]
[]
[]
[]
[]
[]
[]
[]
[]
[{"$f":"A952","v":"Jonnathan René Pernillo Salazar"},null,null,null,null,null,null,null,null,null,null,null,{"$f":"C970","v":{"$error":"#REF!"}}]
[{"$f":"A953","v":"Encargado de Nómina"},null,null,null,null,null,null,null,null,null,null,null,{"$f":"P971","v":{"$error":"#REF!"}}]
[{"$f":"A954","v":"AMSA "},null,null,null,null,null,null,null,null,null,null,null,"AMSA"]
[]
["GOBIERNO DE LA REPÚBLICA DE GUATEMALA"]
["AUTORIDAD PARA EL MANEJO SUSTENTABLE DE LA CUENCA Y DEL LAGO DE AMATITLÁN"]
[]
[]
[{"$f":"A928","v":"Boleta de Liquidación Mensual Renglón 031 \"Jornales\"   Correspondiente al mes de octubre 2015"}]
[{"$f":"A929","v":{"$error":"#REF!"}}]
[]
["Empleado:",null,{"$f":"#REF!","v":{"$error":"#REF!"}},null,null,null,null,null,null,null,"Certificación No.",null,null,{"$f":"N931+1","v":16},null,"Fecha:",null,{"$f":"R8","v":"2014-08-31"}]
["Contrato:",null,{"$f":"#REF!","v":{"$error":"#REF!"}},null,null,"Puesto Funcional:",null,null,{"$f":"#REF!","v":{"$error":"#REF!"}},null,null,null,"Titulo Jornal:",null,null,{"$f":"#REF!","v":{"$error":"#REF!"}}]
["Cuenta / Banco:",null,null,{"$f":"#REF!","v":{"$error":"#REF!"}},null,"Banco de Desarrollo Rural, S.A.",null,null,null,null,"Jornal Diario:",null,null,{"$f":"#REF!","v":{"$error":"#REF!"}},null,"Días Trabajados:",null,null,{"$f":"#REF!","v":{"$error":"#REF!"}}]
[]
[null,null,null,null,null,null,null,null,null,null,null,null,"Ingresos",null,null,null,"Deducciones "]
[]
[null,"031","DEVENGADO",null,null,null,null,null,null,null,null,null,{"$f":"#REF!","v":{"$error":"#REF!"}}]
[null,"033","BONO ACUERDO GUBERNATIVO 66-2000",null,null,null,null,null,null,null,null,null,{"$f":"#REF!","v":{"$error":"#REF!"}}]
[null,"201","I.G.S.S",null,null,null,null,null,null,null,null,null,null,null,null,null,{"$f":"#REF!","v":{"$error":"#REF!"}}]
[null,"118","MONTEPÍO",null,null,null,null,null,null,null,null,null,null,null,null,null,0]
[null,"211","RETENCIONES JUDICIALES",null,null,null,null,null,null,null,null,null,null,null,null,null,{"$f":"#REF!","v":{"$error":"#REF!"}}]
[null,null,null,null,null,null,null,null,null,null,"Total  :",null,{"$f":"SUM(M1008:O1012)","v":{"$error":"#REF!"}},null,null,null,{"$f":"SUM(Q1010:S1012)","v":{"$error":"#REF!"}}]
[null,null,null,null,null,null,null,null,null,null,"Liquido :",null,{"$f":"M1013-Q1013","v":{"$error":"#REF!"}}]
[]
[]
[]
[]
[]
[]
[]
[]
["María José Ceballos López",null,null,null,null,null,null,null,null,null,null,null,{"$f":"C1002","v":{"$error":"#REF!"}}]
["Encargada de Nómina",null,null,null,null,null,null,null,null,null,null,null,{"$f":"P1003","v":{"$error":"#REF!"}}]
["AMSA ",null,null,null,null,null,null,null,null,null,null,null,"AMSA"]
[]
[]
[]
[]
[]
[]
[]
[]
["GOBIERNO DE LA REPÚBLICA DE GUATEMALA"]
["AUTORIDAD PARA EL MANEJO SUSTENTABLE DE LA CUENCA Y DEL LAGO DE AMATITLÁN"]
[]
[]
[{"$f":"A999","v":"Boleta de Liquidación Mensual Renglón 031 \"Jornales\"   Correspondiente al mes de octubre 2015"}]
[{"$f":"A1000","v":{"$error":"#REF!"}}]
[]
["Empleado:",null,{"$f":"C1002","v":{"$error":"#REF!"}},null,null,null,null,null,null,null,"Certificación No.",null,null,{"$f":"N1002","v":16},null,"Fecha:",null,{"$f":"R1002","v":"2014-08-31"}]
["Contrato:",null,{"$f":"C1003","v":{"$error":"#REF!"}},null,null,"Puesto Funcional:",null,null,{"$f":"I1003","v":{"$error":"#REF!"}},null,null,null,"Titulo Jornal:",null,null,{"$f":"P1003","v":{"$error":"#REF!"}}]
["Cuenta / Banco:",null,null,{"$f":"D1004","v":{"$error":"#REF!"}},null,"Banco de Desarrollo Rural, S.A.",null,null,null,null,"Jornal Diario:",null,null,{"$f":"N1004","v":{"$error":"#REF!"}},null,"Días Trabajados:",null,null,{"$f":"S1004","v":{"$error":"#REF!"}}]
[]
[null,null,null,null,null,null,null,null,null,null,null,null,"Ingresos",null,null,null,"Deducciones "]
[]
[null,"031","DEVENGADO",null,null,null,null,null,null,null,null,null,{"$f":"M1008","v":{"$error":"#REF!"}}]
[null,"033","BONO ACUERDO GUBERNATIVO 66-2000",null,null,null,null,null,null,null,null,null,{"$f":"M1009","v":{"$error":"#REF!"}}]
[null,"201","I.G.S.S",null,null,null,null,null,null,null,null,null,null,null,null,null,{"$f":"Q1010","v":{"$error":"#REF!"}}]
[null,"118","MONTEPÍO",null,null,null,null,null,null,null,null,null,null,null,null,null,{"$f":"Q1011","v":0}]
[null,"211","RETENCIONES JUDICIALES",null,null,null,null,null,null,null,null,null,null,null,null,null,{"$f":"Q1012","v":{"$error":"#REF!"}}]
[null,null,null,null,null,null,null,null,null,null,"Total  :",null,{"$f":"SUM(M1047:O1051)","v":{"$error":"#REF!"}},null,null,null,{"$f":"SUM(Q1049:S1051)","v":{"$error":"#REF!"}}]
[null,null,null,null,null,null,null,null,null,null,"Liquido :",null,{"$f":"M1052-Q1052","v":{"$error":"#REF!"}}]
[]
[]
[]
[]
[]
[]
[]
[]
[{"$f":"A1023","v":"María José Ceballos López"},null,null,null,null,null,null,null,null,null,null,null,{"$f":"C1041","v":{"$error":"#REF!"}}]
[{"$f":"A1024","v":"Encargada de Nómina"},null,null,null,null,null,null,null,null,null,null,null,{"$f":"P1042","v":{"$error":"#REF!"}}]
[{"$f":"A1025","v":"AMSA "},null,null,null,null,null,null,null,null,null,null,null,"AMSA"]
[]
["GOBIERNO DE LA REPÚBLICA DE GUATEMALA"]
["AUTORIDAD PARA EL MANEJO SUSTENTABLE DE LA CUENCA Y DEL LAGO DE AMATITLÁN"]
[]
[]
[{"$f":"A999","v":"Boleta de Liquidación Mensual Renglón 031 \"Jornales\"   Correspondiente al mes de octubre 2015"}]
[{"$f":"A1000","v":{"$error":"#REF!"}}]
[]
["Empleado:",null,{"$f":"#REF!","v":{"$error":"#REF!"}},null,null,null,null,null,null,null,"Certificación No.",null,null,{"$f":"N1002+1","v":17},null,"Fecha:",null,{"$f":"R8","v":"2014-08-31"}]
["Contrato:",null,{"$f":"#REF!","v":{"$error":"#REF!"}},null,null,"Puesto Funcional:",null,null,{"$f":"#REF!","v":{"$error":"#REF!"}},null,null,null,"Titulo Jornal:",null,null,{"$f":"#REF!","v":{"$error":"#REF!"}}]
["Cuenta / Banco:",null,null,{"$f":"#REF!","v":{"$error":"#REF!"}},null,"Banco de Desarrollo Rural, S.A.",null,null,null,null,"Jornal Diario:",null,null,{"$f":"#REF!","v":{"$error":"#REF!"}},null,"Días Trabajados:",null,null,{"$f":"#REF!","v":{"$error":"#REF!"}}]
[]
[null,null,null,null,null,null,null,null,null,null,null,null,"Ingresos",null,null,null,"Deducciones "]
[]
[null,"031","DEVENGADO",null,null,null,null,null,null,null,null,null,{"$f":"#REF!","v":{"$error":"#REF!"}}]
[null,"033","BONO ACUERDO GUBERNATIVO 66-2000",null,null,null,null,null,null,null,null,null,{"$f":"#REF!","v":{"$error":"#REF!"}}]
[null,"201","I.G.S.S",null,null,null,null,null,null,null,null,null,null,null,null,null,{"$f":"#REF!","v":{"$error":"#REF!"}}]
[null,"118","MONTEPÍO",null,null,null,null,null,null,null,null,null,null,null,null,null,0]
[null,"211","RETENCIONES JUDICIALES",null,null,null,null,null,null,null,null,null,null,null,null,null,{"$f":"#REF!","v":{"$error":"#REF!"}}]
[null,null,null,null,null,null,null,null,null,null,"Total  :",null,{"$f":"SUM(M1079:O1083)","v":{"$error":"#REF!"}},null,null,null,{"$f":"SUM(Q1081:S1083)","v":{"$error":"#REF!"}}]
[null,null,null,null,null,null,null,null,null,null,"Liquido :",null,{"$f":"M1084-Q1084","v":{"$error":"#REF!"}}]
[]
[]
[]
[]
[]
[]
[]
[]
["María José Ceballos López",null,null,null,null,null,null,null,null,null,null,null,{"$f":"C1073","v":{"$error":"#REF!"}}]
["Encargada de Nómina",null,null,null,null,null,null,null,null,null,null,null,{"$f":"P1074","v":{"$error":"#REF!"}}]
["AMSA ",null,null,null,null,null,null,null,null,null,null,null,"AMSA"]
[]
[]
[]
[]
[]
[]
[]
[]
["GOBIERNO DE LA REPÚBLICA DE GUATEMALA"]
["AUTORIDAD PARA EL MANEJO SUSTENTABLE DE LA CUENCA Y DEL LAGO DE AMATITLÁN"]
[]
[]
[{"$f":"A1070","v":"Boleta de Liquidación Mensual Renglón 031 \"Jornales\"   Correspondiente al mes de octubre 2015"}]
[{"$f":"A1071","v":{"$error":"#REF!"}}]
[]
["Empleado:",null,{"$f":"C1073","v":{"$error":"#REF!"}},null,null,null,null,null,null,null,"Certificación No.",null,null,{"$f":"N1073","v":17},null,"Fecha:",null,{"$f":"R1073","v":"2014-08-31"}]
["Contrato:",null,{"$f":"C1074","v":{"$error":"#REF!"}},null,null,"Puesto Funcional:",null,null,{"$f":"I1074","v":{"$error":"#REF!"}},null,null,null,"Titulo Jornal:",null,null,{"$f":"P1074","v":{"$error":"#REF!"}}]
["Cuenta / Banco:",null,null,{"$f":"D1075","v":{"$error":"#REF!"}},null,"Banco de Desarrollo Rural, S.A.",null,null,null,null,"Jornal Diario:",null,null,{"$f":"N1075","v":{"$error":"#REF!"}},null,"Días Trabajados:",null,null,{"$f":"S1075","v":{"$error":"#REF!"}}]
[]
[null,null,null,null,null,null,null,null,null,null,null,null,"Ingresos",null,null,null,"Deducciones "]
[]
[null,"031","DEVENGADO",null,null,null,null,null,null,null,null,null,{"$f":"M1079","v":{"$error":"#REF!"}}]
[null,"033","BONO ACUERDO GUBERNATIVO 66-2000",null,null,null,null,null,null,null,null,null,{"$f":"M1080","v":{"$error":"#REF!"}}]
[null,"201","I.G.S.S",null,null,null,null,null,null,null,null,null,null,null,null,null,{"$f":"Q1081","v":{"$error":"#REF!"}}]
[null,"118","MONTEPÍO",null,null,null,null,null,null,null,null,null,null,null,null,null,{"$f":"Q1082","v":0}]
[null,"211","RETENCIONES JUDICIALES",null,null,null,null,null,null,null,null,null,null,null,null,null,{"$f":"Q1083","v":{"$error":"#REF!"}}]
[null,null,null,null,null,null,null,null,null,null,"Total  :",null,{"$f":"SUM(M1118:O1122)","v":{"$error":"#REF!"}},null,null,null,{"$f":"SUM(Q1120:S1122)","v":{"$error":"#REF!"}}]
[null,null,null,null,null,null,null,null,null,null,"Liquido :",null,{"$f":"M1123-Q1123","v":{"$error":"#REF!"}}]
[]
[]
[]
[]
[]
[]
[]
[]
[{"$f":"A1094","v":"María José Ceballos López"},null,null,null,null,null,null,null,null,null,null,null,{"$f":"C1112","v":{"$error":"#REF!"}}]
[{"$f":"A1095","v":"Encargada de Nómina"},null,null,null,null,null,null,null,null,null,null,null,{"$f":"P1113","v":{"$error":"#REF!"}}]
[{"$f":"A1096","v":"AMSA "},null,null,null,null,null,null,null,null,null,null,null,"AMSA"]
[]
["GOBIERNO DE LA REPÚBLICA DE GUATEMALA"]
["AUTORIDAD PARA EL MANEJO SUSTENTABLE DE LA CUENCA Y DEL LAGO DE AMATITLÁN"]
[]
[]
[{"$f":"A1070","v":"Boleta de Liquidación Mensual Renglón 031 \"Jornales\"   Correspondiente al mes de octubre 2015"}]
[{"$f":"A1071","v":{"$error":"#REF!"}}]
[]
["Empleado:",null,{"$f":"#REF!","v":{"$error":"#REF!"}},null,null,null,null,null,null,null,"Certificación No.",null,null,{"$f":"N1073+1","v":18},null,"Fecha:",null,{"$f":"R79","v":"2014-08-31"}]
["Contrato:",null,{"$f":"#REF!","v":{"$error":"#REF!"}},null,null,"Puesto Funcional:",null,null,{"$f":"#REF!","v":{"$error":"#REF!"}},null,null,null,"Titulo Jornal:",null,null,{"$f":"#REF!","v":{"$error":"#REF!"}}]
["Cuenta / Banco:",null,null,{"$f":"#REF!","v":{"$error":"#REF!"}},null,"Banco de Desarrollo Rural, S.A.",null,null,null,null,"Jornal Diario:",null,null,{"$f":"#REF!","v":{"$error":"#REF!"}},null,"Días Trabajados:",null,null,{"$f":"#REF!","v":{"$error":"#REF!"}}]
[]
[null,null,null,null,null,null,null,null,null,null,null,null,"Ingresos",null,null,null,"Deducciones "]
[]
[null,"031","DEVENGADO",null,null,null,null,null,null,null,null,null,{"$f":"#REF!","v":{"$error":"#REF!"}}]
[null,"033","BONO ACUERDO GUBERNATIVO 66-2000",null,null,null,null,null,null,null,null,null,{"$f":"#REF!","v":{"$error":"#REF!"}}]
[null,"201","I.G.S.S",null,null,null,null,null,null,null,null,null,null,null,null,null,{"$f":"#REF!","v":{"$error":"#REF!"}}]
[null,"118","MONTEPÍO",null,null,null,null,null,null,null,null,null,null,null,null,null,0]
[null,"211","RETENCIONES JUDICIALES",null,null,null,null,null,null,null,null,null,null,null,null,null,{"$f":"#REF!","v":{"$error":"#REF!"}}]
[null,null,null,null,null,null,null,null,null,null,"Total  :",null,{"$f":"SUM(M1150:O1154)","v":{"$error":"#REF!"}},null,null,null,{"$f":"SUM(Q1152:S1154)","v":{"$error":"#REF!"}}]
[null,null,null,null,null,null,null,null,null,null,"Liquido :",null,{"$f":"M1155-Q1155","v":{"$error":"#REF!"}}]
[]
[]
[]
[]
[]
[]
[]
[]
["María José Ceballos López",null,null,null,null,null,null,null,null,null,null,null,{"$f":"C1144","v":{"$error":"#REF!"}}]
["Encargada de Nómina",null,null,null,null,null,null,null,null,null,null,null,{"$f":"P1145","v":{"$error":"#REF!"}}]
["AMSA ",null,null,null,null,null,null,null,null,null,null,null,"AMSA"]
[]
[]
[]
[]
[]
[]
[]
[]
["GOBIERNO DE LA REPÚBLICA DE GUATEMALA"]
["AUTORIDAD PARA EL MANEJO SUSTENTABLE DE LA CUENCA Y DEL LAGO DE AMATITLÁN"]
[]
[]
[{"$f":"A1141","v":"Boleta de Liquidación Mensual Renglón 031 \"Jornales\"   Correspondiente al mes de octubre 2015"}]
[{"$f":"A1142","v":{"$error":"#REF!"}}]
[]
["Empleado:",null,{"$f":"C1144","v":{"$error":"#REF!"}},null,null,null,null,null,null,null,"Certificación No.",null,null,{"$f":"N1144","v":18},null,"Fecha:",null,{"$f":"R1144","v":"2014-08-31"}]
["Contrato:",null,{"$f":"C1145","v":{"$error":"#REF!"}},null,null,"Puesto Funcional:",null,null,{"$f":"I1145","v":{"$error":"#REF!"}},null,null,null,"Titulo Jornal:",null,null,{"$f":"P1145","v":{"$error":"#REF!"}}]
["Cuenta / Banco:",null,null,{"$f":"D1146","v":{"$error":"#REF!"}},null,"Banco de Desarrollo Rural, S.A.",null,null,null,null,"Jornal Diario:",null,null,{"$f":"N1146","v":{"$error":"#REF!"}},null,"Días Trabajados:",null,null,{"$f":"S1146","v":{"$error":"#REF!"}}]
[]
[null,null,null,null,null,null,null,null,null,null,null,null,"Ingresos",null,null,null,"Deducciones "]
[]
[null,"031","DEVENGADO",null,null,null,null,null,null,null,null,null,{"$f":"M1150","v":{"$error":"#REF!"}}]
[null,"033","BONO ACUERDO GUBERNATIVO 66-2000",null,null,null,null,null,null,null,null,null,{"$f":"M1151","v":{"$error":"#REF!"}}]
[null,"201","I.G.S.S",null,null,null,null,null,null,null,null,null,null,null,null,null,{"$f":"Q1152","v":{"$error":"#REF!"}}]
[null,"118","MONTEPÍO",null,null,null,null,null,null,null,null,null,null,null,null,null,{"$f":"Q1153","v":0}]
[null,"211","RETENCIONES JUDICIALES",null,null,null,null,null,null,null,null,null,null,null,null,null,{"$f":"Q1154","v":{"$error":"#REF!"}}]
[null,null,null,null,null,null,null,null,null,null,"Total  :",null,{"$f":"SUM(M1189:O1193)","v":{"$error":"#REF!"}},null,null,null,{"$f":"SUM(Q1191:S1193)","v":{"$error":"#REF!"}}]
[null,null,null,null,null,null,null,null,null,null,"Liquido :",null,{"$f":"M1194-Q1194","v":{"$error":"#REF!"}}]
[]
[]
[]
[]
[]
[]
[]
[]
[{"$f":"A1165","v":"María José Ceballos López"},null,null,null,null,null,null,null,null,null,null,null,{"$f":"C1183","v":{"$error":"#REF!"}}]
[{"$f":"A1166","v":"Encargada de Nómina"},null,null,null,null,null,null,null,null,null,null,null,{"$f":"P1184","v":{"$error":"#REF!"}}]
[{"$f":"A1167","v":"AMSA "},null,null,null,null,null,null,null,null,null,null,null,"AMSA"]
[]
["GOBIERNO DE LA REPÚBLICA DE GUATEMALA"]
["AUTORIDAD PARA EL MANEJO SUSTENTABLE DE LA CUENCA Y DEL LAGO DE AMATITLÁN"]
[]
[]
[{"$f":"A1141","v":"Boleta de Liquidación Mensual Renglón 031 \"Jornales\"   Correspondiente al mes de octubre 2015"}]
[{"$f":"A1142","v":{"$error":"#REF!"}}]
[]
["Empleado:",null,{"$f":"#REF!","v":{"$error":"#REF!"}},null,null,null,null,null,null,null,"Certificación No.",null,null,{"$f":"N1144+1","v":19},null,"Fecha:",null,{"$f":"R150","v":"2014-08-31"}]
["Contrato:",null,{"$f":"#REF!","v":{"$error":"#REF!"}},null,null,"Puesto Funcional:",null,null,{"$f":"#REF!","v":{"$error":"#REF!"}},null,null,null,"Titulo Jornal:",null,null,{"$f":"#REF!","v":{"$error":"#REF!"}}]
["Cuenta / Banco:",null,null,{"$f":"#REF!","v":{"$error":"#REF!"}},null,"Banco de Desarrollo Rural, S.A.",null,null,null,null,"Jornal Diario:",null,null,{"$f":"#REF!","v":{"$error":"#REF!"}},null,"Días Trabajados:",null,null,{"$f":"#REF!","v":{"$error":"#REF!"}}]
[]
[null,null,null,null,null,null,null,null,null,null,null,null,"Ingresos",null,null,null,"Deducciones "]
[]
[null,"031","DEVENGADO",null,null,null,null,null,null,null,null,null,{"$f":"#REF!","v":{"$error":"#REF!"}}]
[null,"033","BONO ACUERDO GUBERNATIVO 66-2000",null,null,null,null,null,null,null,null,null,{"$f":"#REF!","v":{"$error":"#REF!"}}]
[null,"201","I.G.S.S",null,null,null,null,null,null,null,null,null,null,null,null,null,{"$f":"#REF!","v":{"$error":"#REF!"}}]
[null,"118","MONTEPÍO",null,null,null,null,null,null,null,null,null,null,null,null,null,0]
[null,"211","RETENCIONES JUDICIALES",null,null,null,null,null,null,null,null,null,null,null,null,null,{"$f":"#REF!","v":{"$error":"#REF!"}}]
[null,null,null,null,null,null,null,null,null,null,"Total  :",null,{"$f":"SUM(M1221:O1225)","v":{"$error":"#REF!"}},null,null,null,{"$f":"SUM(Q1223:S1225)","v":{"$error":"#REF!"}}]
[null,null,null,null,null,null,null,null,null,null,"Liquido :",null,{"$f":"M1226-Q1226","v":{"$error":"#REF!"}}]
[]
[]
[]
[]
[]
[]
[]
[]
["María José Ceballos López",null,null,null,null,null,null,null,null,null,null,null,{"$f":"C1215","v":{"$error":"#REF!"}}]
["Encargada de Nómina",null,null,null,null,null,null,null,null,null,null,null,{"$f":"P1216","v":{"$error":"#REF!"}}]
["AMSA ",null,null,null,null,null,null,null,null,null,null,null,"AMSA"]
[]
[]
[]
[]
[]
[]
[]
[]
["GOBIERNO DE LA REPÚBLICA DE GUATEMALA"]
["AUTORIDAD PARA EL MANEJO SUSTENTABLE DE LA CUENCA Y DEL LAGO DE AMATITLÁN"]
[]
[]
[{"$f":"A1212","v":"Boleta de Liquidación Mensual Renglón 031 \"Jornales\"   Correspondiente al mes de octubre 2015"}]
[{"$f":"A1213","v":{"$error":"#REF!"}}]
[]
["Empleado:",null,{"$f":"C1215","v":{"$error":"#REF!"}},null,null,null,null,null,null,null,"Certificación No.",null,null,{"$f":"N1215","v":19},null,"Fecha:",null,{"$f":"R1215","v":"2014-08-31"}]
["Contrato:",null,{"$f":"C1216","v":{"$error":"#REF!"}},null,null,"Puesto Funcional:",null,null,{"$f":"I1216","v":{"$error":"#REF!"}},null,null,null,"Titulo Jornal:",null,null,{"$f":"P1216","v":{"$error":"#REF!"}}]
["Cuenta / Banco:",null,null,{"$f":"D1217","v":{"$error":"#REF!"}},null,"Banco de Desarrollo Rural, S.A.",null,null,null,null,"Jornal Diario:",null,null,{"$f":"N1217","v":{"$error":"#REF!"}},null,"Días Trabajados:",null,null,{"$f":"S1217","v":{"$error":"#REF!"}}]
[]
[null,null,null,null,null,null,null,null,null,null,null,null,"Ingresos",null,null,null,"Deducciones "]
[]
[null,"031","DEVENGADO",null,null,null,null,null,null,null,null,null,{"$f":"M1221","v":{"$error":"#REF!"}}]
[null,"033","BONO ACUERDO GUBERNATIVO 66-2000",null,null,null,null,null,null,null,null,null,{"$f":"M1222","v":{"$error":"#REF!"}}]
[null,"201","I.G.S.S",null,null,null,null,null,null,null,null,null,null,null,null,null,{"$f":"Q1223","v":{"$error":"#REF!"}}]
[null,"118","MONTEPÍO",null,null,null,null,null,null,null,null,null,null,null,null,null,{"$f":"Q1224","v":0}]
[null,"211","RETENCIONES JUDICIALES",null,null,null,null,null,null,null,null,null,null,null,null,null,{"$f":"Q1225","v":{"$error":"#REF!"}}]
[null,null,null,null,null,null,null,null,null,null,"Total  :",null,{"$f":"SUM(M1260:O1264)","v":{"$error":"#REF!"}},null,null,null,{"$f":"SUM(Q1262:S1264)","v":{"$error":"#REF!"}}]
[null,null,null,null,null,null,null,null,null,null,"Liquido :",null,{"$f":"M1265-Q1265","v":{"$error":"#REF!"}}]
[]
[]
[]
[]
[]
[]
[]
[]
[{"$f":"A1236","v":"María José Ceballos López"},null,null,null,null,null,null,null,null,null,null,null,{"$f":"C1254","v":{"$error":"#REF!"}}]
[{"$f":"A1237","v":"Encargada de Nómina"},null,null,null,null,null,null,null,null,null,null,null,{"$f":"P1255","v":{"$error":"#REF!"}}]
[{"$f":"A1238","v":"AMSA "},null,null,null,null,null,null,null,null,null,null,null,"AMSA"]
[]
["GOBIERNO DE LA REPÚBLICA DE GUATEMALA"]
["AUTORIDAD PARA EL MANEJO SUSTENTABLE DE LA CUENCA Y DEL LAGO DE AMATITLÁN"]
[]
[]
[{"$f":"A1212","v":"Boleta de Liquidación Mensual Renglón 031 \"Jornales\"   Correspondiente al mes de octubre 2015"}]
[{"$f":"A1213","v":{"$error":"#REF!"}}]
[]
["Empleado:",null,{"$f":"#REF!","v":{"$error":"#REF!"}},null,null,null,null,null,null,null,"Certificación No.",null,null,{"$f":"N1215+1","v":20},null,"Fecha:",null,{"$f":"R221","v":"2014-09-30"}]
["Contrato:",null,{"$f":"#REF!","v":{"$error":"#REF!"}},null,null,"Puesto Funcional:",null,null,{"$f":"#REF!","v":{"$error":"#REF!"}},null,null,null,"Titulo Jornal:",null,null,{"$f":"#REF!","v":{"$error":"#REF!"}}]
["Cuenta / Banco:",null,null,{"$f":"#REF!","v":{"$error":"#REF!"}},null,"Banco de Desarrollo Rural, S.A.",null,null,null,null,"Jornal Diario:",null,null,{"$f":"#REF!","v":{"$error":"#REF!"}},null,"Días Trabajados:",null,null,{"$f":"#REF!","v":{"$error":"#REF!"}}]
[]
[null,null,null,null,null,null,null,null,null,null,null,null,"Ingresos",null,null,null,"Deducciones "]
[]
[null,"031","DEVENGADO",null,null,null,null,null,null,null,null,null,{"$f":"#REF!","v":{"$error":"#REF!"}}]
[null,"033","BONO ACUERDO GUBERNATIVO 66-2000",null,null,null,null,null,null,null,null,null,{"$f":"#REF!","v":{"$error":"#REF!"}}]
[null,"201","I.G.S.S",null,null,null,null,null,null,null,null,null,null,null,null,null,{"$f":"#REF!","v":{"$error":"#REF!"}}]
[null,"118","MONTEPÍO",null,null,null,null,null,null,null,null,null,null,null,null,null,0]
[null,"211","RETENCIONES JUDICIALES",null,null,null,null,null,null,null,null,null,null,null,null,null,{"$f":"#REF!","v":{"$error":"#REF!"}}]
[null,null,null,null,null,null,null,null,null,null,"Total  :",null,{"$f":"SUM(M1292:O1296)","v":{"$error":"#REF!"}},null,null,null,{"$f":"SUM(Q1294:S1296)","v":{"$error":"#REF!"}}]
[null,null,null,null,null,null,null,null,null,null,"Liquido :",null,{"$f":"M1297-Q1297","v":{"$error":"#REF!"}}]
[]
[]
[]
[]
[]
[]
[]
[]
["María José Ceballos López",null,null,null,null,null,null,null,null,null,null,null,{"$f":"C1286","v":{"$error":"#REF!"}}]
["Encargada de Nómina",null,null,null,null,null,null,null,null,null,null,null,{"$f":"P1287","v":{"$error":"#REF!"}}]
["AMSA ",null,null,null,null,null,null,null,null,null,null,null,"AMSA"]
[]
[]
[]
[]
[]
[]
[]
[]
["GOBIERNO DE LA REPÚBLICA DE GUATEMALA"]
["AUTORIDAD PARA EL MANEJO SUSTENTABLE DE LA CUENCA Y DEL LAGO DE AMATITLÁN"]
[]
[]
[{"$f":"A1283","v":"Boleta de Liquidación Mensual Renglón 031 \"Jornales\"   Correspondiente al mes de octubre 2015"}]
[{"$f":"A1284","v":{"$error":"#REF!"}}]
[]
["Empleado:",null,{"$f":"C1286","v":{"$error":"#REF!"}},null,null,null,null,null,null,null,"Certificación No.",null,null,{"$f":"N1286","v":20},null,"Fecha:",null,{"$f":"R1286","v":"2014-09-30"}]
["Contrato:",null,{"$f":"C1287","v":{"$error":"#REF!"}},null,null,"Puesto Funcional:",null,null,{"$f":"I1287","v":{"$error":"#REF!"}},null,null,null,"Titulo Jornal:",null,null,{"$f":"P1287","v":{"$error":"#REF!"}}]
["Cuenta / Banco:",null,null,{"$f":"D1288","v":{"$error":"#REF!"}},null,"Banco de Desarrollo Rural, S.A.",null,null,null,null,"Jornal Diario:",null,null,{"$f":"N1288","v":{"$error":"#REF!"}},null,"Días Trabajados:",null,null,{"$f":"S1288","v":{"$error":"#REF!"}}]
[]
[null,null,null,null,null,null,null,null,null,null,null,null,"Ingresos",null,null,null,"Deducciones "]
[]
[null,"031","DEVENGADO",null,null,null,null,null,null,null,null,null,{"$f":"M1292","v":{"$error":"#REF!"}}]
[null,"033","BONO ACUERDO GUBERNATIVO 66-2000",null,null,null,null,null,null,null,null,null,{"$f":"M1293","v":{"$error":"#REF!"}}]
[null,"201","I.G.S.S",null,null,null,null,null,null,null,null,null,null,null,null,null,{"$f":"Q1294","v":{"$error":"#REF!"}}]
[null,"118","MONTEPÍO",null,null,null,null,null,null,null,null,null,null,null,null,null,{"$f":"Q1295","v":0}]
[null,"211","RETENCIONES JUDICIALES",null,null,null,null,null,null,null,null,null,null,null,null,null,{"$f":"Q1296","v":{"$error":"#REF!"}}]
[null,null,null,null,null,null,null,null,null,null,"Total  :",null,{"$f":"SUM(M1331:O1335)","v":{"$error":"#REF!"}},null,null,null,{"$f":"SUM(Q1333:S1335)","v":{"$error":"#REF!"}}]
[null,null,null,null,null,null,null,null,null,null,"Liquido :",null,{"$f":"M1336-Q1336","v":{"$error":"#REF!"}}]
[]
[]
[]
[]
[]
[]
[]
[]
[{"$f":"A1307","v":"María José Ceballos López"},null,null,null,null,null,null,null,null,null,null,null,{"$f":"C1325","v":{"$error":"#REF!"}}]
[{"$f":"A1308","v":"Encargada de Nómina"},null,null,null,null,null,null,null,null,null,null,null,{"$f":"P1326","v":{"$error":"#REF!"}}]
[{"$f":"A1309","v":"AMSA "},null,null,null,null,null,null,null,null,null,null,null,"AMSA"]
[]
["GOBIERNO DE LA REPÚBLICA DE GUATEMALA"]
["AUTORIDAD PARA EL MANEJO SUSTENTABLE DE LA CUENCA Y DEL LAGO DE AMATITLÁN"]
[]
[]
[{"$f":"A1283","v":"Boleta de Liquidación Mensual Renglón 031 \"Jornales\"   Correspondiente al mes de octubre 2015"}]
[{"$f":"A1284","v":{"$error":"#REF!"}}]
[]
["Empleado:",null,{"$f":"#REF!","v":{"$error":"#REF!"}},null,null,null,null,null,null,null,"Certificación No.",null,null,{"$f":"N1286+1","v":21},null,"Fecha:",null,{"$f":"R292","v":"2014-08-31"}]
["Contrato:",null,{"$f":"#REF!","v":{"$error":"#REF!"}},null,null,"Puesto Funcional:",null,null,{"$f":"#REF!","v":{"$error":"#REF!"}},null,null,null,"Titulo Jornal:",null,null,{"$f":"#REF!","v":{"$error":"#REF!"}}]
["Cuenta / Banco:",null,null,{"$f":"#REF!","v":{"$error":"#REF!"}},null,"Banco de Desarrollo Rural, S.A.",null,null,null,null,"Jornal Diario:",null,null,{"$f":"#REF!","v":{"$error":"#REF!"}},null,"Días Trabajados:",null,null,{"$f":"#REF!","v":{"$error":"#REF!"}}]
[]
[null,null,null,null,null,null,null,null,null,null,null,null,"Ingresos",null,null,null,"Deducciones "]
[]
[null,"031","DEVENGADO",null,null,null,null,null,null,null,null,null,{"$f":"#REF!","v":{"$error":"#REF!"}}]
[null,"033","BONO ACUERDO GUBERNATIVO 66-2000",null,null,null,null,null,null,null,null,null,{"$f":"#REF!","v":{"$error":"#REF!"}}]
[null,"201","I.G.S.S",null,null,null,null,null,null,null,null,null,null,null,null,null,{"$f":"#REF!","v":{"$error":"#REF!"}}]
[null,"118","MONTEPÍO",null,null,null,null,null,null,null,null,null,null,null,null,null,0]
[null,"211","RETENCIONES JUDICIALES",null,null,null,null,null,null,null,null,null,null,null,null,null,{"$f":"#REF!","v":{"$error":"#REF!"}}]
[null,null,null,null,null,null,null,null,null,null,"Total  :",null,{"$f":"SUM(M1363:O1367)","v":{"$error":"#REF!"}},null,null,null,{"$f":"SUM(Q1365:S1367)","v":{"$error":"#REF!"}}]
[null,null,null,null,null,null,null,null,null,null,"Liquido :",null,{"$f":"M1368-Q1368","v":{"$error":"#REF!"}}]
[]
[]
[]
[]
[]
[]
[]
[]
["María José Ceballos López",null,null,null,null,null,null,null,null,null,null,null,{"$f":"C1357","v":{"$error":"#REF!"}}]
["Encargada de Nómina",null,null,null,null,null,null,null,null,null,null,null,{"$f":"P1358","v":{"$error":"#REF!"}}]
["AMSA ",null,null,null,null,null,null,null,null,null,null,null,"AMSA"]
[]
[]
[]
[]
[]
[]
[]
[]
["GOBIERNO DE LA REPÚBLICA DE GUATEMALA"]
["AUTORIDAD PARA EL MANEJO SUSTENTABLE DE LA CUENCA Y DEL LAGO DE AMATITLÁN"]
[]
[]
[{"$f":"A1354","v":"Boleta de Liquidación Mensual Renglón 031 \"Jornales\"   Correspondiente al mes de octubre 2015"}]
[{"$f":"A1355","v":{"$error":"#REF!"}}]
[]
["Empleado:",null,{"$f":"C1357","v":{"$error":"#REF!"}},null,null,null,null,null,null,null,"Certificación No.",null,null,{"$f":"N1357","v":21},null,"Fecha:",null,{"$f":"R1357","v":"2014-08-31"}]
["Contrato:",null,{"$f":"C1358","v":{"$error":"#REF!"}},null,null,"Puesto Funcional:",null,null,{"$f":"I1358","v":{"$error":"#REF!"}},null,null,null,"Titulo Jornal:",null,null,{"$f":"P1358","v":{"$error":"#REF!"}}]
["Cuenta / Banco:",null,null,{"$f":"D1359","v":{"$error":"#REF!"}},null,"Banco de Desarrollo Rural, S.A.",null,null,null,null,"Jornal Diario:",null,null,{"$f":"N1359","v":{"$error":"#REF!"}},null,"Días Trabajados:",null,null,{"$f":"S1359","v":{"$error":"#REF!"}}]
[]
[null,null,null,null,null,null,null,null,null,null,null,null,"Ingresos",null,null,null,"Deducciones "]
[]
[null,"031","DEVENGADO",null,null,null,null,null,null,null,null,null,{"$f":"M1363","v":{"$error":"#REF!"}}]
[null,"033","BONO ACUERDO GUBERNATIVO 66-2000",null,null,null,null,null,null,null,null,null,{"$f":"M1364","v":{"$error":"#REF!"}}]
[null,"201","I.G.S.S",null,null,null,null,null,null,null,null,null,null,null,null,null,{"$f":"Q1365","v":{"$error":"#REF!"}}]
[null,"118","MONTEPÍO",null,null,null,null,null,null,null,null,null,null,null,null,null,{"$f":"Q1366","v":0}]
[null,"211","RETENCIONES JUDICIALES",null,null,null,null,null,null,null,null,null,null,null,null,null,{"$f":"Q1367","v":{"$error":"#REF!"}}]
[null,null,null,null,null,null,null,null,null,null,"Total  :",null,{"$f":"SUM(M1402:O1406)","v":{"$error":"#REF!"}},null,null,null,{"$f":"SUM(Q1404:S1406)","v":{"$error":"#REF!"}}]
[null,null,null,null,null,null,null,null,null,null,"Liquido :",null,{"$f":"M1407-Q1407","v":{"$error":"#REF!"}}]
[]
[]
[]
[]
[]
[]
[]
[]
[{"$f":"A1378","v":"María José Ceballos López"},null,null,null,null,null,null,null,null,null,null,null,{"$f":"C1396","v":{"$error":"#REF!"}}]
[{"$f":"A1379","v":"Encargada de Nómina"},null,null,null,null,null,null,null,null,null,null,null,{"$f":"P1397","v":{"$error":"#REF!"}}]
[{"$f":"A1380","v":"AMSA "},null,null,null,null,null,null,null,null,null,null,null,"AMSA"]
[]
["GOBIERNO DE LA REPÚBLICA DE GUATEMALA"]
["AUTORIDAD PARA EL MANEJO SUSTENTABLE DE LA CUENCA Y DEL LAGO DE AMATITLÁN"]
[]
[]
[{"$f":"A1354","v":"Boleta de Liquidación Mensual Renglón 031 \"Jornales\"   Correspondiente al mes de octubre 2015"}]
[{"$f":"A1355","v":{"$error":"#REF!"}}]
[]
["Empleado:",null,{"$f":"#REF!","v":{"$error":"#REF!"}},null,null,null,null,null,null,null,"Certificación No.",null,null,{"$f":"N1357+1","v":22},null,"Fecha:",null,{"$f":"R363","v":"2015-08-31"}]
["Contrato:",null,{"$f":"#REF!","v":{"$error":"#REF!"}},null,null,"Puesto Funcional:",null,null,"Peón de Campo",null,null,null,"Titulo Jornal:",null,null,{"$f":"#REF!","v":{"$error":"#REF!"}}]
["Cuenta / Banco:",null,null,{"$f":"#REF!","v":{"$error":"#REF!"}},null,"Banco de Desarrollo Rural, S.A.",null,null,null,null,"Jornal Diario:",null,null,{"$f":"#REF!","v":{"$error":"#REF!"}},null,"Días Trabajados:",null,null,{"$f":"#REF!","v":{"$error":"#REF!"}}]
[]
[null,null,null,null,null,null,null,null,null,null,null,null,"Ingresos",null,null,null,"Deducciones "]
[]
[null,"031","DEVENGADO",null,null,null,null,null,null,null,null,null,{"$f":"#REF!","v":{"$error":"#REF!"}}]
[null,"033","BONO ACUERDO GUBERNATIVO 66-2000",null,null,null,null,null,null,null,null,null,{"$f":"#REF!","v":{"$error":"#REF!"}}]
[null,"201","I.G.S.S",null,null,null,null,null,null,null,null,null,null,null,null,null,{"$f":"#REF!","v":{"$error":"#REF!"}}]
[null,"118","MONTEPÍO",null,null,null,null,null,null,null,null,null,null,null,null,null,0]
[null,"211","RETENCIONES JUDICIALES",null,null,null,null,null,null,null,null,null,null,null,null,null,{"$f":"#REF!","v":{"$error":"#REF!"}}]
[null,null,null,null,null,null,null,null,null,null,"Total  :",null,{"$f":"SUM(M1434:O1438)","v":{"$error":"#REF!"}},null,null,null,{"$f":"SUM(Q1436:S1438)","v":{"$error":"#REF!"}}]
[null,null,null,null,null,null,null,null,null,null,"Liquido :",null,{"$f":"M1439-Q1439","v":{"$error":"#REF!"}}]
[]
[]
[]
[]
[]
[]
[]
[]
["María José Ceballos López",null,null,null,null,null,null,null,null,null,null,null,{"$f":"C1428","v":{"$error":"#REF!"}}]
["Encargada de Nómina",null,null,null,null,null,null,null,null,null,null,null,{"$f":"P1429","v":{"$error":"#REF!"}}]
["AMSA ",null,null,null,null,null,null,null,null,null,null,null,"AMSA"]
[]
[]
[]
[]
[]
[]
[]
[]
["GOBIERNO DE LA REPÚBLICA DE GUATEMALA"]
["AUTORIDAD PARA EL MANEJO SUSTENTABLE DE LA CUENCA Y DEL LAGO DE AMATITLÁN"]
[]
[]
[{"$f":"A1425","v":"Boleta de Liquidación Mensual Renglón 031 \"Jornales\"   Correspondiente al mes de octubre 2015"}]
[{"$f":"A1426","v":{"$error":"#REF!"}}]
[]
["Empleado:",null,{"$f":"C1428","v":{"$error":"#REF!"}},null,null,null,null,null,null,null,"Certificación No.",null,null,{"$f":"N1428","v":22},null,"Fecha:",null,{"$f":"R1428","v":"2015-08-31"}]
["Contrato:",null,{"$f":"C1429","v":{"$error":"#REF!"}},null,null,"Puesto Funcional:",null,null,{"$f":"I1429","v":"Peón de Campo"},null,null,null,"Titulo Jornal:",null,null,{"$f":"P1429","v":{"$error":"#REF!"}}]
["Cuenta / Banco:",null,null,{"$f":"D1430","v":{"$error":"#REF!"}},null,"Banco de Desarrollo Rural, S.A.",null,null,null,null,"Jornal Diario:",null,null,{"$f":"N1430","v":{"$error":"#REF!"}},null,"Días Trabajados:",null,null,{"$f":"S1430","v":{"$error":"#REF!"}}]
[]
[null,null,null,null,null,null,null,null,null,null,null,null,"Ingresos",null,null,null,"Deducciones "]
[]
[null,"031","DEVENGADO",null,null,null,null,null,null,null,null,null,{"$f":"M1434","v":{"$error":"#REF!"}}]
[null,"033","BONO ACUERDO GUBERNATIVO 66-2000",null,null,null,null,null,null,null,null,null,{"$f":"M1435","v":{"$error":"#REF!"}}]
[null,"201","I.G.S.S",null,null,null,null,null,null,null,null,null,null,null,null,null,{"$f":"Q1436","v":{"$error":"#REF!"}}]
[null,"118","MONTEPÍO",null,null,null,null,null,null,null,null,null,null,null,null,null,{"$f":"Q1437","v":0}]
[null,"211","RETENCIONES JUDICIALES",null,null,null,null,null,null,null,null,null,null,null,null,null,{"$f":"Q1438","v":{"$error":"#REF!"}}]
[null,null,null,null,null,null,null,null,null,null,"Total  :",null,{"$f":"SUM(M1473:O1477)","v":{"$error":"#REF!"}},null,null,null,{"$f":"SUM(Q1475:S1477)","v":{"$error":"#REF!"}}]
[null,null,null,null,null,null,null,null,null,null,"Liquido :",null,{"$f":"M1478-Q1478","v":{"$error":"#REF!"}}]
[]
[]
[]
[]
[]
[]
[]
[]
[{"$f":"A1449","v":"María José Ceballos López"},null,null,null,null,null,null,null,null,null,null,null,{"$f":"C1467","v":{"$error":"#REF!"}}]
[{"$f":"A1450","v":"Encargada de Nómina"},null,null,null,null,null,null,null,null,null,null,null,{"$f":"P1468","v":{"$error":"#REF!"}}]
[{"$f":"A1451","v":"AMSA "},null,null,null,null,null,null,null,null,null,null,null,"AMSA"]
[]
["GOBIERNO DE LA REPÚBLICA DE GUATEMALA"]
["AUTORIDAD PARA EL MANEJO SUSTENTABLE DE LA CUENCA Y DEL LAGO DE AMATITLÁN"]
[]
[]
[{"$f":"A1425","v":"Boleta de Liquidación Mensual Renglón 031 \"Jornales\"   Correspondiente al mes de octubre 2015"}]
[{"$f":"A1426","v":{"$error":"#REF!"}}]
[]
["Empleado:",null,{"$f":"#REF!","v":{"$error":"#REF!"}},null,null,null,null,null,null,null,"Certificación No.",null,null,{"$f":"N1428+1","v":23},null,"Fecha:",null,{"$f":"R434","v":"2014-08-31"}]
["Contrato:",null,{"$f":"#REF!","v":{"$error":"#REF!"}},null,null,"Puesto Funcional:",null,null,{"$f":"#REF!","v":{"$error":"#REF!"}},null,null,null,"Titulo Jornal:",null,null,{"$f":"#REF!","v":{"$error":"#REF!"}}]
["Cuenta / Banco:",null,null,{"$f":"#REF!","v":{"$error":"#REF!"}},null,"Banco de Desarrollo Rural, S.A.",null,null,null,null,"Jornal Diario:",null,null,{"$f":"#REF!","v":{"$error":"#REF!"}},null,"Días Trabajados:",null,null,{"$f":"#REF!","v":{"$error":"#REF!"}}]
[]
[null,null,null,null,null,null,null,null,null,null,null,null,"Ingresos",null,null,null,"Deducciones "]
[]
[null,"031","DEVENGADO",null,null,null,null,null,null,null,null,null,{"$f":"#REF!","v":{"$error":"#REF!"}}]
[null,"033","BONO ACUERDO GUBERNATIVO 66-2000",null,null,null,null,null,null,null,null,null,{"$f":"#REF!","v":{"$error":"#REF!"}}]
[null,"201","I.G.S.S",null,null,null,null,null,null,null,null,null,null,null,null,null,{"$f":"#REF!","v":{"$error":"#REF!"}}]
[null,"118","MONTEPÍO",null,null,null,null,null,null,null,null,null,null,null,null,null,0]
[null,"211","RETENCIONES JUDICIALES",null,null,null,null,null,null,null,null,null,null,null,null,null,{"$f":"#REF!","v":{"$error":"#REF!"}}]
[null,null,null,null,null,null,null,null,null,null,"Total  :",null,{"$f":"SUM(M1505:O1509)","v":{"$error":"#REF!"}},null,null,null,{"$f":"SUM(Q1507:S1509)","v":{"$error":"#REF!"}}]
[null,null,null,null,null,null,null,null,null,null,"Liquido :",null,{"$f":"M1510-Q1510","v":{"$error":"#REF!"}}]
[]
[]
[]
[]
[]
[]
[]
[]
["María José Ceballos López",null,null,null,null,null,null,null,null,null,null,null,{"$f":"C1499","v":{"$error":"#REF!"}}]
["Encargada de Nómina",null,null,null,null,null,null,null,null,null,null,null,{"$f":"P1500","v":{"$error":"#REF!"}}]
["AMSA ",null,null,null,null,null,null,null,null,null,null,null,"AMSA"]
[]
[]
[]
[]
[]
[]
[]
[]
["GOBIERNO DE LA REPÚBLICA DE GUATEMALA"]
["AUTORIDAD PARA EL MANEJO SUSTENTABLE DE LA CUENCA Y DEL LAGO DE AMATITLÁN"]
[]
[]
[{"$f":"A1496","v":"Boleta de Liquidación Mensual Renglón 031 \"Jornales\"   Correspondiente al mes de octubre 2015"}]
[{"$f":"A1497","v":{"$error":"#REF!"}}]
[]
["Empleado:",null,{"$f":"C1499","v":{"$error":"#REF!"}},null,null,null,null,null,null,null,"Certificación No.",null,null,{"$f":"N1499","v":23},null,"Fecha:",null,{"$f":"R1499","v":"2014-08-31"}]
["Contrato:",null,{"$f":"C1500","v":{"$error":"#REF!"}},null,null,"Puesto Funcional:",null,null,{"$f":"I1500","v":{"$error":"#REF!"}},null,null,null,"Titulo Jornal:",null,null,{"$f":"P1500","v":{"$error":"#REF!"}}]
["Cuenta / Banco:",null,null,{"$f":"D1501","v":{"$error":"#REF!"}},null,"Banco de Desarrollo Rural, S.A.",null,null,null,null,"Jornal Diario:",null,null,{"$f":"N1501","v":{"$error":"#REF!"}},null,"Días Trabajados:",null,null,{"$f":"S1501","v":{"$error":"#REF!"}}]
[]
[null,null,null,null,null,null,null,null,null,null,null,null,"Ingresos",null,null,null,"Deducciones "]
[]
[null,"031","DEVENGADO",null,null,null,null,null,null,null,null,null,{"$f":"M1505","v":{"$error":"#REF!"}}]
[null,"033","BONO ACUERDO GUBERNATIVO 66-2000",null,null,null,null,null,null,null,null,null,{"$f":"M1506","v":{"$error":"#REF!"}}]
[null,"201","I.G.S.S",null,null,null,null,null,null,null,null,null,null,null,null,null,{"$f":"Q1507","v":{"$error":"#REF!"}}]
[null,"118","MONTEPÍO",null,null,null,null,null,null,null,null,null,null,null,null,null,{"$f":"Q1508","v":0}]
[null,"211","RETENCIONES JUDICIALES",null,null,null,null,null,null,null,null,null,null,null,null,null,{"$f":"Q1509","v":{"$error":"#REF!"}}]
[null,null,null,null,null,null,null,null,null,null,"Total  :",null,{"$f":"SUM(M1544:O1548)","v":{"$error":"#REF!"}},null,null,null,{"$f":"SUM(Q1546:S1548)","v":{"$error":"#REF!"}}]
[null,null,null,null,null,null,null,null,null,null,"Liquido :",null,{"$f":"M1549-Q1549","v":{"$error":"#REF!"}}]
[]
[]
[]
[]
[]
[]
[]
[]
[{"$f":"A1520","v":"María José Ceballos López"},null,null,null,null,null,null,null,null,null,null,null,{"$f":"C1538","v":{"$error":"#REF!"}}]
[{"$f":"A1521","v":"Encargada de Nómina"},null,null,null,null,null,null,null,null,null,null,null,{"$f":"P1539","v":{"$error":"#REF!"}}]
[{"$f":"A1522","v":"AMSA "},null,null,null,null,null,null,null,null,null,null,null,"AMSA"]
[]
["GOBIERNO DE LA REPÚBLICA DE GUATEMALA"]
["AUTORIDAD PARA EL MANEJO SUSTENTABLE DE LA CUENCA Y DEL LAGO DE AMATITLÁN"]
[]
[]
[{"$f":"A1496","v":"Boleta de Liquidación Mensual Renglón 031 \"Jornales\"   Correspondiente al mes de octubre 2015"}]
[{"$f":"A1497","v":{"$error":"#REF!"}}]
[]
["Empleado:",null,{"$f":"#REF!","v":{"$error":"#REF!"}},null,null,null,null,null,null,null,"Certificación No.",null,null,{"$f":"N1499+1","v":24},null,"Fecha:",null,{"$f":"R8","v":"2014-08-31"}]
["Contrato:",null,{"$f":"#REF!","v":{"$error":"#REF!"}},null,null,"Puesto Funcional:",null,null,{"$f":"#REF!","v":{"$error":"#REF!"}},null,null,null,"Titulo Jornal:",null,null,{"$f":"#REF!","v":{"$error":"#REF!"}}]
["Cuenta / Banco:",null,null,{"$f":"#REF!","v":{"$error":"#REF!"}},null,"Banco de Desarrollo Rural, S.A.",null,null,null,null,"Jornal Diario:",null,null,{"$f":"#REF!","v":{"$error":"#REF!"}},null,"Días Trabajados:",null,null,{"$f":"#REF!","v":{"$error":"#REF!"}}]
[]
[null,null,null,null,null,null,null,null,null,null,null,null,"Ingresos",null,null,null,"Deducciones "]
[]
[null,"031","DEVENGADO",null,null,null,null,null,null,null,null,null,{"$f":"#REF!","v":{"$error":"#REF!"}}]
[null,"033","BONO ACUERDO GUBERNATIVO 66-2000",null,null,null,null,null,null,null,null,null,{"$f":"#REF!","v":{"$error":"#REF!"}}]
[null,"201","I.G.S.S",null,null,null,null,null,null,null,null,null,null,null,null,null,{"$f":"#REF!","v":{"$error":"#REF!"}}]
[null,"118","MONTEPÍO",null,null,null,null,null,null,null,null,null,null,null,null,null,0]
[null,"211","RETENCIONES JUDICIALES",null,null,null,null,null,null,null,null,null,null,null,null,null,{"$f":"#REF!","v":{"$error":"#REF!"}}]
[null,null,null,null,null,null,null,null,null,null,"Total  :",null,{"$f":"SUM(M1576:O1580)","v":{"$error":"#REF!"}},null,null,null,{"$f":"SUM(Q1578:S1580)","v":{"$error":"#REF!"}}]
[null,null,null,null,null,null,null,null,null,null,"Liquido :",null,{"$f":"M1581-Q1581","v":{"$error":"#REF!"}}]
[]
[]
[]
[]
[]
[]
[]
[]
["María José Ceballos López",null,null,null,null,null,null,null,null,null,null,null,{"$f":"C1570","v":{"$error":"#REF!"}}]
["Encargada de Nómina",null,null,null,null,null,null,null,null,null,null,null,{"$f":"P1571","v":{"$error":"#REF!"}}]
["AMSA ",null,null,null,null,null,null,null,null,null,null,null,"AMSA"]
[]
[]
[]
[]
[]
[]
[]
[]
["GOBIERNO DE LA REPÚBLICA DE GUATEMALA"]
["AUTORIDAD PARA EL MANEJO SUSTENTABLE DE LA CUENCA Y DEL LAGO DE AMATITLÁN"]
[]
[]
[{"$f":"A1567","v":"Boleta de Liquidación Mensual Renglón 031 \"Jornales\"   Correspondiente al mes de octubre 2015"}]
[{"$f":"A1568","v":{"$error":"#REF!"}}]
[]
["Empleado:",null,{"$f":"C1570","v":{"$error":"#REF!"}},null,null,null,null,null,null,null,"Certificación No.",null,null,{"$f":"N1570","v":24},null,"Fecha:",null,{"$f":"R1570","v":"2014-08-31"}]
["Contrato:",null,{"$f":"C1571","v":{"$error":"#REF!"}},null,null,"Puesto Funcional:",null,null,{"$f":"I1571","v":{"$error":"#REF!"}},null,null,null,"Titulo Jornal:",null,null,{"$f":"P1571","v":{"$error":"#REF!"}}]
["Cuenta / Banco:",null,null,{"$f":"D1572","v":{"$error":"#REF!"}},null,"Banco de Desarrollo Rural, S.A.",null,null,null,null,"Jornal Diario:",null,null,{"$f":"N1572","v":{"$error":"#REF!"}},null,"Días Trabajados:",null,null,{"$f":"S1572","v":{"$error":"#REF!"}}]
[]
[null,null,null,null,null,null,null,null,null,null,null,null,"Ingresos",null,null,null,"Deducciones "]
[]
[null,"031","DEVENGADO",null,null,null,null,null,null,null,null,null,{"$f":"M1576","v":{"$error":"#REF!"}}]
[null,"033","BONO ACUERDO GUBERNATIVO 66-2000",null,null,null,null,null,null,null,null,null,{"$f":"M1577","v":{"$error":"#REF!"}}]
[null,"201","I.G.S.S",null,null,null,null,null,null,null,null,null,null,null,null,null,{"$f":"Q1578","v":{"$error":"#REF!"}}]
[null,"118","MONTEPÍO",null,null,null,null,null,null,null,null,null,null,null,null,null,{"$f":"Q1579","v":0}]
[null,"211","RETENCIONES JUDICIALES",null,null,null,null,null,null,null,null,null,null,null,null,null,{"$f":"Q1580","v":{"$error":"#REF!"}}]
[null,null,null,null,null,null,null,null,null,null,"Total  :",null,{"$f":"SUM(M1615:O1619)","v":{"$error":"#REF!"}},null,null,null,{"$f":"SUM(Q1617:S1619)","v":{"$error":"#REF!"}}]
[null,null,null,null,null,null,null,null,null,null,"Liquido :",null,{"$f":"M1620-Q1620","v":{"$error":"#REF!"}}]
[]
[]
[]
[]
[]
[]
[]
[]
[{"$f":"A1591","v":"María José Ceballos López"},null,null,null,null,null,null,null,null,null,null,null,{"$f":"C1609","v":{"$error":"#REF!"}}]
[{"$f":"A1592","v":"Encargada de Nómina"},null,null,null,null,null,null,null,null,null,null,null,{"$f":"P1610","v":{"$error":"#REF!"}}]
[{"$f":"A1593","v":"AMSA "},null,null,null,null,null,null,null,null,null,null,null,"AMSA"]
[]
["GOBIERNO DE LA REPÚBLICA DE GUATEMALA"]
["AUTORIDAD PARA EL MANEJO SUSTENTABLE DE LA CUENCA Y DEL LAGO DE AMATITLÁN"]
[]
[]
[{"$f":"A1567","v":"Boleta de Liquidación Mensual Renglón 031 \"Jornales\"   Correspondiente al mes de octubre 2015"}]
[{"$f":"A1568","v":{"$error":"#REF!"}}]
[]
["Empleado:",null,{"$f":"#REF!","v":{"$error":"#REF!"}},null,null,null,null,null,null,null,"Certificación No.",null,null,{"$f":"N1570+1","v":25},null,"Fecha:",null,{"$f":"R576","v":"2014-08-31"}]
["Contrato:",null,{"$f":"#REF!","v":{"$error":"#REF!"}},null,null,"Puesto Funcional:",null,null,{"$f":"#REF!","v":{"$error":"#REF!"}},null,null,null,"Titulo Jornal:",null,null,{"$f":"#REF!","v":{"$error":"#REF!"}}]
["Cuenta / Banco:",null,null,{"$f":"#REF!","v":{"$error":"#REF!"}},null,"Banco de Desarrollo Rural, S.A.",null,null,null,null,"Jornal Diario:",null,null,{"$f":"#REF!","v":{"$error":"#REF!"}},null,"Días Trabajados:",null,null,{"$f":"#REF!","v":{"$error":"#REF!"}}]
[]
[null,null,null,null,null,null,null,null,null,null,null,null,"Ingresos",null,null,null,"Deducciones "]
[]
[null,"031","DEVENGADO",null,null,null,null,null,null,null,null,null,{"$f":"#REF!","v":{"$error":"#REF!"}}]
[null,"033","BONO ACUERDO GUBERNATIVO 66-2000",null,null,null,null,null,null,null,null,null,{"$f":"#REF!","v":{"$error":"#REF!"}}]
[null,"201","I.G.S.S",null,null,null,null,null,null,null,null,null,null,null,null,null,{"$f":"#REF!","v":{"$error":"#REF!"}}]
[null,"118","MONTEPÍO",null,null,null,null,null,null,null,null,null,null,null,null,null,0]
[null,"211","RETENCIONES JUDICIALES",null,null,null,null,null,null,null,null,null,null,null,null,null,{"$f":"#REF!","v":{"$error":"#REF!"}}]
[null,null,null,null,null,null,null,null,null,null,"Total  :",null,{"$f":"SUM(M1647:O1651)","v":{"$error":"#REF!"}},null,null,null,{"$f":"SUM(Q1649:S1651)","v":{"$error":"#REF!"}}]
[null,null,null,null,null,null,null,null,null,null,"Liquido :",null,{"$f":"M1652-Q1652","v":{"$error":"#REF!"}}]
[]
[]
[]
[]
[]
[]
[]
[]
["María José Ceballos López",null,null,null,null,null,null,null,null,null,null,null,{"$f":"C1641","v":{"$error":"#REF!"}}]
["Encargada de Nómina",null,null,null,null,null,null,null,null,null,null,null,{"$f":"P1642","v":{"$error":"#REF!"}}]
["AMSA ",null,null,null,null,null,null,null,null,null,null,null,"AMSA"]
[]
[]
[]
[]
[]
[]
[]
[]
["GOBIERNO DE LA REPÚBLICA DE GUATEMALA"]
["AUTORIDAD PARA EL MANEJO SUSTENTABLE DE LA CUENCA Y DEL LAGO DE AMATITLÁN"]
[]
[]
[{"$f":"A1638","v":"Boleta de Liquidación Mensual Renglón 031 \"Jornales\"   Correspondiente al mes de octubre 2015"}]
[{"$f":"A1639","v":{"$error":"#REF!"}}]
[]
["Empleado:",null,{"$f":"C1641","v":{"$error":"#REF!"}},null,null,null,null,null,null,null,"Certificación No.",null,null,{"$f":"N1641","v":25},null,"Fecha:",null,{"$f":"R1641","v":"2014-08-31"}]
["Contrato:",null,{"$f":"C1642","v":{"$error":"#REF!"}},null,null,"Puesto Funcional:",null,null,{"$f":"I1642","v":{"$error":"#REF!"}},null,null,null,"Titulo Jornal:",null,null,{"$f":"P1642","v":{"$error":"#REF!"}}]
["Cuenta / Banco:",null,null,{"$f":"D1643","v":{"$error":"#REF!"}},null,"Banco de Desarrollo Rural, S.A.",null,null,null,null,"Jornal Diario:",null,null,{"$f":"N1643","v":{"$error":"#REF!"}},null,"Días Trabajados:",null,null,{"$f":"S1643","v":{"$error":"#REF!"}}]
[]
[null,null,null,null,null,null,null,null,null,null,null,null,"Ingresos",null,null,null,"Deducciones "]
[]
[null,"031","DEVENGADO",null,null,null,null,null,null,null,null,null,{"$f":"M1647","v":{"$error":"#REF!"}}]
[null,"033","BONO ACUERDO GUBERNATIVO 66-2000",null,null,null,null,null,null,null,null,null,{"$f":"M1648","v":{"$error":"#REF!"}}]
[null,"201","I.G.S.S",null,null,null,null,null,null,null,null,null,null,null,null,null,{"$f":"Q1649","v":{"$error":"#REF!"}}]
[null,"118","MONTEPÍO",null,null,null,null,null,null,null,null,null,null,null,null,null,{"$f":"Q1650","v":0}]
[null,"211","RETENCIONES JUDICIALES",null,null,null,null,null,null,null,null,null,null,null,null,null,{"$f":"Q1651","v":{"$error":"#REF!"}}]
[null,null,null,null,null,null,null,null,null,null,"Total  :",null,{"$f":"SUM(M1686:O1690)","v":{"$error":"#REF!"}},null,null,null,{"$f":"SUM(Q1688:S1690)","v":{"$error":"#REF!"}}]
[null,null,null,null,null,null,null,null,null,null,"Liquido :",null,{"$f":"M1691-Q1691","v":{"$error":"#REF!"}}]
[]
[]
[]
[]
[]
[]
[]
[]
[{"$f":"A1662","v":"María José Ceballos López"},null,null,null,null,null,null,null,null,null,null,null,{"$f":"C1680","v":{"$error":"#REF!"}}]
[{"$f":"A1663","v":"Encargada de Nómina"},null,null,null,null,null,null,null,null,null,null,null,{"$f":"P1681","v":{"$error":"#REF!"}}]
[{"$f":"A1664","v":"AMSA "},null,null,null,null,null,null,null,null,null,null,null,"AMSA"]
[]
["GOBIERNO DE LA REPÚBLICA DE GUATEMALA"]
["AUTORIDAD PARA EL MANEJO SUSTENTABLE DE LA CUENCA Y DEL LAGO DE AMATITLÁN"]
[]
[]
[{"$f":"A1638","v":"Boleta de Liquidación Mensual Renglón 031 \"Jornales\"   Correspondiente al mes de octubre 2015"}]
[{"$f":"A1639","v":{"$error":"#REF!"}}]
[]
["Empleado:",null,{"$f":"#REF!","v":{"$error":"#REF!"}},null,null,null,null,null,null,null,"Certificación No.",null,null,{"$f":"N1641+1","v":26},null,"Fecha:",null,{"$f":"R647","v":"2014-08-31"}]
["Contrato:",null,{"$f":"#REF!","v":{"$error":"#REF!"}},null,null,"Puesto Funcional:",null,null,{"$f":"#REF!","v":{"$error":"#REF!"}},null,null,null,"Titulo Jornal:",null,null,{"$f":"#REF!","v":{"$error":"#REF!"}}]
["Cuenta / Banco:",null,null,{"$f":"#REF!","v":{"$error":"#REF!"}},null,"Banco de Desarrollo Rural, S.A.",null,null,null,null,"Jornal Diario:",null,null,{"$f":"#REF!","v":{"$error":"#REF!"}},null,"Días Trabajados:",null,null,{"$f":"#REF!","v":{"$error":"#REF!"}}]
[]
[null,null,null,null,null,null,null,null,null,null,null,null,"Ingresos",null,null,null,"Deducciones "]
[]
[null,"031","DEVENGADO",null,null,null,null,null,null,null,null,null,{"$f":"#REF!","v":{"$error":"#REF!"}}]
[null,"033","BONO ACUERDO GUBERNATIVO 66-2000",null,null,null,null,null,null,null,null,null,{"$f":"#REF!","v":{"$error":"#REF!"}}]
[null,"201","I.G.S.S",null,null,null,null,null,null,null,null,null,null,null,null,null,{"$f":"#REF!","v":{"$error":"#REF!"}}]
[null,"118","MONTEPÍO",null,null,null,null,null,null,null,null,null,null,null,null,null,0]
[null,"211","RETENCIONES JUDICIALES",null,null,null,null,null,null,null,null,null,null,null,null,null,{"$f":"#REF!","v":{"$error":"#REF!"}}]
[null,null,null,null,null,null,null,null,null,null,"Total  :",null,{"$f":"SUM(M1718:O1722)","v":{"$error":"#REF!"}},null,null,null,{"$f":"SUM(Q1720:S1722)","v":{"$error":"#REF!"}}]
[null,null,null,null,null,null,null,null,null,null,"Liquido :",null,{"$f":"M1723-Q1723","v":{"$error":"#REF!"}}]
[]
[]
[]
[]
[]
[]
[]
[]
["María José Ceballos López",null,null,null,null,null,null,null,null,null,null,null,{"$f":"C1712","v":{"$error":"#REF!"}}]
["Encargada de Nómina",null,null,null,null,null,null,null,null,null,null,null,{"$f":"P1713","v":{"$error":"#REF!"}}]
["AMSA ",null,null,null,null,null,null,null,null,null,null,null,"AMSA"]
[]
[]
[]
[]
[]
[]
[]
[]
["GOBIERNO DE LA REPÚBLICA DE GUATEMALA"]
["AUTORIDAD PARA EL MANEJO SUSTENTABLE DE LA CUENCA Y DEL LAGO DE AMATITLÁN"]
[]
[]
[{"$f":"A1709","v":"Boleta de Liquidación Mensual Renglón 031 \"Jornales\"   Correspondiente al mes de octubre 2015"}]
[{"$f":"A1710","v":{"$error":"#REF!"}}]
[]
["Empleado:",null,{"$f":"C1712","v":{"$error":"#REF!"}},null,null,null,null,null,null,null,"Certificación No.",null,null,{"$f":"N1712","v":26},null,"Fecha:",null,{"$f":"R1712","v":"2014-08-31"}]
["Contrato:",null,{"$f":"C1713","v":{"$error":"#REF!"}},null,null,"Puesto Funcional:",null,null,{"$f":"I1713","v":{"$error":"#REF!"}},null,null,null,"Titulo Jornal:",null,null,{"$f":"P1713","v":{"$error":"#REF!"}}]
["Cuenta / Banco:",null,null,{"$f":"D1714","v":{"$error":"#REF!"}},null,"Banco de Desarrollo Rural, S.A.",null,null,null,null,"Jornal Diario:",null,null,{"$f":"N1714","v":{"$error":"#REF!"}},null,"Días Trabajados:",null,null,{"$f":"S1714","v":{"$error":"#REF!"}}]
[]
[null,null,null,null,null,null,null,null,null,null,null,null,"Ingresos",null,null,null,"Deducciones "]
[]
[null,"031","DEVENGADO",null,null,null,null,null,null,null,null,null,{"$f":"M1718","v":{"$error":"#REF!"}}]
[null,"033","BONO ACUERDO GUBERNATIVO 66-2000",null,null,null,null,null,null,null,null,null,{"$f":"M1719","v":{"$error":"#REF!"}}]
[null,"201","I.G.S.S",null,null,null,null,null,null,null,null,null,null,null,null,null,{"$f":"Q1720","v":{"$error":"#REF!"}}]
[null,"118","MONTEPÍO",null,null,null,null,null,null,null,null,null,null,null,null,null,{"$f":"Q1721","v":0}]
[null,"211","RETENCIONES JUDICIALES",null,null,null,null,null,null,null,null,null,null,null,null,null,{"$f":"Q1722","v":{"$error":"#REF!"}}]
[null,null,null,null,null,null,null,null,null,null,"Total  :",null,{"$f":"SUM(M1757:O1761)","v":{"$error":"#REF!"}},null,null,null,{"$f":"SUM(Q1759:S1761)","v":{"$error":"#REF!"}}]
[null,null,null,null,null,null,null,null,null,null,"Liquido :",null,{"$f":"M1762-Q1762","v":{"$error":"#REF!"}}]
[]
[]
[]
[]
[]
[]
[]
[]
[{"$f":"A1733","v":"María José Ceballos López"},null,null,null,null,null,null,null,null,null,null,null,{"$f":"C1751","v":{"$error":"#REF!"}}]
[{"$f":"A1734","v":"Encargada de Nómina"},null,null,null,null,null,null,null,null,null,null,null,{"$f":"P1752","v":{"$error":"#REF!"}}]
[{"$f":"A1735","v":"AMSA "},null,null,null,null,null,null,null,null,null,null,null,"AMSA"]
[]
["GOBIERNO DE LA REPÚBLICA DE GUATEMALA"]
["AUTORIDAD PARA EL MANEJO SUSTENTABLE DE LA CUENCA Y DEL LAGO DE AMATITLÁN"]
[]
[]
[{"$f":"A1748","v":"Boleta de Liquidación Mensual Renglón 031 \"Jornales\"   Correspondiente al mes de octubre 2015"}]
[{"$f":"A1749","v":{"$error":"#REF!"}}]
[]
["Empleado:",null,{"$f":"#REF!","v":{"$error":"#REF!"}},null,null,null,null,null,null,null,"Certificación No.",null,null,{"$f":"N1712+1","v":27},null,"Fecha:",null,{"$f":"R789","v":"2014-08-31"}]
["Contrato:",null,{"$f":"#REF!","v":{"$error":"#REF!"}},null,null,"Puesto Funcional:",null,null,"Peón de Campo",null,null,null,"Titulo Jornal:",null,null,{"$f":"#REF!","v":{"$error":"#REF!"}}]
["Cuenta / Banco:",null,null,{"$f":"#REF!","v":{"$error":"#REF!"}},null,"Banco de Desarrollo Rural, S.A.",null,null,null,null,"Jornal Diario:",null,null,{"$f":"#REF!","v":{"$error":"#REF!"}},null,"Días Trabajados:",null,null,{"$f":"#REF!","v":{"$error":"#REF!"}}]
[]
[null,null,null,null,null,null,null,null,null,null,null,null,"Ingresos",null,null,null,"Deducciones "]
[]
[null,"031","DEVENGADO",null,null,null,null,null,null,null,null,null,{"$f":"#REF!","v":{"$error":"#REF!"}}]
[null,"033","BONO ACUERDO GUBERNATIVO 66-2000",null,null,null,null,null,null,null,null,null,{"$f":"#REF!","v":{"$error":"#REF!"}}]
[null,"201","I.G.S.S",null,null,null,null,null,null,null,null,null,null,null,null,null,{"$f":"#REF!","v":{"$error":"#REF!"}}]
[null,"118","MONTEPÍO",null,null,null,null,null,null,null,null,null,null,null,null,null,0]
[null,"211","RETENCIONES JUDICIALES",null,null,null,null,null,null,null,null,null,null,null,null,null,{"$f":"#REF!","v":{"$error":"#REF!"}}]
[null,null,null,null,null,null,null,null,null,null,"Total  :",null,{"$f":"SUM(M1789:O1793)","v":{"$error":"#REF!"}},null,null,null,{"$f":"SUM(Q1791:S1793)","v":{"$error":"#REF!"}}]
[null,null,null,null,null,null,null,null,null,null,"Liquido :",null,{"$f":"M1794-Q1794","v":{"$error":"#REF!"}}]
[]
[]
[]
[]
[]
[]
[]
[]
["María José Ceballos López",null,null,null,null,null,null,null,null,null,null,null,{"$f":"C1783","v":{"$error":"#REF!"}}]
["Encargada de Nómina",null,null,null,null,null,null,null,null,null,null,null,{"$f":"P1784","v":{"$error":"#REF!"}}]
["AMSA ",null,null,null,null,null,null,null,null,null,null,null,"AMSA"]
[]
[]
[]
[]
[]
[]
[]
[]
["GOBIERNO DE LA REPÚBLICA DE GUATEMALA"]
["AUTORIDAD PARA EL MANEJO SUSTENTABLE DE LA CUENCA Y DEL LAGO DE AMATITLÁN"]
[]
[]
[{"$f":"A1780","v":"Boleta de Liquidación Mensual Renglón 031 \"Jornales\"   Correspondiente al mes de octubre 2015"}]
[{"$f":"A1781","v":{"$error":"#REF!"}}]
[]
["Empleado:",null,{"$f":"C1783","v":{"$error":"#REF!"}},null,null,null,null,null,null,null,"Certificación No.",null,null,{"$f":"N1783","v":27},null,"Fecha:",null,{"$f":"R1783","v":"2014-08-31"}]
["Contrato:",null,{"$f":"C1784","v":{"$error":"#REF!"}},null,null,"Puesto Funcional:",null,null,{"$f":"I1784","v":"Peón de Campo"},null,null,null,"Titulo Jornal:",null,null,{"$f":"P1784","v":{"$error":"#REF!"}}]
["Cuenta / Banco:",null,null,{"$f":"D1785","v":{"$error":"#REF!"}},null,"Banco de Desarrollo Rural, S.A.",null,null,null,null,"Jornal Diario:",null,null,{"$f":"N1785","v":{"$error":"#REF!"}},null,"Días Trabajados:",null,null,{"$f":"S1785","v":{"$error":"#REF!"}}]
[]
[null,null,null,null,null,null,null,null,null,null,null,null,"Ingresos",null,null,null,"Deducciones "]
[]
[null,"031","DEVENGADO",null,null,null,null,null,null,null,null,null,{"$f":"M1789","v":{"$error":"#REF!"}}]
[null,"033","BONO ACUERDO GUBERNATIVO 66-2000",null,null,null,null,null,null,null,null,null,{"$f":"M1790","v":{"$error":"#REF!"}}]
[null,"201","I.G.S.S",null,null,null,null,null,null,null,null,null,null,null,null,null,{"$f":"Q1791","v":{"$error":"#REF!"}}]
[null,"118","MONTEPÍO",null,null,null,null,null,null,null,null,null,null,null,null,null,{"$f":"Q1792","v":0}]
[null,"211","RETENCIONES JUDICIALES",null,null,null,null,null,null,null,null,null,null,null,null,null,{"$f":"Q1793","v":{"$error":"#REF!"}}]
[null,null,null,null,null,null,null,null,null,null,"Total  :",null,{"$f":"SUM(M1828:O1832)","v":{"$error":"#REF!"}},null,null,null,{"$f":"SUM(Q1830:S1832)","v":{"$error":"#REF!"}}]
[null,null,null,null,null,null,null,null,null,null,"Liquido :",null,{"$f":"M1833-Q1833","v":{"$error":"#REF!"}}]
[]
[]
[]
[]
[]
[]
[]
[]
[{"$f":"A1804","v":"María José Ceballos López"},null,null,null,null,null,null,null,null,null,null,null,{"$f":"C1822","v":{"$error":"#REF!"}}]
[{"$f":"A1805","v":"Encargada de Nómina"},null,null,null,null,null,null,null,null,null,null,null,{"$f":"P1823","v":{"$error":"#REF!"}}]
[{"$f":"A1806","v":"AMSA "},null,null,null,null,null,null,null,null,null,null,null,"AMSA"]
[]
["GOBIERNO DE LA REPÚBLICA DE GUATEMALA"]
["AUTORIDAD PARA EL MANEJO SUSTENTABLE DE LA CUENCA Y DEL LAGO DE AMATITLÁN"]
[]
[]
[{"$f":"A1780","v":"Boleta de Liquidación Mensual Renglón 031 \"Jornales\"   Correspondiente al mes de octubre 2015"}]
[{"$f":"A1781","v":{"$error":"#REF!"}}]
[]
["Empleado:",null,{"$f":"#REF!","v":{"$error":"#REF!"}},null,null,null,null,null,null,null,"Certificación No.",null,null,{"$f":"N1783+1","v":28},null,"Fecha:",null,{"$f":"R860","v":"2014-08-31"}]
["Contrato:",null,{"$f":"#REF!","v":{"$error":"#REF!"}},null,null,"Puesto Funcional:",null,null,{"$f":"#REF!","v":{"$error":"#REF!"}},null,null,null,"Titulo Jornal:",null,null,{"$f":"#REF!","v":{"$error":"#REF!"}}]
["Cuenta / Banco:",null,null,{"$f":"#REF!","v":{"$error":"#REF!"}},null,"Banco de Desarrollo Rural, S.A.",null,null,null,null,"Jornal Diario:",null,null,{"$f":"#REF!","v":{"$error":"#REF!"}},null,"Días Trabajados:",null,null,{"$f":"#REF!","v":{"$error":"#REF!"}}]
[]
[null,null,null,null,null,null,null,null,null,null,null,null,"Ingresos",null,null,null,"Deducciones "]
[]
[null,"031","DEVENGADO",null,null,null,null,null,null,null,null,null,{"$f":"#REF!","v":{"$error":"#REF!"}}]
[null,"033","BONO ACUERDO GUBERNATIVO 66-2000",null,null,null,null,null,null,null,null,null,{"$f":"#REF!","v":{"$error":"#REF!"}}]
[null,"201","I.G.S.S",null,null,null,null,null,null,null,null,null,null,null,null,null,{"$f":"#REF!","v":{"$error":"#REF!"}}]
[null,"118","MONTEPÍO",null,null,null,null,null,null,null,null,null,null,null,null,null,0]
[null,"211","RETENCIONES JUDICIALES",null,null,null,null,null,null,null,null,null,null,null,null,null,{"$f":"#REF!","v":{"$error":"#REF!"}}]
[null,null,null,null,null,null,null,null,null,null,"Total  :",null,{"$f":"SUM(M1860:O1864)","v":{"$error":"#REF!"}},null,null,null,{"$f":"SUM(Q1862:S1864)","v":{"$error":"#REF!"}}]
[null,null,null,null,null,null,null,null,null,null,"Liquido :",null,{"$f":"M1865-Q1865","v":{"$error":"#REF!"}}]
[]
[]
[]
[]
[]
[]
[]
[]
["María José Ceballos López",null,null,null,null,null,null,null,null,null,null,null,{"$f":"C1854","v":{"$error":"#REF!"}}]
["Encargada de Nómina",null,null,null,null,null,null,null,null,null,null,null,{"$f":"P1855","v":{"$error":"#REF!"}}]
["AMSA ",null,null,null,null,null,null,null,null,null,null,null,"AMSA"]
[]
[]
[]
[]
[]
[]
[]
[]
["GOBIERNO DE LA REPÚBLICA DE GUATEMALA"]
["AUTORIDAD PARA EL MANEJO SUSTENTABLE DE LA CUENCA Y DEL LAGO DE AMATITLÁN"]
[]
[]
[{"$f":"A1851","v":"Boleta de Liquidación Mensual Renglón 031 \"Jornales\"   Correspondiente al mes de octubre 2015"}]
[{"$f":"A1852","v":{"$error":"#REF!"}}]
[]
["Empleado:",null,{"$f":"C1854","v":{"$error":"#REF!"}},null,null,null,null,null,null,null,"Certificación No.",null,null,{"$f":"N1854","v":28},null,"Fecha:",null,{"$f":"R1854","v":"2014-08-31"}]
["Contrato:",null,{"$f":"C1855","v":{"$error":"#REF!"}},null,null,"Puesto Funcional:",null,null,{"$f":"I1855","v":{"$error":"#REF!"}},null,null,null,"Titulo Jornal:",null,null,{"$f":"P1855","v":{"$error":"#REF!"}}]
["Cuenta / Banco:",null,null,{"$f":"D1856","v":{"$error":"#REF!"}},null,"Banco de Desarrollo Rural, S.A.",null,null,null,null,"Jornal Diario:",null,null,{"$f":"N1856","v":{"$error":"#REF!"}},null,"Días Trabajados:",null,null,{"$f":"S1856","v":{"$error":"#REF!"}}]
[]
[null,null,null,null,null,null,null,null,null,null,null,null,"Ingresos",null,null,null,"Deducciones "]
[]
[null,"031","DEVENGADO",null,null,null,null,null,null,null,null,null,{"$f":"M1860","v":{"$error":"#REF!"}}]
[null,"033","BONO ACUERDO GUBERNATIVO 66-2000",null,null,null,null,null,null,null,null,null,{"$f":"M1861","v":{"$error":"#REF!"}}]
[null,"201","I.G.S.S",null,null,null,null,null,null,null,null,null,null,null,null,null,{"$f":"Q1862","v":{"$error":"#REF!"}}]
[null,"118","MONTEPÍO",null,null,null,null,null,null,null,null,null,null,null,null,null,{"$f":"Q1863","v":0}]
[null,"211","RETENCIONES JUDICIALES",null,null,null,null,null,null,null,null,null,null,null,null,null,{"$f":"Q1864","v":{"$error":"#REF!"}}]
[null,null,null,null,null,null,null,null,null,null,"Total  :",null,{"$f":"SUM(M1899:O1903)","v":{"$error":"#REF!"}},null,null,null,{"$f":"SUM(Q1901:S1903)","v":{"$error":"#REF!"}}]
[null,null,null,null,null,null,null,null,null,null,"Liquido :",null,{"$f":"M1904-Q1904","v":{"$error":"#REF!"}}]
[]
[]
[]
[]
[]
[]
[]
[]
[{"$f":"A1875","v":"María José Ceballos López"},null,null,null,null,null,null,null,null,null,null,null,{"$f":"C1893","v":{"$error":"#REF!"}}]
[{"$f":"A1876","v":"Encargada de Nómina"},null,null,null,null,null,null,null,null,null,null,null,{"$f":"P1894","v":{"$error":"#REF!"}}]
[{"$f":"A1877","v":"AMSA "},null,null,null,null,null,null,null,null,null,null,null,"AMSA"]
[]
["GOBIERNO DE LA REPÚBLICA DE GUATEMALA"]
["AUTORIDAD PARA EL MANEJO SUSTENTABLE DE LA CUENCA Y DEL LAGO DE AMATITLÁN"]
[]
[]
[{"$f":"A1851","v":"Boleta de Liquidación Mensual Renglón 031 \"Jornales\"   Correspondiente al mes de octubre 2015"}]
[{"$f":"A1852","v":{"$error":"#REF!"}}]
[]
["Empleado:",null,{"$f":"#REF!","v":{"$error":"#REF!"}},null,null,null,null,null,null,null,"Certificación No.",null,null,{"$f":"N1854+1","v":29},null,"Fecha:",null,{"$f":"R931","v":"2015-10-31"}]
["Contrato:",null,{"$f":"#REF!","v":{"$error":"#REF!"}},null,null,"Puesto Funcional:",null,null,{"$f":"#REF!","v":{"$error":"#REF!"}},null,null,null,"Titulo Jornal:",null,null,{"$f":"#REF!","v":{"$error":"#REF!"}}]
["Cuenta / Banco:",null,null,{"$f":"#REF!","v":{"$error":"#REF!"}},null,"Banco de Desarrollo Rural, S.A.",null,null,null,null,"Jornal Diario:",null,null,{"$f":"#REF!","v":{"$error":"#REF!"}},null,"Días Trabajados:",null,null,{"$f":"#REF!","v":{"$error":"#REF!"}}]
[]
[null,null,null,null,null,null,null,null,null,null,null,null,"Ingresos",null,null,null,"Deducciones "]
[]
[null,"031","DEVENGADO",null,null,null,null,null,null,null,null,null,{"$f":"#REF!","v":{"$error":"#REF!"}}]
[null,"033","BONO ACUERDO GUBERNATIVO 66-2000",null,null,null,null,null,null,null,null,null,{"$f":"#REF!","v":{"$error":"#REF!"}}]
[null,"201","I.G.S.S",null,null,null,null,null,null,null,null,null,null,null,null,null,{"$f":"#REF!","v":{"$error":"#REF!"}}]
[null,"118","MONTEPÍO",null,null,null,null,null,null,null,null,null,null,null,null,null,0]
[null,"211","RETENCIONES JUDICIALES",null,null,null,null,null,null,null,null,null,null,null,null,null,{"$f":"#REF!","v":{"$error":"#REF!"}}]
[null,null,null,null,null,null,null,null,null,null,"Total  :",null,{"$f":"SUM(M1931:O1935)","v":{"$error":"#REF!"}},null,null,null,{"$f":"SUM(Q1933:S1935)","v":{"$error":"#REF!"}}]
[null,null,null,null,null,null,null,null,null,null,"Liquido :",null,{"$f":"M1936-Q1936","v":{"$error":"#REF!"}}]
[]
[]
[]
[]
[]
[]
[]
[]
["María José Ceballos López",null,null,null,null,null,null,null,null,null,null,null,{"$f":"C1925","v":{"$error":"#REF!"}}]
["Encargada de Nómina",null,null,null,null,null,null,null,null,null,null,null,{"$f":"P1926","v":{"$error":"#REF!"}}]
["AMSA ",null,null,null,null,null,null,null,null,null,null,null,"AMSA"]
[]
[]
[]
[]
[]
[]
[]
[]
["GOBIERNO DE LA REPÚBLICA DE GUATEMALA"]
["AUTORIDAD PARA EL MANEJO SUSTENTABLE DE LA CUENCA Y DEL LAGO DE AMATITLÁN"]
[]
[]
[{"$f":"A1922","v":"Boleta de Liquidación Mensual Renglón 031 \"Jornales\"   Correspondiente al mes de octubre 2015"}]
[{"$f":"A1923","v":{"$error":"#REF!"}}]
[]
["Empleado:",null,{"$f":"C1925","v":{"$error":"#REF!"}},null,null,null,null,null,null,null,"Certificación No.",null,null,{"$f":"N1925","v":29},null,"Fecha:",null,{"$f":"R1925","v":"2015-10-31"}]
["Contrato:",null,{"$f":"C1926","v":{"$error":"#REF!"}},null,null,"Puesto Funcional:",null,null,{"$f":"I1926","v":{"$error":"#REF!"}},null,null,null,"Titulo Jornal:",null,null,{"$f":"P1926","v":{"$error":"#REF!"}}]
["Cuenta / Banco:",null,null,{"$f":"D1927","v":{"$error":"#REF!"}},null,"Banco de Desarrollo Rural, S.A.",null,null,null,null,"Jornal Diario:",null,null,{"$f":"N1927","v":{"$error":"#REF!"}},null,"Días Trabajados:",null,null,{"$f":"S1927","v":{"$error":"#REF!"}}]
[]
[null,null,null,null,null,null,null,null,null,null,null,null,"Ingresos",null,null,null,"Deducciones "]
[]
[null,"031","DEVENGADO",null,null,null,null,null,null,null,null,null,{"$f":"M1931","v":{"$error":"#REF!"}}]
[null,"033","BONO ACUERDO GUBERNATIVO 66-2000",null,null,null,null,null,null,null,null,null,{"$f":"M1932","v":{"$error":"#REF!"}}]
[null,"201","I.G.S.S",null,null,null,null,null,null,null,null,null,null,null,null,null,{"$f":"Q1933","v":{"$error":"#REF!"}}]
[null,"118","MONTEPÍO",null,null,null,null,null,null,null,null,null,null,null,null,null,{"$f":"Q1934","v":0}]
[null,"211","RETENCIONES JUDICIALES",null,null,null,null,null,null,null,null,null,null,null,null,null,{"$f":"Q1935","v":{"$error":"#REF!"}}]
[null,null,null,null,null,null,null,null,null,null,"Total  :",null,{"$f":"SUM(M1970:O1974)","v":{"$error":"#REF!"}},null,null,null,{"$f":"SUM(Q1972:S1974)","v":{"$error":"#REF!"}}]
[null,null,null,null,null,null,null,null,null,null,"Liquido :",null,{"$f":"M1975-Q1975","v":{"$error":"#REF!"}}]
[]
[]
[]
[]
[]
[]
[]
[]
[{"$f":"A1946","v":"María José Ceballos López"},null,null,null,null,null,null,null,null,null,null,null,{"$f":"C1964","v":{"$error":"#REF!"}}]
[{"$f":"A1947","v":"Encargada de Nómina"},null,null,null,null,null,null,null,null,null,null,null,{"$f":"P1965","v":{"$error":"#REF!"}}]
[{"$f":"A1948","v":"AMSA "},null,null,null,null,null,null,null,null,null,null,null,"AMSA"]
[]
["GOBIERNO DE LA REPÚBLICA DE GUATEMALA"]
["AUTORIDAD PARA EL MANEJO SUSTENTABLE DE LA CUENCA Y DEL LAGO DE AMATITLÁN"]
[]
[]
[{"$f":"A1922","v":"Boleta de Liquidación Mensual Renglón 031 \"Jornales\"   Correspondiente al mes de octubre 2015"}]
[{"$f":"A1923","v":{"$error":"#REF!"}}]
[]
["Empleado:",null,{"$f":"#REF!","v":{"$error":"#REF!"}},null,null,null,null,null,null,null,"Certificación No.",null,null,{"$f":"N1925+1","v":30},null,"Fecha:",null,{"$f":"R1002","v":"2014-08-31"}]
["Contrato:",null,{"$f":"#REF!","v":{"$error":"#REF!"}},null,null,"Puesto Funcional:",null,null,{"$f":"#REF!","v":{"$error":"#REF!"}},null,null,null,"Titulo Jornal:",null,null,{"$f":"#REF!","v":{"$error":"#REF!"}}]
["Cuenta / Banco:",null,null,{"$f":"#REF!","v":{"$error":"#REF!"}},null,"Banco de Desarrollo Rural, S.A.",null,null,null,null,"Jornal Diario:",null,null,{"$f":"#REF!","v":{"$error":"#REF!"}},null,"Días Trabajados:",null,null,{"$f":"#REF!","v":{"$error":"#REF!"}}]
[]
[null,null,null,null,null,null,null,null,null,null,null,null,"Ingresos",null,null,null,"Deducciones "]
[]
[null,"031","DEVENGADO",null,null,null,null,null,null,null,null,null,{"$f":"#REF!","v":{"$error":"#REF!"}}]
[null,"033","BONO ACUERDO GUBERNATIVO 66-2000",null,null,null,null,null,null,null,null,null,{"$f":"#REF!","v":{"$error":"#REF!"}}]
[null,"201","I.G.S.S",null,null,null,null,null,null,null,null,null,null,null,null,null,{"$f":"#REF!","v":{"$error":"#REF!"}}]
[null,"118","MONTEPÍO",null,null,null,null,null,null,null,null,null,null,null,null,null,0]
[null,"211","RETENCIONES JUDICIALES",null,null,null,null,null,null,null,null,null,null,null,null,null,{"$f":"#REF!","v":{"$error":"#REF!"}}]
[null,null,null,null,null,null,null,null,null,null,"Total  :",null,{"$f":"SUM(M2002:O2006)","v":{"$error":"#REF!"}},null,null,null,{"$f":"SUM(Q2004:S2006)","v":{"$error":"#REF!"}}]
[null,null,null,null,null,null,null,null,null,null,"Liquido :",null,{"$f":"M2007-Q2007","v":{"$error":"#REF!"}}]
[]
[]
[]
[]
[]
[]
[]
[]
["María José Ceballos López",null,null,null,null,null,null,null,null,null,null,null,{"$f":"C1996","v":{"$error":"#REF!"}}]
["Encargada de Nómina",null,null,null,null,null,null,null,null,null,null,null,{"$f":"P1997","v":{"$error":"#REF!"}}]
["AMSA ",null,null,null,null,null,null,null,null,null,null,null,"AMSA"]
[]
[]
[]
[]
[]
[]
[]
[]
["GOBIERNO DE LA REPÚBLICA DE GUATEMALA"]
["AUTORIDAD PARA EL MANEJO SUSTENTABLE DE LA CUENCA Y DEL LAGO DE AMATITLÁN"]
[]
[]
[{"$f":"A1993","v":"Boleta de Liquidación Mensual Renglón 031 \"Jornales\"   Correspondiente al mes de octubre 2015"}]
[{"$f":"A1994","v":{"$error":"#REF!"}}]
[]
["Empleado:",null,{"$f":"C1996","v":{"$error":"#REF!"}},null,null,null,null,null,null,null,"Certificación No.",null,null,{"$f":"N1996","v":30},null,"Fecha:",null,{"$f":"R1996","v":"2014-08-31"}]
["Contrato:",null,{"$f":"C1997","v":{"$error":"#REF!"}},null,null,"Puesto Funcional:",null,null,{"$f":"I1997","v":{"$error":"#REF!"}},null,null,null,"Titulo Jornal:",null,null,{"$f":"P1997","v":{"$error":"#REF!"}}]
["Cuenta / Banco:",null,null,{"$f":"D1998","v":{"$error":"#REF!"}},null,"Banco de Desarrollo Rural, S.A.",null,null,null,null,"Jornal Diario:",null,null,{"$f":"N1998","v":{"$error":"#REF!"}},null,"Días Trabajados:",null,null,{"$f":"S1998","v":{"$error":"#REF!"}}]
[]
[null,null,null,null,null,null,null,null,null,null,null,null,"Ingresos",null,null,null,"Deducciones "]
[]
[null,"031","DEVENGADO",null,null,null,null,null,null,null,null,null,{"$f":"M2002","v":{"$error":"#REF!"}}]
[null,"033","BONO ACUERDO GUBERNATIVO 66-2000",null,null,null,null,null,null,null,null,null,{"$f":"M2003","v":{"$error":"#REF!"}}]
[null,"201","I.G.S.S",null,null,null,null,null,null,null,null,null,null,null,null,null,{"$f":"Q2004","v":{"$error":"#REF!"}}]
[null,"118","MONTEPÍO",null,null,null,null,null,null,null,null,null,null,null,null,null,{"$f":"Q2005","v":0}]
[null,"211","RETENCIONES JUDICIALES",null,null,null,null,null,null,null,null,null,null,null,null,null,{"$f":"Q2006","v":{"$error":"#REF!"}}]
[null,null,null,null,null,null,null,null,null,null,"Total  :",null,{"$f":"SUM(M2041:O2045)","v":{"$error":"#REF!"}},null,null,null,{"$f":"SUM(Q2043:S2045)","v":{"$error":"#REF!"}}]
[null,null,null,null,null,null,null,null,null,null,"Liquido :",null,{"$f":"M2046-Q2046","v":{"$error":"#REF!"}}]
[]
[]
[]
[]
[]
[]
[]
[]
[{"$f":"A2017","v":"María José Ceballos López"},null,null,null,null,null,null,null,null,null,null,null,{"$f":"C2035","v":{"$error":"#REF!"}}]
[{"$f":"A2018","v":"Encargada de Nómina"},null,null,null,null,null,null,null,null,null,null,null,{"$f":"P2036","v":{"$error":"#REF!"}}]
[{"$f":"A2019","v":"AMSA "},null,null,null,null,null,null,null,null,null,null,null,"AMSA"]
[]
["GOBIERNO DE LA REPÚBLICA DE GUATEMALA"]
["AUTORIDAD PARA EL MANEJO SUSTENTABLE DE LA CUENCA Y DEL LAGO DE AMATITLÁN"]
[]
[]
[{"$f":"A1993","v":"Boleta de Liquidación Mensual Renglón 031 \"Jornales\"   Correspondiente al mes de octubre 2015"}]
[{"$f":"A1994","v":{"$error":"#REF!"}}]
[]
["Empleado:",null,{"$f":"#REF!","v":{"$error":"#REF!"}},null,null,null,null,null,null,null,"Certificación No.",null,null,{"$f":"N1996+1","v":31},null,"Fecha:",null,{"$f":"R1073","v":"2014-08-31"}]
["Contrato:",null,{"$f":"#REF!","v":{"$error":"#REF!"}},null,null,"Puesto Funcional:",null,null,{"$f":"#REF!","v":{"$error":"#REF!"}},null,null,null,"Titulo Jornal:",null,null,{"$f":"#REF!","v":{"$error":"#REF!"}}]
["Cuenta / Banco:",null,null,{"$f":"#REF!","v":{"$error":"#REF!"}},null,"Banco de Desarrollo Rural, S.A.",null,null,null,null,"Jornal Diario:",null,null,{"$f":"#REF!","v":{"$error":"#REF!"}},null,"Días Trabajados:",null,null,{"$f":"#REF!","v":{"$error":"#REF!"}}]
[]
[null,null,null,null,null,null,null,null,null,null,null,null,"Ingresos",null,null,null,"Deducciones "]
[]
[null,"031","DEVENGADO",null,null,null,null,null,null,null,null,null,{"$f":"#REF!","v":{"$error":"#REF!"}}]
[null,"033","BONO ACUERDO GUBERNATIVO 66-2000",null,null,null,null,null,null,null,null,null,{"$f":"#REF!","v":{"$error":"#REF!"}}]
[null,"201","I.G.S.S",null,null,null,null,null,null,null,null,null,null,null,null,null,{"$f":"#REF!","v":{"$error":"#REF!"}}]
[null,"118","MONTEPÍO",null,null,null,null,null,null,null,null,null,null,null,null,null,0]
[null,"211","RETENCIONES JUDICIALES",null,null,null,null,null,null,null,null,null,null,null,null,null,{"$f":"#REF!","v":{"$error":"#REF!"}}]
[null,null,null,null,null,null,null,null,null,null,"Total  :",null,{"$f":"SUM(M2073:O2077)","v":{"$error":"#REF!"}},null,null,null,{"$f":"SUM(Q2075:S2077)","v":{"$error":"#REF!"}}]
[null,null,null,null,null,null,null,null,null,null,"Liquido :",null,{"$f":"M2078-Q2078","v":{"$error":"#REF!"}}]
[]
[]
[]
[]
[]
[]
[]
[]
["María José Ceballos López",null,null,null,null,null,null,null,null,null,null,null,{"$f":"C2067","v":{"$error":"#REF!"}}]
["Encargada de Nómina",null,null,null,null,null,null,null,null,null,null,null,{"$f":"P2068","v":{"$error":"#REF!"}}]
["AMSA ",null,null,null,null,null,null,null,null,null,null,null,"AMSA"]
[]
[]
[]
[]
[]
[]
[]
[]
["GOBIERNO DE LA REPÚBLICA DE GUATEMALA"]
["AUTORIDAD PARA EL MANEJO SUSTENTABLE DE LA CUENCA Y DEL LAGO DE AMATITLÁN"]
[]
[]
[{"$f":"A2064","v":"Boleta de Liquidación Mensual Renglón 031 \"Jornales\"   Correspondiente al mes de octubre 2015"}]
[{"$f":"A2065","v":{"$error":"#REF!"}}]
[]
["Empleado:",null,{"$f":"C2067","v":{"$error":"#REF!"}},null,null,null,null,null,null,null,"Certificación No.",null,null,{"$f":"N2067","v":31},null,"Fecha:",null,{"$f":"R2067","v":"2014-08-31"}]
["Contrato:",null,{"$f":"C2068","v":{"$error":"#REF!"}},null,null,"Puesto Funcional:",null,null,{"$f":"I2068","v":{"$error":"#REF!"}},null,null,null,"Titulo Jornal:",null,null,{"$f":"P2068","v":{"$error":"#REF!"}}]
["Cuenta / Banco:",null,null,{"$f":"D2069","v":{"$error":"#REF!"}},null,"Banco de Desarrollo Rural, S.A.",null,null,null,null,"Jornal Diario:",null,null,{"$f":"N2069","v":{"$error":"#REF!"}},null,"Días Trabajados:",null,null,{"$f":"S2069","v":{"$error":"#REF!"}}]
[]
[null,null,null,null,null,null,null,null,null,null,null,null,"Ingresos",null,null,null,"Deducciones "]
[]
[null,"031","DEVENGADO",null,null,null,null,null,null,null,null,null,{"$f":"M2073","v":{"$error":"#REF!"}}]
[null,"033","BONO ACUERDO GUBERNATIVO 66-2000",null,null,null,null,null,null,null,null,null,{"$f":"M2074","v":{"$error":"#REF!"}}]
[null,"201","I.G.S.S",null,null,null,null,null,null,null,null,null,null,null,null,null,{"$f":"Q2075","v":{"$error":"#REF!"}}]
[null,"118","MONTEPÍO",null,null,null,null,null,null,null,null,null,null,null,null,null,{"$f":"Q2076","v":0}]
[null,"211","RETENCIONES JUDICIALES",null,null,null,null,null,null,null,null,null,null,null,null,null,{"$f":"Q2077","v":{"$error":"#REF!"}}]
[null,null,null,null,null,null,null,null,null,null,"Total  :",null,{"$f":"SUM(M2112:O2116)","v":{"$error":"#REF!"}},null,null,null,{"$f":"SUM(Q2114:S2116)","v":{"$error":"#REF!"}}]
[null,null,null,null,null,null,null,null,null,null,"Liquido :",null,{"$f":"M2117-Q2117","v":{"$error":"#REF!"}}]
[]
[]
[]
[]
[]
[]
[]
[]
[{"$f":"A2088","v":"María José Ceballos López"},null,null,null,null,null,null,null,null,null,null,null,{"$f":"C2106","v":{"$error":"#REF!"}}]
[{"$f":"A2089","v":"Encargada de Nómina"},null,null,null,null,null,null,null,null,null,null,null,{"$f":"P2107","v":{"$error":"#REF!"}}]
[{"$f":"A2090","v":"AMSA "},null,null,null,null,null,null,null,null,null,null,null,"AMSA"]
[]
["GOBIERNO DE LA REPÚBLICA DE GUATEMALA"]
["AUTORIDAD PARA EL MANEJO SUSTENTABLE DE LA CUENCA Y DEL LAGO DE AMATITLÁN"]
[]
[]
[{"$f":"A2064","v":"Boleta de Liquidación Mensual Renglón 031 \"Jornales\"   Correspondiente al mes de octubre 2015"}]
[{"$f":"A2065","v":{"$error":"#REF!"}}]
[]
["Empleado:",null,{"$f":"#REF!","v":{"$error":"#REF!"}},null,null,null,null,null,null,null,"Certificación No.",null,null,{"$f":"N2067+1","v":32},null,"Fecha:",null,{"$f":"R1144","v":"2014-08-31"}]
["Contrato:",null,{"$f":"#REF!","v":{"$error":"#REF!"}},null,null,"Puesto Funcional:",null,null,{"$f":"#REF!","v":{"$error":"#REF!"}},null,null,null,"Titulo Jornal:",null,null,{"$f":"#REF!","v":{"$error":"#REF!"}}]
["Cuenta / Banco:",null,null,{"$f":"#REF!","v":{"$error":"#REF!"}},null,"Banco de Desarrollo Rural, S.A.",null,null,null,null,"Jornal Diario:",null,null,{"$f":"#REF!","v":{"$error":"#REF!"}},null,"Días Trabajados:",null,null,{"$f":"#REF!","v":{"$error":"#REF!"}}]
[]
[null,null,null,null,null,null,null,null,null,null,null,null,"Ingresos",null,null,null,"Deducciones "]
[]
[null,"031","DEVENGADO",null,null,null,null,null,null,null,null,null,{"$f":"#REF!","v":{"$error":"#REF!"}}]
[null,"033","BONO ACUERDO GUBERNATIVO 66-2000",null,null,null,null,null,null,null,null,null,{"$f":"#REF!","v":{"$error":"#REF!"}}]
[null,"201","I.G.S.S",null,null,null,null,null,null,null,null,null,null,null,null,null,{"$f":"#REF!","v":{"$error":"#REF!"}}]
[null,"118","MONTEPÍO",null,null,null,null,null,null,null,null,null,null,null,null,null,0]
[null,"211","RETENCIONES JUDICIALES",null,null,null,null,null,null,null,null,null,null,null,null,null,{"$f":"#REF!","v":{"$error":"#REF!"}}]
[null,null,null,null,null,null,null,null,null,null,"Total  :",null,{"$f":"SUM(M2144:O2148)","v":{"$error":"#REF!"}},null,null,null,{"$f":"SUM(Q2146:S2148)","v":{"$error":"#REF!"}}]
[null,null,null,null,null,null,null,null,null,null,"Liquido :",null,{"$f":"M2149-Q2149","v":{"$error":"#REF!"}}]
[]
[]
[]
[]
[]
[]
[]
[]
["María José Ceballos López",null,null,null,null,null,null,null,null,null,null,null,{"$f":"C2138","v":{"$error":"#REF!"}}]
["Encargada de Nómina",null,null,null,null,null,null,null,null,null,null,null,{"$f":"P2139","v":{"$error":"#REF!"}}]
["AMSA ",null,null,null,null,null,null,null,null,null,null,null,"AMSA"]
[]
[]
[]
[]
[]
[]
[]
[]
["GOBIERNO DE LA REPÚBLICA DE GUATEMALA"]
["AUTORIDAD PARA EL MANEJO SUSTENTABLE DE LA CUENCA Y DEL LAGO DE AMATITLÁN"]
[]
[]
[{"$f":"A2135","v":"Boleta de Liquidación Mensual Renglón 031 \"Jornales\"   Correspondiente al mes de octubre 2015"}]
[{"$f":"A2136","v":{"$error":"#REF!"}}]
[]
["Empleado:",null,{"$f":"C2138","v":{"$error":"#REF!"}},null,null,null,null,null,null,null,"Certificación No.",null,null,{"$f":"N2138","v":32},null,"Fecha:",null,{"$f":"R2138","v":"2014-08-31"}]
["Contrato:",null,{"$f":"C2139","v":{"$error":"#REF!"}},null,null,"Puesto Funcional:",null,null,{"$f":"I2139","v":{"$error":"#REF!"}},null,null,null,"Titulo Jornal:",null,null,{"$f":"P2139","v":{"$error":"#REF!"}}]
["Cuenta / Banco:",null,null,{"$f":"D2140","v":{"$error":"#REF!"}},null,"Banco de Desarrollo Rural, S.A.",null,null,null,null,"Jornal Diario:",null,null,{"$f":"N2140","v":{"$error":"#REF!"}},null,"Días Trabajados:",null,null,{"$f":"S2140","v":{"$error":"#REF!"}}]
[]
[null,null,null,null,null,null,null,null,null,null,null,null,"Ingresos",null,null,null,"Deducciones "]
[]
[null,"031","DEVENGADO",null,null,null,null,null,null,null,null,null,{"$f":"M2144","v":{"$error":"#REF!"}}]
[null,"033","BONO ACUERDO GUBERNATIVO 66-2000",null,null,null,null,null,null,null,null,null,{"$f":"M2145","v":{"$error":"#REF!"}}]
[null,"201","I.G.S.S",null,null,null,null,null,null,null,null,null,null,null,null,null,{"$f":"Q2146","v":{"$error":"#REF!"}}]
[null,"118","MONTEPÍO",null,null,null,null,null,null,null,null,null,null,null,null,null,{"$f":"Q2147","v":0}]
[null,"211","RETENCIONES JUDICIALES",null,null,null,null,null,null,null,null,null,null,null,null,null,{"$f":"Q2148","v":{"$error":"#REF!"}}]
[null,null,null,null,null,null,null,null,null,null,"Total  :",null,{"$f":"SUM(M2183:O2187)","v":{"$error":"#REF!"}},null,null,null,{"$f":"SUM(Q2185:S2187)","v":{"$error":"#REF!"}}]
[null,null,null,null,null,null,null,null,null,null,"Liquido :",null,{"$f":"M2188-Q2188","v":{"$error":"#REF!"}}]
[]
[]
[]
[]
[]
[]
[]
[]
[{"$f":"A2159","v":"María José Ceballos López"},null,null,null,null,null,null,null,null,null,null,null,{"$f":"C2177","v":{"$error":"#REF!"}}]
[{"$f":"A2160","v":"Encargada de Nómina"},null,null,null,null,null,null,null,null,null,null,null,{"$f":"P2178","v":{"$error":"#REF!"}}]
[{"$f":"A2161","v":"AMSA "},null,null,null,null,null,null,null,null,null,null,null,"AMSA"]
[]
["GOBIERNO DE LA REPÚBLICA DE GUATEMALA"]
["AUTORIDAD PARA EL MANEJO SUSTENTABLE DE LA CUENCA Y DEL LAGO DE AMATITLÁN"]
[]
[]
[{"$f":"A2135","v":"Boleta de Liquidación Mensual Renglón 031 \"Jornales\"   Correspondiente al mes de octubre 2015"}]
[{"$f":"A2136","v":{"$error":"#REF!"}}]
[]
["Empleado:",null,{"$f":"#REF!","v":{"$error":"#REF!"}},null,null,null,null,null,null,null,"Certificación No.",null,null,{"$f":"N2138+1","v":33},null,"Fecha:",null,{"$f":"R1215","v":"2014-08-31"}]
["Contrato:",null,{"$f":"#REF!","v":{"$error":"#REF!"}},null,null,"Puesto Funcional:",null,null,{"$f":"#REF!","v":{"$error":"#REF!"}},null,null,null,"Titulo Jornal:",null,null,{"$f":"#REF!","v":{"$error":"#REF!"}}]
["Cuenta / Banco:",null,null,{"$f":"#REF!","v":{"$error":"#REF!"}},null,"Banco de Desarrollo Rural, S.A.",null,null,null,null,"Jornal Diario:",null,null,{"$f":"#REF!","v":{"$error":"#REF!"}},null,"Días Trabajados:",null,null,{"$f":"#REF!","v":{"$error":"#REF!"}}]
[]
[null,null,null,null,null,null,null,null,null,null,null,null,"Ingresos",null,null,null,"Deducciones "]
[]
[null,"031","DEVENGADO",null,null,null,null,null,null,null,null,null,{"$f":"#REF!","v":{"$error":"#REF!"}}]
[null,"033","BONO ACUERDO GUBERNATIVO 66-2000",null,null,null,null,null,null,null,null,null,{"$f":"#REF!","v":{"$error":"#REF!"}}]
[null,"201","I.G.S.S",null,null,null,null,null,null,null,null,null,null,null,null,null,{"$f":"#REF!","v":{"$error":"#REF!"}}]
[null,"118","MONTEPÍO",null,null,null,null,null,null,null,null,null,null,null,null,null,0]
[null,"211","RETENCIONES JUDICIALES",null,null,null,null,null,null,null,null,null,null,null,null,null,{"$f":"#REF!","v":{"$error":"#REF!"}}]
[null,null,null,null,null,null,null,null,null,null,"Total  :",null,{"$f":"SUM(M2215:O2219)","v":{"$error":"#REF!"}},null,null,null,{"$f":"SUM(Q2217:S2219)","v":{"$error":"#REF!"}}]
[null,null,null,null,null,null,null,null,null,null,"Liquido :",null,{"$f":"M2220-Q2220","v":{"$error":"#REF!"}}]
[]
[]
[]
[]
[]
[]
[]
[]
["María José Ceballos López",null,null,null,null,null,null,null,null,null,null,null,{"$f":"C2209","v":{"$error":"#REF!"}}]
["Encargada de Nómina",null,null,null,null,null,null,null,null,null,null,null,{"$f":"P2210","v":{"$error":"#REF!"}}]
["AMSA ",null,null,null,null,null,null,null,null,null,null,null,"AMSA"]
[]
[]
[]
[]
[]
[]
[]
[]
["GOBIERNO DE LA REPÚBLICA DE GUATEMALA"]
["AUTORIDAD PARA EL MANEJO SUSTENTABLE DE LA CUENCA Y DEL LAGO DE AMATITLÁN"]
[]
[]
[{"$f":"A2206","v":"Boleta de Liquidación Mensual Renglón 031 \"Jornales\"   Correspondiente al mes de octubre 2015"}]
[{"$f":"A2207","v":{"$error":"#REF!"}}]
[]
["Empleado:",null,{"$f":"C2209","v":{"$error":"#REF!"}},null,null,null,null,null,null,null,"Certificación No.",null,null,{"$f":"N2209","v":33},null,"Fecha:",null,{"$f":"R2209","v":"2014-08-31"}]
["Contrato:",null,{"$f":"C2210","v":{"$error":"#REF!"}},null,null,"Puesto Funcional:",null,null,{"$f":"I2210","v":{"$error":"#REF!"}},null,null,null,"Titulo Jornal:",null,null,{"$f":"P2210","v":{"$error":"#REF!"}}]
["Cuenta / Banco:",null,null,{"$f":"D2211","v":{"$error":"#REF!"}},null,"Banco de Desarrollo Rural, S.A.",null,null,null,null,"Jornal Diario:",null,null,{"$f":"N2211","v":{"$error":"#REF!"}},null,"Días Trabajados:",null,null,{"$f":"S2211","v":{"$error":"#REF!"}}]
[]
[null,null,null,null,null,null,null,null,null,null,null,null,"Ingresos",null,null,null,"Deducciones "]
[]
[null,"031","DEVENGADO",null,null,null,null,null,null,null,null,null,{"$f":"M2215","v":{"$error":"#REF!"}}]
[null,"033","BONO ACUERDO GUBERNATIVO 66-2000",null,null,null,null,null,null,null,null,null,{"$f":"M2216","v":{"$error":"#REF!"}}]
[null,"201","I.G.S.S",null,null,null,null,null,null,null,null,null,null,null,null,null,{"$f":"Q2217","v":{"$error":"#REF!"}}]
[null,"118","MONTEPÍO",null,null,null,null,null,null,null,null,null,null,null,null,null,{"$f":"Q2218","v":0}]
[null,"211","RETENCIONES JUDICIALES",null,null,null,null,null,null,null,null,null,null,null,null,null,{"$f":"Q2219","v":{"$error":"#REF!"}}]
[null,null,null,null,null,null,null,null,null,null,"Total  :",null,{"$f":"SUM(M2254:O2258)","v":{"$error":"#REF!"}},null,null,null,{"$f":"SUM(Q2256:S2258)","v":{"$error":"#REF!"}}]
[null,null,null,null,null,null,null,null,null,null,"Liquido :",null,{"$f":"M2259-Q2259","v":{"$error":"#REF!"}}]
[]
[]
[]
[]
[]
[]
[]
[]
[{"$f":"A2230","v":"María José Ceballos López"},null,null,null,null,null,null,null,null,null,null,null,{"$f":"C2248","v":{"$error":"#REF!"}}]
[{"$f":"A2231","v":"Encargada de Nómina"},null,null,null,null,null,null,null,null,null,null,null,{"$f":"P2249","v":{"$error":"#REF!"}}]
[{"$f":"A2232","v":"AMSA "},null,null,null,null,null,null,null,null,null,null,null,"AMSA"]
[]
["GOBIERNO DE LA REPÚBLICA DE GUATEMALA"]
["AUTORIDAD PARA EL MANEJO SUSTENTABLE DE LA CUENCA Y DEL LAGO DE AMATITLÁN"]
[]
[]
[{"$f":"A2206","v":"Boleta de Liquidación Mensual Renglón 031 \"Jornales\"   Correspondiente al mes de octubre 2015"}]
[{"$f":"A2207","v":{"$error":"#REF!"}}]
[]
["Empleado:",null,{"$f":"#REF!","v":{"$error":"#REF!"}},null,null,null,null,null,null,null,"Certificación No.",null,null,{"$f":"N2209+1","v":34},null,"Fecha:",null,{"$f":"R1286","v":"2014-09-30"}]
["Contrato:",null,{"$f":"#REF!","v":{"$error":"#REF!"}},null,null,"Puesto Funcional:",null,null,{"$f":"#REF!","v":{"$error":"#REF!"}},null,null,null,"Titulo Jornal:",null,null,{"$f":"#REF!","v":{"$error":"#REF!"}}]
["Cuenta / Banco:",null,null,{"$f":"#REF!","v":{"$error":"#REF!"}},null,"Banco de Desarrollo Rural, S.A.",null,null,null,null,"Jornal Diario:",null,null,{"$f":"#REF!","v":{"$error":"#REF!"}},null,"Días Trabajados:",null,null,{"$f":"#REF!","v":{"$error":"#REF!"}}]
[]
[null,null,null,null,null,null,null,null,null,null,null,null,"Ingresos",null,null,null,"Deducciones "]
[]
[null,"031","DEVENGADO",null,null,null,null,null,null,null,null,null,{"$f":"#REF!","v":{"$error":"#REF!"}}]
[null,"033","BONO ACUERDO GUBERNATIVO 66-2000",null,null,null,null,null,null,null,null,null,{"$f":"#REF!","v":{"$error":"#REF!"}}]
[null,"201","I.G.S.S",null,null,null,null,null,null,null,null,null,null,null,null,null,{"$f":"#REF!","v":{"$error":"#REF!"}}]
[null,"118","MONTEPÍO",null,null,null,null,null,null,null,null,null,null,null,null,null,0]
[null,"211","RETENCIONES JUDICIALES",null,null,null,null,null,null,null,null,null,null,null,null,null,{"$f":"#REF!","v":{"$error":"#REF!"}}]
[null,null,null,null,null,null,null,null,null,null,"Total  :",null,{"$f":"SUM(M2286:O2290)","v":{"$error":"#REF!"}},null,null,null,{"$f":"SUM(Q2288:S2290)","v":{"$error":"#REF!"}}]
[null,null,null,null,null,null,null,null,null,null,"Liquido :",null,{"$f":"M2291-Q2291","v":{"$error":"#REF!"}}]
[]
[]
[]
[]
[]
[]
[]
[]
["María José Ceballos López",null,null,null,null,null,null,null,null,null,null,null,{"$f":"C2280","v":{"$error":"#REF!"}}]
["Encargada de Nómina",null,null,null,null,null,null,null,null,null,null,null,{"$f":"P2281","v":{"$error":"#REF!"}}]
["AMSA ",null,null,null,null,null,null,null,null,null,null,null,"AMSA"]
[]
[]
[]
[]
[]
[]
[]
[]
["GOBIERNO DE LA REPÚBLICA DE GUATEMALA"]
["AUTORIDAD PARA EL MANEJO SUSTENTABLE DE LA CUENCA Y DEL LAGO DE AMATITLÁN"]
[]
[]
[{"$f":"A2277","v":"Boleta de Liquidación Mensual Renglón 031 \"Jornales\"   Correspondiente al mes de octubre 2015"}]
[{"$f":"A2278","v":{"$error":"#REF!"}}]
[]
["Empleado:",null,{"$f":"C2280","v":{"$error":"#REF!"}},null,null,null,null,null,null,null,"Certificación No.",null,null,{"$f":"N2280","v":34},null,"Fecha:",null,{"$f":"R2280","v":"2014-09-30"}]
["Contrato:",null,{"$f":"C2281","v":{"$error":"#REF!"}},null,null,"Puesto Funcional:",null,null,{"$f":"I2281","v":{"$error":"#REF!"}},null,null,null,"Titulo Jornal:",null,null,{"$f":"P2281","v":{"$error":"#REF!"}}]
["Cuenta / Banco:",null,null,{"$f":"D2282","v":{"$error":"#REF!"}},null,"Banco de Desarrollo Rural, S.A.",null,null,null,null,"Jornal Diario:",null,null,{"$f":"N2282","v":{"$error":"#REF!"}},null,"Días Trabajados:",null,null,{"$f":"S2282","v":{"$error":"#REF!"}}]
[]
[null,null,null,null,null,null,null,null,null,null,null,null,"Ingresos",null,null,null,"Deducciones "]
[]
[null,"031","DEVENGADO",null,null,null,null,null,null,null,null,null,{"$f":"M2286","v":{"$error":"#REF!"}}]
[null,"033","BONO ACUERDO GUBERNATIVO 66-2000",null,null,null,null,null,null,null,null,null,{"$f":"M2287","v":{"$error":"#REF!"}}]
[null,"201","I.G.S.S",null,null,null,null,null,null,null,null,null,null,null,null,null,{"$f":"Q2288","v":{"$error":"#REF!"}}]
[null,"118","MONTEPÍO",null,null,null,null,null,null,null,null,null,null,null,null,null,{"$f":"Q2289","v":0}]
[null,"211","RETENCIONES JUDICIALES",null,null,null,null,null,null,null,null,null,null,null,null,null,{"$f":"Q2290","v":{"$error":"#REF!"}}]
[null,null,null,null,null,null,null,null,null,null,"Total  :",null,{"$f":"SUM(M2325:O2329)","v":{"$error":"#REF!"}},null,null,null,{"$f":"SUM(Q2327:S2329)","v":{"$error":"#REF!"}}]
[null,null,null,null,null,null,null,null,null,null,"Liquido :",null,{"$f":"M2330-Q2330","v":{"$error":"#REF!"}}]
[]
[]
[]
[]
[]
[]
[]
[]
[{"$f":"A2301","v":"María José Ceballos López"},null,null,null,null,null,null,null,null,null,null,null,{"$f":"C2319","v":{"$error":"#REF!"}}]
[{"$f":"A2302","v":"Encargada de Nómina"},null,null,null,null,null,null,null,null,null,null,null,{"$f":"P2320","v":{"$error":"#REF!"}}]
[{"$f":"A2303","v":"AMSA "},null,null,null,null,null,null,null,null,null,null,null,"AMSA"]
[]
["GOBIERNO DE LA REPÚBLICA DE GUATEMALA"]
["AUTORIDAD PARA EL MANEJO SUSTENTABLE DE LA CUENCA Y DEL LAGO DE AMATITLÁN"]
[]
[]
[{"$f":"A2277","v":"Boleta de Liquidación Mensual Renglón 031 \"Jornales\"   Correspondiente al mes de octubre 2015"}]
[{"$f":"A2278","v":{"$error":"#REF!"}}]
[]
["Empleado:",null,{"$f":"#REF!","v":{"$error":"#REF!"}},null,null,null,null,null,null,null,"Certificación No.",null,null,{"$f":"N2280+1","v":35},null,"Fecha:",null,{"$f":"R1357","v":"2014-08-31"}]
["Contrato:",null,{"$f":"#REF!","v":{"$error":"#REF!"}},null,null,"Puesto Funcional:",null,null,{"$f":"#REF!","v":{"$error":"#REF!"}},null,null,null,"Titulo Jornal:",null,null,{"$f":"#REF!","v":{"$error":"#REF!"}}]
["Cuenta / Banco:",null,null,{"$f":"#REF!","v":{"$error":"#REF!"}},null,"Banco de Desarrollo Rural, S.A.",null,null,null,null,"Jornal Diario:",null,null,{"$f":"#REF!","v":{"$error":"#REF!"}},null,"Días Trabajados:",null,null,{"$f":"#REF!","v":{"$error":"#REF!"}}]
[]
[null,null,null,null,null,null,null,null,null,null,null,null,"Ingresos",null,null,null,"Deducciones "]
[]
[null,"031","DEVENGADO",null,null,null,null,null,null,null,null,null,{"$f":"#REF!","v":{"$error":"#REF!"}}]
[null,"033","BONO ACUERDO GUBERNATIVO 66-2000",null,null,null,null,null,null,null,null,null,{"$f":"#REF!","v":{"$error":"#REF!"}}]
[null,"201","I.G.S.S",null,null,null,null,null,null,null,null,null,null,null,null,null,{"$f":"#REF!","v":{"$error":"#REF!"}}]
[null,"118","MONTEPÍO",null,null,null,null,null,null,null,null,null,null,null,null,null,0]
[null,"211","RETENCIONES JUDICIALES",null,null,null,null,null,null,null,null,null,null,null,null,null,{"$f":"#REF!","v":{"$error":"#REF!"}}]
[null,null,null,null,null,null,null,null,null,null,"Total  :",null,{"$f":"SUM(M2357:O2361)","v":{"$error":"#REF!"}},null,null,null,{"$f":"SUM(Q2359:S2361)","v":{"$error":"#REF!"}}]
[null,null,null,null,null,null,null,null,null,null,"Liquido :",null,{"$f":"M2362-Q2362","v":{"$error":"#REF!"}}]
[]
[]
[]
[]
[]
[]
[]
[]
["María José Ceballos López",null,null,null,null,null,null,null,null,null,null,null,{"$f":"C2351","v":{"$error":"#REF!"}}]
["Encargada de Nómina",null,null,null,null,null,null,null,null,null,null,null,{"$f":"P2352","v":{"$error":"#REF!"}}]
["AMSA ",null,null,null,null,null,null,null,null,null,null,null,"AMSA"]
[]
[]
[]
[]
[]
[]
[]
[]
["GOBIERNO DE LA REPÚBLICA DE GUATEMALA"]
["AUTORIDAD PARA EL MANEJO SUSTENTABLE DE LA CUENCA Y DEL LAGO DE AMATITLÁN"]
[]
[]
[{"$f":"A2348","v":"Boleta de Liquidación Mensual Renglón 031 \"Jornales\"   Correspondiente al mes de octubre 2015"}]
[{"$f":"A2349","v":{"$error":"#REF!"}}]
[]
["Empleado:",null,{"$f":"C2351","v":{"$error":"#REF!"}},null,null,null,null,null,null,null,"Certificación No.",null,null,{"$f":"N2351","v":35},null,"Fecha:",null,{"$f":"R2351","v":"2014-08-31"}]
["Contrato:",null,{"$f":"C2352","v":{"$error":"#REF!"}},null,null,"Puesto Funcional:",null,null,{"$f":"I2352","v":{"$error":"#REF!"}},null,null,null,"Titulo Jornal:",null,null,{"$f":"P2352","v":{"$error":"#REF!"}}]
["Cuenta / Banco:",null,null,{"$f":"D2353","v":{"$error":"#REF!"}},null,"Banco de Desarrollo Rural, S.A.",null,null,null,null,"Jornal Diario:",null,null,{"$f":"N2353","v":{"$error":"#REF!"}},null,"Días Trabajados:",null,null,{"$f":"S2353","v":{"$error":"#REF!"}}]
[]
[null,null,null,null,null,null,null,null,null,null,null,null,"Ingresos",null,null,null,"Deducciones "]
[]
[null,"031","DEVENGADO",null,null,null,null,null,null,null,null,null,{"$f":"M2357","v":{"$error":"#REF!"}}]
[null,"033","BONO ACUERDO GUBERNATIVO 66-2000",null,null,null,null,null,null,null,null,null,{"$f":"M2358","v":{"$error":"#REF!"}}]
[null,"201","I.G.S.S",null,null,null,null,null,null,null,null,null,null,null,null,null,{"$f":"Q2359","v":{"$error":"#REF!"}}]
[null,"118","MONTEPÍO",null,null,null,null,null,null,null,null,null,null,null,null,null,{"$f":"Q2360","v":0}]
[null,"211","RETENCIONES JUDICIALES",null,null,null,null,null,null,null,null,null,null,null,null,null,{"$f":"Q2361","v":{"$error":"#REF!"}}]
[null,null,null,null,null,null,null,null,null,null,"Total  :",null,{"$f":"SUM(M2396:O2400)","v":{"$error":"#REF!"}},null,null,null,{"$f":"SUM(Q2398:S2400)","v":{"$error":"#REF!"}}]
[null,null,null,null,null,null,null,null,null,null,"Liquido :",null,{"$f":"M2401-Q2401","v":{"$error":"#REF!"}}]
[]
[]
[]
[]
[]
[]
[]
[]
[{"$f":"A2372","v":"María José Ceballos López"},null,null,null,null,null,null,null,null,null,null,null,{"$f":"C2390","v":{"$error":"#REF!"}}]
[{"$f":"A2373","v":"Encargada de Nómina"},null,null,null,null,null,null,null,null,null,null,null,{"$f":"P2391","v":{"$error":"#REF!"}}]
[{"$f":"A2374","v":"AMSA "},null,null,null,null,null,null,null,null,null,null,null,"AMSA"]
[]
["GOBIERNO DE LA REPÚBLICA DE GUATEMALA"]
["AUTORIDAD PARA EL MANEJO SUSTENTABLE DE LA CUENCA Y DEL LAGO DE AMATITLÁN"]
[]
[]
[{"$f":"A2348","v":"Boleta de Liquidación Mensual Renglón 031 \"Jornales\"   Correspondiente al mes de octubre 2015"}]
[{"$f":"A2349","v":{"$error":"#REF!"}}]
[]
["Empleado:",null,{"$f":"#REF!","v":{"$error":"#REF!"}},null,null,null,null,null,null,null,"Certificación No.",null,null,{"$f":"N2351+1","v":36},null,"Fecha:",null,{"$f":"R1428","v":"2015-08-31"}]
["Contrato:",null,{"$f":"#REF!","v":{"$error":"#REF!"}},null,null,"Puesto Funcional:",null,null,{"$f":"#REF!","v":{"$error":"#REF!"}},null,null,null,"Titulo Jornal:",null,null,{"$f":"#REF!","v":{"$error":"#REF!"}}]
["Cuenta / Banco:",null,null,{"$f":"#REF!","v":{"$error":"#REF!"}},null,"Banco de Desarrollo Rural, S.A.",null,null,null,null,"Jornal Diario:",null,null,{"$f":"#REF!","v":{"$error":"#REF!"}},null,"Días Trabajados:",null,null,{"$f":"#REF!","v":{"$error":"#REF!"}}]
[]
[null,null,null,null,null,null,null,null,null,null,null,null,"Ingresos",null,null,null,"Deducciones "]
[]
[null,"031","DEVENGADO",null,null,null,null,null,null,null,null,null,{"$f":"#REF!","v":{"$error":"#REF!"}}]
[null,"033","BONO ACUERDO GUBERNATIVO 66-2000",null,null,null,null,null,null,null,null,null,{"$f":"#REF!","v":{"$error":"#REF!"}}]
[null,"201","I.G.S.S",null,null,null,null,null,null,null,null,null,null,null,null,null,{"$f":"#REF!","v":{"$error":"#REF!"}}]
[null,"118","MONTEPÍO",null,null,null,null,null,null,null,null,null,null,null,null,null,0]
[null,"211","RETENCIONES JUDICIALES",null,null,null,null,null,null,null,null,null,null,null,null,null,{"$f":"#REF!","v":{"$error":"#REF!"}}]
[null,null,null,null,null,null,null,null,null,null,"Total  :",null,{"$f":"SUM(M2428:O2432)","v":{"$error":"#REF!"}},null,null,null,{"$f":"SUM(Q2430:S2432)","v":{"$error":"#REF!"}}]
[null,null,null,null,null,null,null,null,null,null,"Liquido :",null,{"$f":"M2433-Q2433","v":{"$error":"#REF!"}}]
[]
[]
[]
[]
[]
[]
[]
[]
["María José Ceballos López",null,null,null,null,null,null,null,null,null,null,null,{"$f":"C2422","v":{"$error":"#REF!"}}]
["Encargada de Nómina",null,null,null,null,null,null,null,null,null,null,null,{"$f":"P2423","v":{"$error":"#REF!"}}]
["AMSA ",null,null,null,null,null,null,null,null,null,null,null,"AMSA"]
[]
[]
[]
[]
[]
[]
[]
[]
["GOBIERNO DE LA REPÚBLICA DE GUATEMALA"]
["AUTORIDAD PARA EL MANEJO SUSTENTABLE DE LA CUENCA Y DEL LAGO DE AMATITLÁN"]
[]
[]
[{"$f":"A2419","v":"Boleta de Liquidación Mensual Renglón 031 \"Jornales\"   Correspondiente al mes de octubre 2015"}]
[{"$f":"A2420","v":{"$error":"#REF!"}}]
[]
["Empleado:",null,{"$f":"C2422","v":{"$error":"#REF!"}},null,null,null,null,null,null,null,"Certificación No.",null,null,{"$f":"N2422","v":36},null,"Fecha:",null,{"$f":"R2422","v":"2015-08-31"}]
["Contrato:",null,{"$f":"C2423","v":{"$error":"#REF!"}},null,null,"Puesto Funcional:",null,null,{"$f":"I2423","v":{"$error":"#REF!"}},null,null,null,"Titulo Jornal:",null,null,{"$f":"P2423","v":{"$error":"#REF!"}}]
["Cuenta / Banco:",null,null,{"$f":"D2424","v":{"$error":"#REF!"}},null,"Banco de Desarrollo Rural, S.A.",null,null,null,null,"Jornal Diario:",null,null,{"$f":"N2424","v":{"$error":"#REF!"}},null,"Días Trabajados:",null,null,{"$f":"S2424","v":{"$error":"#REF!"}}]
[]
[null,null,null,null,null,null,null,null,null,null,null,null,"Ingresos",null,null,null,"Deducciones "]
[]
[null,"031","DEVENGADO",null,null,null,null,null,null,null,null,null,{"$f":"M2428","v":{"$error":"#REF!"}}]
[null,"033","BONO ACUERDO GUBERNATIVO 66-2000",null,null,null,null,null,null,null,null,null,{"$f":"M2429","v":{"$error":"#REF!"}}]
[null,"201","I.G.S.S",null,null,null,null,null,null,null,null,null,null,null,null,null,{"$f":"Q2430","v":{"$error":"#REF!"}}]
[null,"118","MONTEPÍO",null,null,null,null,null,null,null,null,null,null,null,null,null,{"$f":"Q2431","v":0}]
[null,"211","RETENCIONES JUDICIALES",null,null,null,null,null,null,null,null,null,null,null,null,null,{"$f":"Q2432","v":{"$error":"#REF!"}}]
[null,null,null,null,null,null,null,null,null,null,"Total  :",null,{"$f":"SUM(M2467:O2471)","v":{"$error":"#REF!"}},null,null,null,{"$f":"SUM(Q2469:S2471)","v":{"$error":"#REF!"}}]
[null,null,null,null,null,null,null,null,null,null,"Liquido :",null,{"$f":"M2472-Q2472","v":{"$error":"#REF!"}}]
[]
[]
[]
[]
[]
[]
[]
[]
[{"$f":"A2443","v":"María José Ceballos López"},null,null,null,null,null,null,null,null,null,null,null,{"$f":"C2461","v":{"$error":"#REF!"}}]
[{"$f":"A2444","v":"Encargada de Nómina"},null,null,null,null,null,null,null,null,null,null,null,{"$f":"P2462","v":{"$error":"#REF!"}}]
[{"$f":"A2445","v":"AMSA "},null,null,null,null,null,null,null,null,null,null,null,"AMSA"]
[]
["GOBIERNO DE LA REPÚBLICA DE GUATEMALA"]
["AUTORIDAD PARA EL MANEJO SUSTENTABLE DE LA CUENCA Y DEL LAGO DE AMATITLÁN"]
[]
[]
[{"$f":"A2419","v":"Boleta de Liquidación Mensual Renglón 031 \"Jornales\"   Correspondiente al mes de octubre 2015"}]
[{"$f":"A2420","v":{"$error":"#REF!"}}]
[]
["Empleado:",null,{"$f":"#REF!","v":{"$error":"#REF!"}},null,null,null,null,null,null,null,"Certificación No.",null,null,{"$f":"N2422+1","v":37},null,"Fecha:",null,{"$f":"R1499","v":"2014-08-31"}]
["Contrato:",null,{"$f":"#REF!","v":{"$error":"#REF!"}},null,null,"Puesto Funcional:",null,null,{"$f":"#REF!","v":{"$error":"#REF!"}},null,null,null,"Titulo Jornal:",null,null,{"$f":"#REF!","v":{"$error":"#REF!"}}]
["Cuenta / Banco:",null,null,{"$f":"#REF!","v":{"$error":"#REF!"}},null,"Banco de Desarrollo Rural, S.A.",null,null,null,null,"Jornal Diario:",null,null,{"$f":"#REF!","v":{"$error":"#REF!"}},null,"Días Trabajados:",null,null,{"$f":"#REF!","v":{"$error":"#REF!"}}]
[]
[null,null,null,null,null,null,null,null,null,null,null,null,"Ingresos",null,null,null,"Deducciones "]
[]
[null,"031","DEVENGADO",null,null,null,null,null,null,null,null,null,{"$f":"#REF!","v":{"$error":"#REF!"}}]
[null,"033","BONO ACUERDO GUBERNATIVO 66-2000",null,null,null,null,null,null,null,null,null,{"$f":"#REF!","v":{"$error":"#REF!"}}]
[null,"201","I.G.S.S",null,null,null,null,null,null,null,null,null,null,null,null,null,{"$f":"#REF!","v":{"$error":"#REF!"}}]
[null,"118","MONTEPÍO",null,null,null,null,null,null,null,null,null,null,null,null,null,0]
[null,"211","RETENCIONES JUDICIALES",null,null,null,null,null,null,null,null,null,null,null,null,null,{"$f":"#REF!","v":{"$error":"#REF!"}}]
[null,null,null,null,null,null,null,null,null,null,"Total  :",null,{"$f":"SUM(M2499:O2503)","v":{"$error":"#REF!"}},null,null,null,{"$f":"SUM(Q2501:S2503)","v":{"$error":"#REF!"}}]
[null,null,null,null,null,null,null,null,null,null,"Liquido :",null,{"$f":"M2504-Q2504","v":{"$error":"#REF!"}}]
[]
[]
[]
[]
[]
[]
[]
[]
["María José Ceballos López",null,null,null,null,null,null,null,null,null,null,null,{"$f":"C2493","v":{"$error":"#REF!"}}]
["Encargada de Nómina",null,null,null,null,null,null,null,null,null,null,null,{"$f":"P2494","v":{"$error":"#REF!"}}]
["AMSA ",null,null,null,null,null,null,null,null,null,null,null,"AMSA"]
[]
[]
[]
[]
[]
[]
[]
[]
["GOBIERNO DE LA REPÚBLICA DE GUATEMALA"]
["AUTORIDAD PARA EL MANEJO SUSTENTABLE DE LA CUENCA Y DEL LAGO DE AMATITLÁN"]
[]
[]
[{"$f":"A2490","v":"Boleta de Liquidación Mensual Renglón 031 \"Jornales\"   Correspondiente al mes de octubre 2015"}]
[{"$f":"A2491","v":{"$error":"#REF!"}}]
[]
["Empleado:",null,{"$f":"C2493","v":{"$error":"#REF!"}},null,null,null,null,null,null,null,"Certificación No.",null,null,{"$f":"N2493","v":37},null,"Fecha:",null,{"$f":"R2493","v":"2014-08-31"}]
["Contrato:",null,{"$f":"C2494","v":{"$error":"#REF!"}},null,null,"Puesto Funcional:",null,null,{"$f":"I2494","v":{"$error":"#REF!"}},null,null,null,"Titulo Jornal:",null,null,{"$f":"P2494","v":{"$error":"#REF!"}}]
["Cuenta / Banco:",null,null,{"$f":"D2495","v":{"$error":"#REF!"}},null,"Banco de Desarrollo Rural, S.A.",null,null,null,null,"Jornal Diario:",null,null,{"$f":"N2495","v":{"$error":"#REF!"}},null,"Días Trabajados:",null,null,{"$f":"S2495","v":{"$error":"#REF!"}}]
[]
[null,null,null,null,null,null,null,null,null,null,null,null,"Ingresos",null,null,null,"Deducciones "]
[]
[null,"031","DEVENGADO",null,null,null,null,null,null,null,null,null,{"$f":"M2499","v":{"$error":"#REF!"}}]
[null,"033","BONO ACUERDO GUBERNATIVO 66-2000",null,null,null,null,null,null,null,null,null,{"$f":"M2500","v":{"$error":"#REF!"}}]
[null,"201","I.G.S.S",null,null,null,null,null,null,null,null,null,null,null,null,null,{"$f":"Q2501","v":{"$error":"#REF!"}}]
[null,"118","MONTEPÍO",null,null,null,null,null,null,null,null,null,null,null,null,null,{"$f":"Q2502","v":0}]
[null,"211","RETENCIONES JUDICIALES",null,null,null,null,null,null,null,null,null,null,null,null,null,{"$f":"Q2503","v":{"$error":"#REF!"}}]
[null,null,null,null,null,null,null,null,null,null,"Total  :",null,{"$f":"SUM(M2538:O2542)","v":{"$error":"#REF!"}},null,null,null,{"$f":"SUM(Q2540:S2542)","v":{"$error":"#REF!"}}]
[null,null,null,null,null,null,null,null,null,null,"Liquido :",null,{"$f":"M2543-Q2543","v":{"$error":"#REF!"}}]
[]
[]
[]
[]
[]
[]
[]
[]
[{"$f":"A2514","v":"María José Ceballos López"},null,null,null,null,null,null,null,null,null,null,null,{"$f":"C2532","v":{"$error":"#REF!"}}]
[{"$f":"A2515","v":"Encargada de Nómina"},null,null,null,null,null,null,null,null,null,null,null,{"$f":"P2533","v":{"$error":"#REF!"}}]
[{"$f":"A2516","v":"AMSA "},null,null,null,null,null,null,null,null,null,null,null,"AMSA"]
[]
["GOBIERNO DE LA REPÚBLICA DE GUATEMALA"]
["AUTORIDAD PARA EL MANEJO SUSTENTABLE DE LA CUENCA Y DEL LAGO DE AMATITLÁN"]
[]
[]
[{"$f":"A2490","v":"Boleta de Liquidación Mensual Renglón 031 \"Jornales\"   Correspondiente al mes de octubre 2015"}]
[{"$f":"A2491","v":{"$error":"#REF!"}}]
[]
["Empleado:",null,{"$f":"#REF!","v":{"$error":"#REF!"}},null,null,null,null,null,null,null,"Certificación No.",null,null,{"$f":"N2493+1","v":38},null,"Fecha:",null,{"$f":"R1570","v":"2014-08-31"}]
["Contrato:",null,{"$f":"#REF!","v":{"$error":"#REF!"}},null,null,"Puesto Funcional:",null,null,{"$f":"#REF!","v":{"$error":"#REF!"}},null,null,null,"Titulo Jornal:",null,null,{"$f":"#REF!","v":{"$error":"#REF!"}}]
["Cuenta / Banco:",null,null,{"$f":"#REF!","v":{"$error":"#REF!"}},null,"Banco de Desarrollo Rural, S.A.",null,null,null,null,"Jornal Diario:",null,null,{"$f":"#REF!","v":{"$error":"#REF!"}},null,"Días Trabajados:",null,null,{"$f":"#REF!","v":{"$error":"#REF!"}}]
[]
[null,null,null,null,null,null,null,null,null,null,null,null,"Ingresos",null,null,null,"Deducciones "]
[]
[null,"031","DEVENGADO",null,null,null,null,null,null,null,null,null,{"$f":"#REF!","v":{"$error":"#REF!"}}]
[null,"033","BONO ACUERDO GUBERNATIVO 66-2000",null,null,null,null,null,null,null,null,null,{"$f":"#REF!","v":{"$error":"#REF!"}}]
[null,"201","I.G.S.S",null,null,null,null,null,null,null,null,null,null,null,null,null,{"$f":"#REF!","v":{"$error":"#REF!"}}]
[null,"118","MONTEPÍO",null,null,null,null,null,null,null,null,null,null,null,null,null,0]
[null,"211","RETENCIONES JUDICIALES",null,null,null,null,null,null,null,null,null,null,null,null,null,{"$f":"#REF!","v":{"$error":"#REF!"}}]
[null,null,null,null,null,null,null,null,null,null,"Total  :",null,{"$f":"SUM(M2570:O2574)","v":{"$error":"#REF!"}},null,null,null,{"$f":"SUM(Q2572:S2574)","v":{"$error":"#REF!"}}]
[null,null,null,null,null,null,null,null,null,null,"Liquido :",null,{"$f":"M2575-Q2575","v":{"$error":"#REF!"}}]
[]
[]
[]
[]
[]
[]
[]
[]
["María José Ceballos López",null,null,null,null,null,null,null,null,null,null,null,{"$f":"C2564","v":{"$error":"#REF!"}}]
["Encargada de Nómina",null,null,null,null,null,null,null,null,null,null,null,{"$f":"P2565","v":{"$error":"#REF!"}}]
["AMSA ",null,null,null,null,null,null,null,null,null,null,null,"AMSA"]
[]
[]
[]
[]
[]
[]
[]
[]
["GOBIERNO DE LA REPÚBLICA DE GUATEMALA"]
["AUTORIDAD PARA EL MANEJO SUSTENTABLE DE LA CUENCA Y DEL LAGO DE AMATITLÁN"]
[]
[]
[{"$f":"A2561","v":"Boleta de Liquidación Mensual Renglón 031 \"Jornales\"   Correspondiente al mes de octubre 2015"}]
[{"$f":"A2562","v":{"$error":"#REF!"}}]
[]
["Empleado:",null,{"$f":"C2564","v":{"$error":"#REF!"}},null,null,null,null,null,null,null,"Certificación No.",null,null,{"$f":"N2564","v":38},null,"Fecha:",null,{"$f":"R2564","v":"2014-08-31"}]
["Contrato:",null,{"$f":"C2565","v":{"$error":"#REF!"}},null,null,"Puesto Funcional:",null,null,{"$f":"I2565","v":{"$error":"#REF!"}},null,null,null,"Titulo Jornal:",null,null,{"$f":"P2565","v":{"$error":"#REF!"}}]
["Cuenta / Banco:",null,null,{"$f":"D2566","v":{"$error":"#REF!"}},null,"Banco de Desarrollo Rural, S.A.",null,null,null,null,"Jornal Diario:",null,null,{"$f":"N2566","v":{"$error":"#REF!"}},null,"Días Trabajados:",null,null,{"$f":"S2566","v":{"$error":"#REF!"}}]
[]
[null,null,null,null,null,null,null,null,null,null,null,null,"Ingresos",null,null,null,"Deducciones "]
[]
[null,"031","DEVENGADO",null,null,null,null,null,null,null,null,null,{"$f":"M2570","v":{"$error":"#REF!"}}]
[null,"033","BONO ACUERDO GUBERNATIVO 66-2000",null,null,null,null,null,null,null,null,null,{"$f":"M2571","v":{"$error":"#REF!"}}]
[null,"201","I.G.S.S",null,null,null,null,null,null,null,null,null,null,null,null,null,{"$f":"Q2572","v":{"$error":"#REF!"}}]
[null,"118","MONTEPÍO",null,null,null,null,null,null,null,null,null,null,null,null,null,{"$f":"Q2573","v":0}]
[null,"211","RETENCIONES JUDICIALES",null,null,null,null,null,null,null,null,null,null,null,null,null,{"$f":"Q2574","v":{"$error":"#REF!"}}]
[null,null,null,null,null,null,null,null,null,null,"Total  :",null,{"$f":"SUM(M2609:O2613)","v":{"$error":"#REF!"}},null,null,null,{"$f":"SUM(Q2611:S2613)","v":{"$error":"#REF!"}}]
[null,null,null,null,null,null,null,null,null,null,"Liquido :",null,{"$f":"M2614-Q2614","v":{"$error":"#REF!"}}]
[]
[]
[]
[]
[]
[]
[]
[]
[{"$f":"A2585","v":"María José Ceballos López"},null,null,null,null,null,null,null,null,null,null,null,{"$f":"C2603","v":{"$error":"#REF!"}}]
[{"$f":"A2586","v":"Encargada de Nómina"},null,null,null,null,null,null,null,null,null,null,null,{"$f":"P2604","v":{"$error":"#REF!"}}]
[{"$f":"A2587","v":"AMSA "},null,null,null,null,null,null,null,null,null,null,null,"AMSA"]
[]
["GOBIERNO DE LA REPÚBLICA DE GUATEMALA"]
["AUTORIDAD PARA EL MANEJO SUSTENTABLE DE LA CUENCA Y DEL LAGO DE AMATITLÁN"]
[]
[]
[{"$f":"A2561","v":"Boleta de Liquidación Mensual Renglón 031 \"Jornales\"   Correspondiente al mes de octubre 2015"}]
[{"$f":"A2562","v":{"$error":"#REF!"}}]
[]
["Empleado:",null,{"$f":"#REF!","v":{"$error":"#REF!"}},null,null,null,null,null,null,null,"Certificación No.",null,null,{"$f":"N2564+1","v":39},null,"Fecha:",null,{"$f":"R1641","v":"2014-08-31"}]
["Contrato:",null,{"$f":"#REF!","v":{"$error":"#REF!"}},null,null,"Puesto Funcional:",null,null,"Peón de Campo",null,null,null,"Titulo Jornal:",null,null,{"$f":"#REF!","v":{"$error":"#REF!"}}]
["Cuenta / Banco:",null,null,{"$f":"#REF!","v":{"$error":"#REF!"}},null,"Banco de Desarrollo Rural, S.A.",null,null,null,null,"Jornal Diario:",null,null,{"$f":"#REF!","v":{"$error":"#REF!"}},null,"Días Trabajados:",null,null,{"$f":"#REF!","v":{"$error":"#REF!"}}]
[]
[null,null,null,null,null,null,null,null,null,null,null,null,"Ingresos",null,null,null,"Deducciones "]
[]
[null,"031","DEVENGADO",null,null,null,null,null,null,null,null,null,{"$f":"#REF!","v":{"$error":"#REF!"}}]
[null,"033","BONO ACUERDO GUBERNATIVO 66-2000",null,null,null,null,null,null,null,null,null,{"$f":"#REF!","v":{"$error":"#REF!"}}]
[null,"201","I.G.S.S",null,null,null,null,null,null,null,null,null,null,null,null,null,{"$f":"#REF!","v":{"$error":"#REF!"}}]
[null,"118","MONTEPÍO",null,null,null,null,null,null,null,null,null,null,null,null,null,0]
[null,"211","RETENCIONES JUDICIALES",null,null,null,null,null,null,null,null,null,null,null,null,null,{"$f":"#REF!","v":{"$error":"#REF!"}}]
[null,null,null,null,null,null,null,null,null,null,"Total  :",null,{"$f":"SUM(M2641:O2645)","v":{"$error":"#REF!"}},null,null,null,{"$f":"SUM(Q2643:S2645)","v":{"$error":"#REF!"}}]
[null,null,null,null,null,null,null,null,null,null,"Liquido :",null,{"$f":"M2646-Q2646","v":{"$error":"#REF!"}}]
[]
[]
[]
[]
[]
[]
[]
[]
["María José Ceballos López",null,null,null,null,null,null,null,null,null,null,null,{"$f":"C2635","v":{"$error":"#REF!"}}]
["Encargada de Nómina",null,null,null,null,null,null,null,null,null,null,null,{"$f":"P2636","v":{"$error":"#REF!"}}]
["AMSA ",null,null,null,null,null,null,null,null,null,null,null,"AMSA"]
[]
[]
[]
[]
[]
[]
[]
[]
["GOBIERNO DE LA REPÚBLICA DE GUATEMALA"]
["AUTORIDAD PARA EL MANEJO SUSTENTABLE DE LA CUENCA Y DEL LAGO DE AMATITLÁN"]
[]
[]
[{"$f":"A2632","v":"Boleta de Liquidación Mensual Renglón 031 \"Jornales\"   Correspondiente al mes de octubre 2015"}]
[{"$f":"A2633","v":{"$error":"#REF!"}}]
[]
["Empleado:",null,{"$f":"C2635","v":{"$error":"#REF!"}},null,null,null,null,null,null,null,"Certificación No.",null,null,{"$f":"N2635","v":39},null,"Fecha:",null,{"$f":"R2635","v":"2014-08-31"}]
["Contrato:",null,{"$f":"C2636","v":{"$error":"#REF!"}},null,null,"Puesto Funcional:",null,null,{"$f":"I2636","v":"Peón de Campo"},null,null,null,"Titulo Jornal:",null,null,{"$f":"P2636","v":{"$error":"#REF!"}}]
["Cuenta / Banco:",null,null,{"$f":"D2637","v":{"$error":"#REF!"}},null,"Banco de Desarrollo Rural, S.A.",null,null,null,null,"Jornal Diario:",null,null,{"$f":"N2637","v":{"$error":"#REF!"}},null,"Días Trabajados:",null,null,{"$f":"S2637","v":{"$error":"#REF!"}}]
[]
[null,null,null,null,null,null,null,null,null,null,null,null,"Ingresos",null,null,null,"Deducciones "]
[]
[null,"031","DEVENGADO",null,null,null,null,null,null,null,null,null,{"$f":"M2641","v":{"$error":"#REF!"}}]
[null,"033","BONO ACUERDO GUBERNATIVO 66-2000",null,null,null,null,null,null,null,null,null,{"$f":"M2642","v":{"$error":"#REF!"}}]
[null,"201","I.G.S.S",null,null,null,null,null,null,null,null,null,null,null,null,null,{"$f":"Q2643","v":{"$error":"#REF!"}}]
[null,"118","MONTEPÍO",null,null,null,null,null,null,null,null,null,null,null,null,null,{"$f":"Q2644","v":0}]
[null,"211","RETENCIONES JUDICIALES",null,null,null,null,null,null,null,null,null,null,null,null,null,{"$f":"Q2645","v":{"$error":"#REF!"}}]
[null,null,null,null,null,null,null,null,null,null,"Total  :",null,{"$f":"SUM(M2680:O2684)","v":{"$error":"#REF!"}},null,null,null,{"$f":"SUM(Q2682:S2684)","v":{"$error":"#REF!"}}]
[null,null,null,null,null,null,null,null,null,null,"Liquido :",null,{"$f":"M2685-Q2685","v":{"$error":"#REF!"}}]
[]
[]
[]
[]
[]
[]
[]
[]
[{"$f":"A2656","v":"María José Ceballos López"},null,null,null,null,null,null,null,null,null,null,null,{"$f":"C2674","v":{"$error":"#REF!"}}]
[{"$f":"A2657","v":"Encargada de Nómina"},null,null,null,null,null,null,null,null,null,null,null,{"$f":"P2675","v":{"$error":"#REF!"}}]
[{"$f":"A2658","v":"AMSA "},null,null,null,null,null,null,null,null,null,null,null,"AMSA"]
[]
["GOBIERNO DE LA REPÚBLICA DE GUATEMALA"]
["AUTORIDAD PARA EL MANEJO SUSTENTABLE DE LA CUENCA Y DEL LAGO DE AMATITLÁN"]
[]
[]
[{"$f":"A2632","v":"Boleta de Liquidación Mensual Renglón 031 \"Jornales\"   Correspondiente al mes de octubre 2015"}]
[{"$f":"A2633","v":{"$error":"#REF!"}}]
[]
["Empleado:",null,{"$f":"#REF!","v":{"$error":"#REF!"}},null,null,null,null,null,null,null,"Certificación No.",null,null,{"$f":"N2635+1","v":40},null,"Fecha:",null,{"$f":"R1712","v":"2014-08-31"}]
["Contrato:",null,{"$f":"#REF!","v":{"$error":"#REF!"}},null,null,"Puesto Funcional:",null,null,{"$f":"#REF!","v":{"$error":"#REF!"}},null,null,null,"Titulo Jornal:",null,null,{"$f":"#REF!","v":{"$error":"#REF!"}}]
["Cuenta / Banco:",null,null,{"$f":"#REF!","v":{"$error":"#REF!"}},null,"Banco de Desarrollo Rural, S.A.",null,null,null,null,"Jornal Diario:",null,null,{"$f":"#REF!","v":{"$error":"#REF!"}},null,"Días Trabajados:",null,null,{"$f":"#REF!","v":{"$error":"#REF!"}}]
[]
[null,null,null,null,null,null,null,null,null,null,null,null,"Ingresos",null,null,null,"Deducciones "]
[]
[null,"031","DEVENGADO",null,null,null,null,null,null,null,null,null,{"$f":"#REF!","v":{"$error":"#REF!"}}]
[null,"033","BONO ACUERDO GUBERNATIVO 66-2000",null,null,null,null,null,null,null,null,null,{"$f":"#REF!","v":{"$error":"#REF!"}}]
[null,"201","I.G.S.S",null,null,null,null,null,null,null,null,null,null,null,null,null,{"$f":"#REF!","v":{"$error":"#REF!"}}]
[null,"120","DECRETO 81-70",null,null,null,null,null,null,null,null,null,null,null,null,null,0]
[null,"118","MONTEPÍO",null,null,null,null,null,null,null,null,null,null,null,null,null,0]
[null,"211","RETENCIONES JUDICIALES",null,null,null,null,null,null,null,null,null,null,null,null,null,{"$f":"#REF!","v":{"$error":"#REF!"}}]
[null,null,null,null,null,null,null,null,null,null,"Total  :",null,{"$f":"SUM(M2712:O2717)","v":{"$error":"#REF!"}},null,null,null,{"$f":"SUM(Q2714:S2717)","v":{"$error":"#REF!"}}]
[null,null,null,null,null,null,null,null,null,null,"Liquido :",null,{"$f":"M2718-Q2718","v":{"$error":"#REF!"}}]
[]
[]
[]
[]
[]
[]
[]
[]
["María José Ceballos López",null,null,null,null,null,null,null,null,null,null,null,{"$f":"C2706","v":{"$error":"#REF!"}}]
["Encargada de Nómina",null,null,null,null,null,null,null,null,null,null,null,{"$f":"P2707","v":{"$error":"#REF!"}}]
["AMSA ",null,null,null,null,null,null,null,null,null,null,null,"AMSA"]
[]
[]
[]
[]
[]
[]
[]
["GOBIERNO DE LA REPÚBLICA DE GUATEMALA"]
["AUTORIDAD PARA EL MANEJO SUSTENTABLE DE LA CUENCA Y DEL LAGO DE AMATITLÁN"]
[]
[]
[{"$f":"A2703","v":"Boleta de Liquidación Mensual Renglón 031 \"Jornales\"   Correspondiente al mes de octubre 2015"}]
[{"$f":"A2704","v":{"$error":"#REF!"}}]
[]
["Empleado:",null,{"$f":"C2706","v":{"$error":"#REF!"}},null,null,null,null,null,null,null,"Certificación No.",null,null,{"$f":"N2706","v":40},null,"Fecha:",null,{"$f":"R2706","v":"2014-08-31"}]
["Contrato:",null,{"$f":"C2707","v":{"$error":"#REF!"}},null,null,"Puesto Funcional:",null,null,{"$f":"I2707","v":{"$error":"#REF!"}},null,null,null,"Titulo Jornal:",null,null,{"$f":"P2707","v":{"$error":"#REF!"}}]
["Cuenta / Banco:",null,null,{"$f":"D2708","v":{"$error":"#REF!"}},null,"Banco de Desarrollo Rural, S.A.",null,null,null,null,"Jornal Diario:",null,null,{"$f":"N2708","v":{"$error":"#REF!"}},null,"Días Trabajados:",null,null,{"$f":"S2708","v":{"$error":"#REF!"}}]
[]
[null,null,null,null,null,null,null,null,null,null,null,null,"Ingresos",null,null,null,"Deducciones "]
[]
[null,"031","DEVENGADO",null,null,null,null,null,null,null,null,null,{"$f":"M2712","v":{"$error":"#REF!"}}]
[null,"033","BONO ACUERDO GUBERNATIVO 66-2000",null,null,null,null,null,null,null,null,null,{"$f":"M2713","v":{"$error":"#REF!"}}]
[null,"201","I.G.S.S",null,null,null,null,null,null,null,null,null,null,null,null,null,{"$f":"Q2714","v":{"$error":"#REF!"}}]
[null,"120","DECRETO 81-70",null,null,null,null,null,null,null,null,null,null,null,null,null,0]
[null,"118","MONTEPÍO",null,null,null,null,null,null,null,null,null,null,null,null,null,{"$f":"Q2716","v":0}]
[null,"211","RETENCIONES JUDICIALES",null,null,null,null,null,null,null,null,null,null,null,null,null,{"$f":"Q2717","v":{"$error":"#REF!"}}]
[null,null,null,null,null,null,null,null,null,null,"Total  :",null,{"$f":"SUM(M2751:O2756)","v":{"$error":"#REF!"}},null,null,null,{"$f":"SUM(Q2753:S2756)","v":{"$error":"#REF!"}}]
[null,null,null,null,null,null,null,null,null,null,"Liquido :",null,{"$f":"M2757-Q2757","v":{"$error":"#REF!"}}]
[]
[]
[]
[]
[]
[]
[]
[{"$f":"A2728","v":"María José Ceballos López"},null,null,null,null,null,null,null,null,null,null,null,{"$f":"C2745","v":{"$error":"#REF!"}}]
[{"$f":"A2729","v":"Encargada de Nómina"},null,null,null,null,null,null,null,null,null,null,null,{"$f":"P2746","v":{"$error":"#REF!"}}]
[{"$f":"A2730","v":"AMSA "},null,null,null,null,null,null,null,null,null,null,null,"AMSA"]
[]
["GOBIERNO DE LA REPÚBLICA DE GUATEMALA"]
["AUTORIDAD PARA EL MANEJO SUSTENTABLE DE LA CUENCA Y DEL LAGO DE AMATITLÁN"]
[]
[]
[{"$f":"A2703","v":"Boleta de Liquidación Mensual Renglón 031 \"Jornales\"   Correspondiente al mes de octubre 2015"}]
[{"$f":"A2704","v":{"$error":"#REF!"}}]
[]
["Empleado:",null,{"$f":"#REF!","v":{"$error":"#REF!"}},null,null,null,null,null,null,null,"Certificación No.",null,null,{"$f":"N2706+1","v":41},null,"Fecha:",null,{"$f":"R8","v":"2014-08-31"}]
["Contrato:",null,{"$f":"#REF!","v":{"$error":"#REF!"}},null,null,"Puesto Funcional:",null,null,{"$f":"#REF!","v":{"$error":"#REF!"}},null,null,null,"Titulo Jornal:",null,null,{"$f":"#REF!","v":{"$error":"#REF!"}}]
["Cuenta / Banco:",null,null,{"$f":"#REF!","v":{"$error":"#REF!"}},null,"Banco de Desarrollo Rural, S.A.",null,null,null,null,"Jornal Diario:",null,null,{"$f":"#REF!","v":{"$error":"#REF!"}},null,"Días Trabajados:",null,null,{"$f":"#REF!","v":{"$error":"#REF!"}}]
[]
[null,null,null,null,null,null,null,null,null,null,null,null,"Ingresos",null,null,null,"Deducciones "]
[]
[null,"031","DEVENGADO",null,null,null,null,null,null,null,null,null,{"$f":"#REF!","v":{"$error":"#REF!"}}]
[null,"033","BONO ACUERDO GUBERNATIVO 66-2000",null,null,null,null,null,null,null,null,null,{"$f":"#REF!","v":{"$error":"#REF!"}}]
[null,"201","I.G.S.S",null,null,null,null,null,null,null,null,null,null,null,null,null,{"$f":"#REF!","v":{"$error":"#REF!"}}]
[null,"118","MONTEPÍO",null,null,null,null,null,null,null,null,null,null,null,null,null,0]
[null,"211","RETENCIONES JUDICIALES",null,null,null,null,null,null,null,null,null,null,null,null,null,{"$f":"#REF!","v":{"$error":"#REF!"}}]
[null,null,null,null,null,null,null,null,null,null,"Total  :",null,{"$f":"SUM(M2783:O2787)","v":{"$error":"#REF!"}},null,null,null,{"$f":"SUM(Q2785:S2787)","v":{"$error":"#REF!"}}]
[null,null,null,null,null,null,null,null,null,null,"Liquido :",null,{"$f":"M2788-Q2788","v":{"$error":"#REF!"}}]
[]
[]
[]
[]
[]
[]
[]
[]
["María José Ceballos López",null,null,null,null,null,null,null,null,null,null,null,{"$f":"C2777","v":{"$error":"#REF!"}}]
["Encargada de Nómina",null,null,null,null,null,null,null,null,null,null,null,{"$f":"P2778","v":{"$error":"#REF!"}}]
["AMSA ",null,null,null,null,null,null,null,null,null,null,null,"AMSA"]
[]
[]
[]
[]
[]
[]
[]
[]
["GOBIERNO DE LA REPÚBLICA DE GUATEMALA"]
["AUTORIDAD PARA EL MANEJO SUSTENTABLE DE LA CUENCA Y DEL LAGO DE AMATITLÁN"]
[]
[]
[{"$f":"A2774","v":"Boleta de Liquidación Mensual Renglón 031 \"Jornales\"   Correspondiente al mes de octubre 2015"}]
[{"$f":"A2775","v":{"$error":"#REF!"}}]
[]
["Empleado:",null,{"$f":"C2777","v":{"$error":"#REF!"}},null,null,null,null,null,null,null,"Certificación No.",null,null,{"$f":"N2777","v":41},null,"Fecha:",null,{"$f":"R2777","v":"2014-08-31"}]
["Contrato:",null,{"$f":"C2778","v":{"$error":"#REF!"}},null,null,"Puesto Funcional:",null,null,{"$f":"I2778","v":{"$error":"#REF!"}},null,null,null,"Titulo Jornal:",null,null,{"$f":"P2778","v":{"$error":"#REF!"}}]
["Cuenta / Banco:",null,null,{"$f":"D2779","v":{"$error":"#REF!"}},null,"Banco de Desarrollo Rural, S.A.",null,null,null,null,"Jornal Diario:",null,null,{"$f":"N2779","v":{"$error":"#REF!"}},null,"Días Trabajados:",null,null,{"$f":"S2779","v":{"$error":"#REF!"}}]
[]
[null,null,null,null,null,null,null,null,null,null,null,null,"Ingresos",null,null,null,"Deducciones "]
[]
[null,"031","DEVENGADO",null,null,null,null,null,null,null,null,null,{"$f":"M2783","v":{"$error":"#REF!"}}]
[null,"033","BONO ACUERDO GUBERNATIVO 66-2000",null,null,null,null,null,null,null,null,null,{"$f":"M2784","v":{"$error":"#REF!"}}]
[null,"201","I.G.S.S",null,null,null,null,null,null,null,null,null,null,null,null,null,{"$f":"Q2785","v":{"$error":"#REF!"}}]
[null,"118","MONTEPÍO",null,null,null,null,null,null,null,null,null,null,null,null,null,{"$f":"Q2786","v":0}]
[null,"211","RETENCIONES JUDICIALES",null,null,null,null,null,null,null,null,null,null,null,null,null,{"$f":"Q2787","v":{"$error":"#REF!"}}]
[null,null,null,null,null,null,null,null,null,null,"Total  :",null,{"$f":"SUM(M2822:O2826)","v":{"$error":"#REF!"}},null,null,null,{"$f":"SUM(Q2824:S2826)","v":{"$error":"#REF!"}}]
[null,null,null,null,null,null,null,null,null,null,"Liquido :",null,{"$f":"M2827-Q2827","v":{"$error":"#REF!"}}]
[]
[]
[]
[]
[]
[]
[]
[]
[{"$f":"A2798","v":"María José Ceballos López"},null,null,null,null,null,null,null,null,null,null,null,{"$f":"C2816","v":{"$error":"#REF!"}}]
[{"$f":"A2799","v":"Encargada de Nómina"},null,null,null,null,null,null,null,null,null,null,null,{"$f":"P2817","v":{"$error":"#REF!"}}]
[{"$f":"A2800","v":"AMSA "},null,null,null,null,null,null,null,null,null,null,null,"AMSA"]
[]
["GOBIERNO DE LA REPÚBLICA DE GUATEMALA"]
["AUTORIDAD PARA EL MANEJO SUSTENTABLE DE LA CUENCA Y DEL LAGO DE AMATITLÁN"]
[]
[]
[{"$f":"A2774","v":"Boleta de Liquidación Mensual Renglón 031 \"Jornales\"   Correspondiente al mes de octubre 2015"}]
[{"$f":"A2775","v":{"$error":"#REF!"}}]
[]
["Empleado:",null,{"$f":"#REF!","v":{"$error":"#REF!"}},null,null,null,null,null,null,null,"Certificación No.",null,null,{"$f":"N2777+1","v":42},null,"Fecha:",null,{"$f":"R1783","v":"2014-08-31"}]
["Contrato:",null,{"$f":"#REF!","v":{"$error":"#REF!"}},null,null,"Puesto Funcional:",null,null,{"$f":"#REF!","v":{"$error":"#REF!"}},null,null,null,"Titulo Jornal:",null,null,{"$f":"#REF!","v":{"$error":"#REF!"}}]
["Cuenta / Banco:",null,null,{"$f":"#REF!","v":{"$error":"#REF!"}},null,"Banco de Desarrollo Rural, S.A.",null,null,null,null,"Jornal Diario:",null,null,{"$f":"#REF!","v":{"$error":"#REF!"}},null,"Días Trabajados:",null,null,{"$f":"#REF!","v":{"$error":"#REF!"}}]
[]
[null,null,null,null,null,null,null,null,null,null,null,null,"Ingresos",null,null,null,"Deducciones "]
[]
[null,"031","DEVENGADO",null,null,null,null,null,null,null,null,null,{"$f":"#REF!","v":{"$error":"#REF!"}}]
[null,"033","BONO ACUERDO GUBERNATIVO 66-2000",null,null,null,null,null,null,null,null,null,{"$f":"#REF!","v":{"$error":"#REF!"}}]
[null,"201","I.G.S.S",null,null,null,null,null,null,null,null,null,null,null,null,null,{"$f":"#REF!","v":{"$error":"#REF!"}}]
[null,"118","MONTEPÍO",null,null,null,null,null,null,null,null,null,null,null,null,null,0]
[null,"211","RETENCIONES JUDICIALES",null,null,null,null,null,null,null,null,null,null,null,null,null,{"$f":"#REF!","v":{"$error":"#REF!"}}]
[null,null,null,null,null,null,null,null,null,null,"Total  :",null,{"$f":"SUM(M2854:O2858)","v":{"$error":"#REF!"}},null,null,null,{"$f":"SUM(Q2856:S2858)","v":{"$error":"#REF!"}}]
[null,null,null,null,null,null,null,null,null,null,"Liquido :",null,{"$f":"M2859-Q2859","v":{"$error":"#REF!"}}]
[]
[]
[]
[]
[]
[]
[]
[]
["María José Ceballos López",null,null,null,null,null,null,null,null,null,null,null,{"$f":"C2848","v":{"$error":"#REF!"}}]
["Encargada de Nómina",null,null,null,null,null,null,null,null,null,null,null,{"$f":"P2849","v":{"$error":"#REF!"}}]
["AMSA ",null,null,null,null,null,null,null,null,null,null,null,"AMSA"]
[]
[]
[]
[]
[]
[]
[]
[]
["GOBIERNO DE LA REPÚBLICA DE GUATEMALA"]
["AUTORIDAD PARA EL MANEJO SUSTENTABLE DE LA CUENCA Y DEL LAGO DE AMATITLÁN"]
[]
[]
[{"$f":"A2845","v":"Boleta de Liquidación Mensual Renglón 031 \"Jornales\"   Correspondiente al mes de octubre 2015"}]
[{"$f":"A2846","v":{"$error":"#REF!"}}]
[]
["Empleado:",null,{"$f":"C2848","v":{"$error":"#REF!"}},null,null,null,null,null,null,null,"Certificación No.",null,null,{"$f":"N2848","v":42},null,"Fecha:",null,{"$f":"R2848","v":"2014-08-31"}]
["Contrato:",null,{"$f":"C2849","v":{"$error":"#REF!"}},null,null,"Puesto Funcional:",null,null,{"$f":"I2849","v":{"$error":"#REF!"}},null,null,null,"Titulo Jornal:",null,null,{"$f":"P2849","v":{"$error":"#REF!"}}]
["Cuenta / Banco:",null,null,{"$f":"D2850","v":{"$error":"#REF!"}},null,"Banco de Desarrollo Rural, S.A.",null,null,null,null,"Jornal Diario:",null,null,{"$f":"N2850","v":{"$error":"#REF!"}},null,"Días Trabajados:",null,null,{"$f":"S2850","v":{"$error":"#REF!"}}]
[]
[null,null,null,null,null,null,null,null,null,null,null,null,"Ingresos",null,null,null,"Deducciones "]
[]
[null,"031","DEVENGADO",null,null,null,null,null,null,null,null,null,{"$f":"M2854","v":{"$error":"#REF!"}}]
[null,"033","BONO ACUERDO GUBERNATIVO 66-2000",null,null,null,null,null,null,null,null,null,{"$f":"M2855","v":{"$error":"#REF!"}}]
[null,"201","I.G.S.S",null,null,null,null,null,null,null,null,null,null,null,null,null,{"$f":"Q2856","v":{"$error":"#REF!"}}]
[null,"118","MONTEPÍO",null,null,null,null,null,null,null,null,null,null,null,null,null,{"$f":"Q2857","v":0}]
[null,"211","RETENCIONES JUDICIALES",null,null,null,null,null,null,null,null,null,null,null,null,null,{"$f":"Q2858","v":{"$error":"#REF!"}}]
[null,null,null,null,null,null,null,null,null,null,"Total  :",null,{"$f":"SUM(M2893:O2897)","v":{"$error":"#REF!"}},null,null,null,{"$f":"SUM(Q2895:S2897)","v":{"$error":"#REF!"}}]
[null,null,null,null,null,null,null,null,null,null,"Liquido :",null,{"$f":"M2898-Q2898","v":{"$error":"#REF!"}}]
[]
[]
[]
[]
[]
[]
[]
[]
[{"$f":"A2869","v":"María José Ceballos López"},null,null,null,null,null,null,null,null,null,null,null,{"$f":"C2887","v":{"$error":"#REF!"}}]
[{"$f":"A2870","v":"Encargada de Nómina"},null,null,null,null,null,null,null,null,null,null,null,{"$f":"P2888","v":{"$error":"#REF!"}}]
[{"$f":"A2871","v":"AMSA "},null,null,null,null,null,null,null,null,null,null,null,"AMSA"]
[]
["GOBIERNO DE LA REPÚBLICA DE GUATEMALA"]
["AUTORIDAD PARA EL MANEJO SUSTENTABLE DE LA CUENCA Y DEL LAGO DE AMATITLÁN"]
[]
[]
[{"$f":"A2845","v":"Boleta de Liquidación Mensual Renglón 031 \"Jornales\"   Correspondiente al mes de octubre 2015"}]
[{"$f":"A2846","v":{"$error":"#REF!"}}]
[]
["Empleado:",null,{"$f":"#REF!","v":{"$error":"#REF!"}},null,null,null,null,null,null,null,"Certificación No.",null,null,{"$f":"N2848+1","v":43},null,"Fecha:",null,{"$f":"R1854","v":"2014-08-31"}]
["Contrato:",null,{"$f":"#REF!","v":{"$error":"#REF!"}},null,null,"Puesto Funcional:",null,null,{"$f":"#REF!","v":{"$error":"#REF!"}},null,null,null,"Titulo Jornal:",null,null,{"$f":"#REF!","v":{"$error":"#REF!"}}]
["Cuenta / Banco:",null,null,{"$f":"#REF!","v":{"$error":"#REF!"}},null,"Banco de Desarrollo Rural, S.A.",null,null,null,null,"Jornal Diario:",null,null,{"$f":"#REF!","v":{"$error":"#REF!"}},null,"Días Trabajados:",null,null,{"$f":"#REF!","v":{"$error":"#REF!"}}]
[]
[null,null,null,null,null,null,null,null,null,null,null,null,"Ingresos",null,null,null,"Deducciones "]
[]
[null,"031","DEVENGADO",null,null,null,null,null,null,null,null,null,{"$f":"#REF!","v":{"$error":"#REF!"}}]
[null,"033","BONO ACUERDO GUBERNATIVO 66-2000",null,null,null,null,null,null,null,null,null,{"$f":"#REF!","v":{"$error":"#REF!"}}]
[null,"201","I.G.S.S",null,null,null,null,null,null,null,null,null,null,null,null,null,{"$f":"#REF!","v":{"$error":"#REF!"}}]
[null,"118","MONTEPÍO",null,null,null,null,null,null,null,null,null,null,null,null,null,0]
[null,"211","RETENCIONES JUDICIALES",null,null,null,null,null,null,null,null,null,null,null,null,null,{"$f":"#REF!","v":{"$error":"#REF!"}}]
[null,null,null,null,null,null,null,null,null,null,"Total  :",null,{"$f":"SUM(M2925:O2929)","v":{"$error":"#REF!"}},null,null,null,{"$f":"SUM(Q2927:S2929)","v":{"$error":"#REF!"}}]
[null,null,null,null,null,null,null,null,null,null,"Liquido :",null,{"$f":"M2930-Q2930","v":{"$error":"#REF!"}}]
[]
[]
[]
[]
[]
[]
[]
[]
["María José Ceballos López",null,null,null,null,null,null,null,null,null,null,null,{"$f":"C2919","v":{"$error":"#REF!"}}]
["Encargada de Nómina",null,null,null,null,null,null,null,null,null,null,null,{"$f":"P2920","v":{"$error":"#REF!"}}]
["AMSA ",null,null,null,null,null,null,null,null,null,null,null,"AMSA"]
[]
[]
[]
[]
[]
[]
[]
[]
["GOBIERNO DE LA REPÚBLICA DE GUATEMALA"]
["AUTORIDAD PARA EL MANEJO SUSTENTABLE DE LA CUENCA Y DEL LAGO DE AMATITLÁN"]
[]
[]
[{"$f":"A2916","v":"Boleta de Liquidación Mensual Renglón 031 \"Jornales\"   Correspondiente al mes de octubre 2015"}]
[{"$f":"A2917","v":{"$error":"#REF!"}}]
[]
["Empleado:",null,{"$f":"C2919","v":{"$error":"#REF!"}},null,null,null,null,null,null,null,"Certificación No.",null,null,{"$f":"N2919","v":43},null,"Fecha:",null,{"$f":"R2919","v":"2014-08-31"}]
["Contrato:",null,{"$f":"C2920","v":{"$error":"#REF!"}},null,null,"Puesto Funcional:",null,null,{"$f":"I2920","v":{"$error":"#REF!"}},null,null,null,"Titulo Jornal:",null,null,{"$f":"P2920","v":{"$error":"#REF!"}}]
["Cuenta / Banco:",null,null,{"$f":"D2921","v":{"$error":"#REF!"}},null,"Banco de Desarrollo Rural, S.A.",null,null,null,null,"Jornal Diario:",null,null,{"$f":"N2921","v":{"$error":"#REF!"}},null,"Días Trabajados:",null,null,{"$f":"S2921","v":{"$error":"#REF!"}}]
[]
[null,null,null,null,null,null,null,null,null,null,null,null,"Ingresos",null,null,null,"Deducciones "]
[]
[null,"031","DEVENGADO",null,null,null,null,null,null,null,null,null,{"$f":"M2925","v":{"$error":"#REF!"}}]
[null,"033","BONO ACUERDO GUBERNATIVO 66-2000",null,null,null,null,null,null,null,null,null,{"$f":"M2926","v":{"$error":"#REF!"}}]
[null,"201","I.G.S.S",null,null,null,null,null,null,null,null,null,null,null,null,null,{"$f":"Q2927","v":{"$error":"#REF!"}}]
[null,"118","MONTEPÍO",null,null,null,null,null,null,null,null,null,null,null,null,null,{"$f":"Q2928","v":0}]
[null,"211","RETENCIONES JUDICIALES",null,null,null,null,null,null,null,null,null,null,null,null,null,{"$f":"Q2929","v":{"$error":"#REF!"}}]
[null,null,null,null,null,null,null,null,null,null,"Total  :",null,{"$f":"SUM(M2964:O2968)","v":{"$error":"#REF!"}},null,null,null,{"$f":"SUM(Q2966:S2968)","v":{"$error":"#REF!"}}]
[null,null,null,null,null,null,null,null,null,null,"Liquido :",null,{"$f":"M2969-Q2969","v":{"$error":"#REF!"}}]
[]
[]
[]
[]
[]
[]
[]
[]
[{"$f":"A2940","v":"María José Ceballos López"},null,null,null,null,null,null,null,null,null,null,null,{"$f":"C2958","v":{"$error":"#REF!"}}]
[{"$f":"A2941","v":"Encargada de Nómina"},null,null,null,null,null,null,null,null,null,null,null,{"$f":"P2959","v":{"$error":"#REF!"}}]
[{"$f":"A2942","v":"AMSA "},null,null,null,null,null,null,null,null,null,null,null,"AMSA"]
[]
["GOBIERNO DE LA REPÚBLICA DE GUATEMALA"]
["AUTORIDAD PARA EL MANEJO SUSTENTABLE DE LA CUENCA Y DEL LAGO DE AMATITLÁN"]
[]
[]
[{"$f":"A2916","v":"Boleta de Liquidación Mensual Renglón 031 \"Jornales\"   Correspondiente al mes de octubre 2015"}]
[{"$f":"A2917","v":{"$error":"#REF!"}}]
[]
["Empleado:",null,{"$f":"#REF!","v":{"$error":"#REF!"}},null,null,null,null,null,null,null,"Certificación No.",null,null,{"$f":"N2919+1","v":44},null,"Fecha:",null,{"$f":"R1925","v":"2015-10-31"}]
["Contrato:",null,{"$f":"#REF!","v":{"$error":"#REF!"}},null,null,"Puesto Funcional:",null,null,{"$f":"#REF!","v":{"$error":"#REF!"}},null,null,null,"Titulo Jornal:",null,null,{"$f":"#REF!","v":{"$error":"#REF!"}}]
["Cuenta / Banco:",null,null,{"$f":"#REF!","v":{"$error":"#REF!"}},null,"Banco de Desarrollo Rural, S.A.",null,null,null,null,"Jornal Diario:",null,null,{"$f":"#REF!","v":{"$error":"#REF!"}},null,"Días Trabajados:",null,null,{"$f":"#REF!","v":{"$error":"#REF!"}}]
[]
[null,null,null,null,null,null,null,null,null,null,null,null,"Ingresos",null,null,null,"Deducciones "]
[]
[null,"031","DEVENGADO",null,null,null,null,null,null,null,null,null,{"$f":"#REF!","v":{"$error":"#REF!"}}]
[null,"033","BONO ACUERDO GUBERNATIVO 66-2000",null,null,null,null,null,null,null,null,null,{"$f":"#REF!","v":{"$error":"#REF!"}}]
[null,"201","I.G.S.S",null,null,null,null,null,null,null,null,null,null,null,null,null,{"$f":"#REF!","v":{"$error":"#REF!"}}]
[null,"118","MONTEPÍO",null,null,null,null,null,null,null,null,null,null,null,null,null,0]
[null,"211","RETENCIONES JUDICIALES",null,null,null,null,null,null,null,null,null,null,null,null,null,{"$f":"#REF!","v":{"$error":"#REF!"}}]
[null,null,null,null,null,null,null,null,null,null,"Total  :",null,{"$f":"SUM(M2996:O3000)","v":{"$error":"#REF!"}},null,null,null,{"$f":"SUM(Q2998:S3000)","v":{"$error":"#REF!"}}]
[null,null,null,null,null,null,null,null,null,null,"Liquido :",null,{"$f":"M3001-Q3001","v":{"$error":"#REF!"}}]
[]
[]
[]
[]
[]
[]
[]
[]
["María José Ceballos López",null,null,null,null,null,null,null,null,null,null,null,{"$f":"C2990","v":{"$error":"#REF!"}}]
["Encargada de Nómina",null,null,null,null,null,null,null,null,null,null,null,{"$f":"P2991","v":{"$error":"#REF!"}}]
["AMSA ",null,null,null,null,null,null,null,null,null,null,null,"AMSA"]
[]
[]
[]
[]
[]
[]
[]
[]
["GOBIERNO DE LA REPÚBLICA DE GUATEMALA"]
["AUTORIDAD PARA EL MANEJO SUSTENTABLE DE LA CUENCA Y DEL LAGO DE AMATITLÁN"]
[]
[]
[{"$f":"A2987","v":"Boleta de Liquidación Mensual Renglón 031 \"Jornales\"   Correspondiente al mes de octubre 2015"}]
[{"$f":"A2988","v":{"$error":"#REF!"}}]
[]
["Empleado:",null,{"$f":"C2990","v":{"$error":"#REF!"}},null,null,null,null,null,null,null,"Certificación No.",null,null,{"$f":"N2990","v":44},null,"Fecha:",null,{"$f":"R2990","v":"2015-10-31"}]
["Contrato:",null,{"$f":"C2991","v":{"$error":"#REF!"}},null,null,"Puesto Funcional:",null,null,{"$f":"I2991","v":{"$error":"#REF!"}},null,null,null,"Titulo Jornal:",null,null,{"$f":"P2991","v":{"$error":"#REF!"}}]
["Cuenta / Banco:",null,null,{"$f":"D2992","v":{"$error":"#REF!"}},null,"Banco de Desarrollo Rural, S.A.",null,null,null,null,"Jornal Diario:",null,null,{"$f":"N2992","v":{"$error":"#REF!"}},null,"Días Trabajados:",null,null,{"$f":"S2992","v":{"$error":"#REF!"}}]
[]
[null,null,null,null,null,null,null,null,null,null,null,null,"Ingresos",null,null,null,"Deducciones "]
[]
[null,"031","DEVENGADO",null,null,null,null,null,null,null,null,null,{"$f":"M2996","v":{"$error":"#REF!"}}]
[null,"033","BONO ACUERDO GUBERNATIVO 66-2000",null,null,null,null,null,null,null,null,null,{"$f":"M2997","v":{"$error":"#REF!"}}]
[null,"201","I.G.S.S",null,null,null,null,null,null,null,null,null,null,null,null,null,{"$f":"Q2998","v":{"$error":"#REF!"}}]
[null,"118","MONTEPÍO",null,null,null,null,null,null,null,null,null,null,null,null,null,{"$f":"Q2999","v":0}]
[null,"211","RETENCIONES JUDICIALES",null,null,null,null,null,null,null,null,null,null,null,null,null,{"$f":"Q3000","v":{"$error":"#REF!"}}]
[null,null,null,null,null,null,null,null,null,null,"Total  :",null,{"$f":"SUM(M3035:O3039)","v":{"$error":"#REF!"}},null,null,null,{"$f":"SUM(Q3037:S3039)","v":{"$error":"#REF!"}}]
[null,null,null,null,null,null,null,null,null,null,"Liquido :",null,{"$f":"M3040-Q3040","v":{"$error":"#REF!"}}]
[]
[]
[]
[]
[]
[]
[]
[]
[{"$f":"A3011","v":"María José Ceballos López"},null,null,null,null,null,null,null,null,null,null,null,{"$f":"C3029","v":{"$error":"#REF!"}}]
[{"$f":"A3012","v":"Encargada de Nómina"},null,null,null,null,null,null,null,null,null,null,null,{"$f":"P3030","v":{"$error":"#REF!"}}]
[{"$f":"A3013","v":"AMSA "},null,null,null,null,null,null,null,null,null,null,null,"AMSA"]
[]
["GOBIERNO DE LA REPÚBLICA DE GUATEMALA"]
["AUTORIDAD PARA EL MANEJO SUSTENTABLE DE LA CUENCA Y DEL LAGO DE AMATITLÁN"]
[]
[]
[{"$f":"A2987","v":"Boleta de Liquidación Mensual Renglón 031 \"Jornales\"   Correspondiente al mes de octubre 2015"}]
[{"$f":"A2988","v":{"$error":"#REF!"}}]
[]
["Empleado:",null,{"$f":"#REF!","v":{"$error":"#REF!"}},null,null,null,null,null,null,null,"Certificación No.",null,null,{"$f":"N2990+1","v":45},null,"Fecha:",null,{"$f":"R1996","v":"2014-08-31"}]
["Contrato:",null,{"$f":"#REF!","v":{"$error":"#REF!"}},null,null,"Puesto Funcional:",null,null,{"$f":"#REF!","v":{"$error":"#REF!"}},null,null,null,"Titulo Jornal:",null,null,{"$f":"#REF!","v":{"$error":"#REF!"}}]
["Cuenta / Banco:",null,null,{"$f":"#REF!","v":{"$error":"#REF!"}},null,"Banco de Desarrollo Rural, S.A.",null,null,null,null,"Jornal Diario:",null,null,{"$f":"#REF!","v":{"$error":"#REF!"}},null,"Días Trabajados:",null,null,{"$f":"#REF!","v":{"$error":"#REF!"}}]
[]
[null,null,null,null,null,null,null,null,null,null,null,null,"Ingresos",null,null,null,"Deducciones "]
[]
[null,"031","DEVENGADO",null,null,null,null,null,null,null,null,null,{"$f":"#REF!","v":{"$error":"#REF!"}}]
[null,"033","BONO ACUERDO GUBERNATIVO 66-2000",null,null,null,null,null,null,null,null,null,{"$f":"#REF!","v":{"$error":"#REF!"}}]
[null,"201","I.G.S.S",null,null,null,null,null,null,null,null,null,null,null,null,null,{"$f":"#REF!","v":{"$error":"#REF!"}}]
[null,"118","MONTEPÍO",null,null,null,null,null,null,null,null,null,null,null,null,null,0]
[null,"211","RETENCIONES JUDICIALES",null,null,null,null,null,null,null,null,null,null,null,null,null,{"$f":"#REF!","v":{"$error":"#REF!"}}]
[null,null,null,null,null,null,null,null,null,null,"Total  :",null,{"$f":"SUM(M3067:O3071)","v":{"$error":"#REF!"}},null,null,null,{"$f":"SUM(Q3069:S3071)","v":{"$error":"#REF!"}}]
[null,null,null,null,null,null,null,null,null,null,"Liquido :",null,{"$f":"M3072-Q3072","v":{"$error":"#REF!"}}]
[]
[]
[]
[]
[]
[]
[]
[]
["María José Ceballos López",null,null,null,null,null,null,null,null,null,null,null,{"$f":"C3061","v":{"$error":"#REF!"}}]
["Encargada de Nómina",null,null,null,null,null,null,null,null,null,null,null,{"$f":"P3062","v":{"$error":"#REF!"}}]
["AMSA ",null,null,null,null,null,null,null,null,null,null,null,"AMSA"]
[]
[]
[]
[]
[]
[]
[]
[]
["GOBIERNO DE LA REPÚBLICA DE GUATEMALA"]
["AUTORIDAD PARA EL MANEJO SUSTENTABLE DE LA CUENCA Y DEL LAGO DE AMATITLÁN"]
[]
[]
[{"$f":"A3058","v":"Boleta de Liquidación Mensual Renglón 031 \"Jornales\"   Correspondiente al mes de octubre 2015"}]
[{"$f":"A3059","v":{"$error":"#REF!"}}]
[]
["Empleado:",null,{"$f":"C3061","v":{"$error":"#REF!"}},null,null,null,null,null,null,null,"Certificación No.",null,null,{"$f":"N3061","v":45},null,"Fecha:",null,{"$f":"R3061","v":"2014-08-31"}]
["Contrato:",null,{"$f":"C3062","v":{"$error":"#REF!"}},null,null,"Puesto Funcional:",null,null,{"$f":"I3062","v":{"$error":"#REF!"}},null,null,null,"Titulo Jornal:",null,null,{"$f":"P3062","v":{"$error":"#REF!"}}]
["Cuenta / Banco:",null,null,{"$f":"D3063","v":{"$error":"#REF!"}},null,"Banco de Desarrollo Rural, S.A.",null,null,null,null,"Jornal Diario:",null,null,{"$f":"N3063","v":{"$error":"#REF!"}},null,"Días Trabajados:",null,null,{"$f":"S3063","v":{"$error":"#REF!"}}]
[]
[null,null,null,null,null,null,null,null,null,null,null,null,"Ingresos",null,null,null,"Deducciones "]
[]
[null,"031","DEVENGADO",null,null,null,null,null,null,null,null,null,{"$f":"M3067","v":{"$error":"#REF!"}}]
[null,"033","BONO ACUERDO GUBERNATIVO 66-2000",null,null,null,null,null,null,null,null,null,{"$f":"M3068","v":{"$error":"#REF!"}}]
[null,"201","I.G.S.S",null,null,null,null,null,null,null,null,null,null,null,null,null,{"$f":"Q3069","v":{"$error":"#REF!"}}]
[null,"118","MONTEPÍO",null,null,null,null,null,null,null,null,null,null,null,null,null,{"$f":"Q3070","v":0}]
[null,"211","RETENCIONES JUDICIALES",null,null,null,null,null,null,null,null,null,null,null,null,null,{"$f":"Q3071","v":{"$error":"#REF!"}}]
[null,null,null,null,null,null,null,null,null,null,"Total  :",null,{"$f":"SUM(M3106:O3110)","v":{"$error":"#REF!"}},null,null,null,{"$f":"SUM(Q3108:S3110)","v":{"$error":"#REF!"}}]
[null,null,null,null,null,null,null,null,null,null,"Liquido :",null,{"$f":"M3111-Q3111","v":{"$error":"#REF!"}}]
[]
[]
[]
[]
[]
[]
[]
[]
[{"$f":"A3082","v":"María José Ceballos López"},null,null,null,null,null,null,null,null,null,null,null,{"$f":"C3100","v":{"$error":"#REF!"}}]
[{"$f":"A3083","v":"Encargada de Nómina"},null,null,null,null,null,null,null,null,null,null,null,{"$f":"P3101","v":{"$error":"#REF!"}}]
[{"$f":"A3084","v":"AMSA "},null,null,null,null,null,null,null,null,null,null,null,"AMSA"]
[]
["GOBIERNO DE LA REPÚBLICA DE GUATEMALA"]
["AUTORIDAD PARA EL MANEJO SUSTENTABLE DE LA CUENCA Y DEL LAGO DE AMATITLÁN"]
[]
[]
[{"$f":"A3058","v":"Boleta de Liquidación Mensual Renglón 031 \"Jornales\"   Correspondiente al mes de octubre 2015"}]
[{"$f":"A3059","v":{"$error":"#REF!"}}]
[]
["Empleado:",null,{"$f":"#REF!","v":{"$error":"#REF!"}},null,null,null,null,null,null,null,"Certificación No.",null,null,{"$f":"N3061+1","v":46},null,"Fecha:",null,{"$f":"R2067","v":"2014-08-31"}]
["Contrato:",null,{"$f":"#REF!","v":{"$error":"#REF!"}},null,null,"Puesto Funcional:",null,null,{"$f":"#REF!","v":{"$error":"#REF!"}},null,null,null,"Titulo Jornal:",null,null,{"$f":"#REF!","v":{"$error":"#REF!"}}]
["Cuenta / Banco:",null,null,{"$f":"#REF!","v":{"$error":"#REF!"}},null,"Banco de Desarrollo Rural, S.A.",null,null,null,null,"Jornal Diario:",null,null,{"$f":"#REF!","v":{"$error":"#REF!"}},null,"Días Trabajados:",null,null,{"$f":"#REF!","v":{"$error":"#REF!"}}]
[]
[null,null,null,null,null,null,null,null,null,null,null,null,"Ingresos",null,null,null,"Deducciones "]
[]
[null,"031","DEVENGADO",null,null,null,null,null,null,null,null,null,{"$f":"#REF!","v":{"$error":"#REF!"}}]
[null,"033","BONO ACUERDO GUBERNATIVO 66-2000",null,null,null,null,null,null,null,null,null,{"$f":"#REF!","v":{"$error":"#REF!"}}]
[null,"201","I.G.S.S",null,null,null,null,null,null,null,null,null,null,null,null,null,{"$f":"#REF!","v":{"$error":"#REF!"}}]
[null,"118","MONTEPÍO",null,null,null,null,null,null,null,null,null,null,null,null,null,0]
[null,"211","RETENCIONES JUDICIALES",null,null,null,null,null,null,null,null,null,null,null,null,null,{"$f":"#REF!","v":{"$error":"#REF!"}}]
[null,null,null,null,null,null,null,null,null,null,"Total  :",null,{"$f":"SUM(M3138:O3142)","v":{"$error":"#REF!"}},null,null,null,{"$f":"SUM(Q3140:S3142)","v":{"$error":"#REF!"}}]
[null,null,null,null,null,null,null,null,null,null,"Liquido :",null,{"$f":"M3143-Q3143","v":{"$error":"#REF!"}}]
[]
[]
[]
[]
[]
[]
[]
[]
["María José Ceballos López",null,null,null,null,null,null,null,null,null,null,null,{"$f":"C3132","v":{"$error":"#REF!"}}]
["Encargada de Nómina",null,null,null,null,null,null,null,null,null,null,null,{"$f":"P3133","v":{"$error":"#REF!"}}]
["AMSA ",null,null,null,null,null,null,null,null,null,null,null,"AMSA"]
[]
[]
[]
[]
[]
[]
[]
[]
["GOBIERNO DE LA REPÚBLICA DE GUATEMALA"]
["AUTORIDAD PARA EL MANEJO SUSTENTABLE DE LA CUENCA Y DEL LAGO DE AMATITLÁN"]
[]
[]
[{"$f":"A3129","v":"Boleta de Liquidación Mensual Renglón 031 \"Jornales\"   Correspondiente al mes de octubre 2015"}]
[{"$f":"A3130","v":{"$error":"#REF!"}}]
[]
["Empleado:",null,{"$f":"C3132","v":{"$error":"#REF!"}},null,null,null,null,null,null,null,"Certificación No.",null,null,{"$f":"N3132","v":46},null,"Fecha:",null,{"$f":"R3132","v":"2014-08-31"}]
["Contrato:",null,{"$f":"C3133","v":{"$error":"#REF!"}},null,null,"Puesto Funcional:",null,null,{"$f":"I3133","v":{"$error":"#REF!"}},null,null,null,"Titulo Jornal:",null,null,{"$f":"P3133","v":{"$error":"#REF!"}}]
["Cuenta / Banco:",null,null,{"$f":"D3134","v":{"$error":"#REF!"}},null,"Banco de Desarrollo Rural, S.A.",null,null,null,null,"Jornal Diario:",null,null,{"$f":"N3134","v":{"$error":"#REF!"}},null,"Días Trabajados:",null,null,{"$f":"S3134","v":{"$error":"#REF!"}}]
[]
[null,null,null,null,null,null,null,null,null,null,null,null,"Ingresos",null,null,null,"Deducciones "]
[]
[null,"031","DEVENGADO",null,null,null,null,null,null,null,null,null,{"$f":"M3138","v":{"$error":"#REF!"}}]
[null,"033","BONO ACUERDO GUBERNATIVO 66-2000",null,null,null,null,null,null,null,null,null,{"$f":"M3139","v":{"$error":"#REF!"}}]
[null,"201","I.G.S.S",null,null,null,null,null,null,null,null,null,null,null,null,null,{"$f":"Q3140","v":{"$error":"#REF!"}}]
[null,"118","MONTEPÍO",null,null,null,null,null,null,null,null,null,null,null,null,null,{"$f":"Q3141","v":0}]
[null,"211","RETENCIONES JUDICIALES",null,null,null,null,null,null,null,null,null,null,null,null,null,{"$f":"Q3142","v":{"$error":"#REF!"}}]
[null,null,null,null,null,null,null,null,null,null,"Total  :",null,{"$f":"SUM(M3177:O3181)","v":{"$error":"#REF!"}},null,null,null,{"$f":"SUM(Q3179:S3181)","v":{"$error":"#REF!"}}]
[null,null,null,null,null,null,null,null,null,null,"Liquido :",null,{"$f":"M3182-Q3182","v":{"$error":"#REF!"}}]
[]
[]
[]
[]
[]
[]
[]
[]
[{"$f":"A3153","v":"María José Ceballos López"},null,null,null,null,null,null,null,null,null,null,null,{"$f":"C3171","v":{"$error":"#REF!"}}]
[{"$f":"A3154","v":"Encargada de Nómina"},null,null,null,null,null,null,null,null,null,null,null,{"$f":"P3172","v":{"$error":"#REF!"}}]
[{"$f":"A3155","v":"AMSA "},null,null,null,null,null,null,null,null,null,null,null,"AMSA"]
[]
["GOBIERNO DE LA REPÚBLICA DE GUATEMALA"]
["AUTORIDAD PARA EL MANEJO SUSTENTABLE DE LA CUENCA Y DEL LAGO DE AMATITLÁN"]
[]
[]
[{"$f":"A3129","v":"Boleta de Liquidación Mensual Renglón 031 \"Jornales\"   Correspondiente al mes de octubre 2015"}]
[{"$f":"A3130","v":{"$error":"#REF!"}}]
[]
["Empleado:",null,{"$f":"#REF!","v":{"$error":"#REF!"}},null,null,null,null,null,null,null,"Certificación No.",null,null,{"$f":"N3132+1","v":47},null,"Fecha:",null,{"$f":"R2138","v":"2014-08-31"}]
["Contrato:",null,{"$f":"#REF!","v":{"$error":"#REF!"}},null,null,"Puesto Funcional:",null,null,{"$f":"#REF!","v":{"$error":"#REF!"}},null,null,null,"Titulo Jornal:",null,null,{"$f":"#REF!","v":{"$error":"#REF!"}}]
["Cuenta / Banco:",null,null,{"$f":"#REF!","v":{"$error":"#REF!"}},null,"Banco de Desarrollo Rural, S.A.",null,null,null,null,"Jornal Diario:",null,null,{"$f":"#REF!","v":{"$error":"#REF!"}},null,"Días Trabajados:",null,null,{"$f":"#REF!","v":{"$error":"#REF!"}}]
[]
[null,null,null,null,null,null,null,null,null,null,null,null,"Ingresos",null,null,null,"Deducciones "]
[]
[null,"031","DEVENGADO",null,null,null,null,null,null,null,null,null,{"$f":"#REF!","v":{"$error":"#REF!"}}]
[null,"033","BONO ACUERDO GUBERNATIVO 66-2000",null,null,null,null,null,null,null,null,null,{"$f":"#REF!","v":{"$error":"#REF!"}}]
[null,"201","I.G.S.S",null,null,null,null,null,null,null,null,null,null,null,null,null,{"$f":"#REF!","v":{"$error":"#REF!"}}]
[null,"118","MONTEPÍO",null,null,null,null,null,null,null,null,null,null,null,null,null,0]
[null,"211","RETENCIONES JUDICIALES",null,null,null,null,null,null,null,null,null,null,null,null,null,{"$f":"#REF!","v":{"$error":"#REF!"}}]
[null,null,null,null,null,null,null,null,null,null,"Total  :",null,{"$f":"SUM(M3209:O3213)","v":{"$error":"#REF!"}},null,null,null,{"$f":"SUM(Q3211:S3213)","v":{"$error":"#REF!"}}]
[null,null,null,null,null,null,null,null,null,null,"Liquido :",null,{"$f":"M3214-Q3214","v":{"$error":"#REF!"}}]
[]
[]
[]
[]
[]
[]
[]
[]
["María José Ceballos López",null,null,null,null,null,null,null,null,null,null,null,{"$f":"C3203","v":{"$error":"#REF!"}}]
["Encargada de Nómina",null,null,null,null,null,null,null,null,null,null,null,{"$f":"P3204","v":{"$error":"#REF!"}}]
["AMSA ",null,null,null,null,null,null,null,null,null,null,null,"AMSA"]
[]
[]
[]
[]
[]
[]
[]
[]
["GOBIERNO DE LA REPÚBLICA DE GUATEMALA"]
["AUTORIDAD PARA EL MANEJO SUSTENTABLE DE LA CUENCA Y DEL LAGO DE AMATITLÁN"]
[]
[]
[{"$f":"A3200","v":"Boleta de Liquidación Mensual Renglón 031 \"Jornales\"   Correspondiente al mes de octubre 2015"}]
[{"$f":"A3201","v":{"$error":"#REF!"}}]
[]
["Empleado:",null,{"$f":"C3203","v":{"$error":"#REF!"}},null,null,null,null,null,null,null,"Certificación No.",null,null,{"$f":"N3203","v":47},null,"Fecha:",null,{"$f":"R3203","v":"2014-08-31"}]
["Contrato:",null,{"$f":"C3204","v":{"$error":"#REF!"}},null,null,"Puesto Funcional:",null,null,{"$f":"I3204","v":{"$error":"#REF!"}},null,null,null,"Titulo Jornal:",null,null,{"$f":"P3204","v":{"$error":"#REF!"}}]
["Cuenta / Banco:",null,null,{"$f":"D3205","v":{"$error":"#REF!"}},null,"Banco de Desarrollo Rural, S.A.",null,null,null,null,"Jornal Diario:",null,null,{"$f":"N3205","v":{"$error":"#REF!"}},null,"Días Trabajados:",null,null,{"$f":"S3205","v":{"$error":"#REF!"}}]
[]
[null,null,null,null,null,null,null,null,null,null,null,null,"Ingresos",null,null,null,"Deducciones "]
[]
[null,"031","DEVENGADO",null,null,null,null,null,null,null,null,null,{"$f":"M3209","v":{"$error":"#REF!"}}]
[null,"033","BONO ACUERDO GUBERNATIVO 66-2000",null,null,null,null,null,null,null,null,null,{"$f":"M3210","v":{"$error":"#REF!"}}]
[null,"201","I.G.S.S",null,null,null,null,null,null,null,null,null,null,null,null,null,{"$f":"Q3211","v":{"$error":"#REF!"}}]
[null,"118","MONTEPÍO",null,null,null,null,null,null,null,null,null,null,null,null,null,{"$f":"Q3212","v":0}]
[null,"211","RETENCIONES JUDICIALES",null,null,null,null,null,null,null,null,null,null,null,null,null,{"$f":"Q3213","v":{"$error":"#REF!"}}]
[null,null,null,null,null,null,null,null,null,null,"Total  :",null,{"$f":"SUM(M3248:O3252)","v":{"$error":"#REF!"}},null,null,null,{"$f":"SUM(Q3250:S3252)","v":{"$error":"#REF!"}}]
[null,null,null,null,null,null,null,null,null,null,"Liquido :",null,{"$f":"M3253-Q3253","v":{"$error":"#REF!"}}]
[]
[]
[]
[]
[]
[]
[]
[]
[{"$f":"A3224","v":"María José Ceballos López"},null,null,null,null,null,null,null,null,null,null,null,{"$f":"C3242","v":{"$error":"#REF!"}}]
[{"$f":"A3225","v":"Encargada de Nómina"},null,null,null,null,null,null,null,null,null,null,null,{"$f":"P3243","v":{"$error":"#REF!"}}]
[{"$f":"A3226","v":"AMSA "},null,null,null,null,null,null,null,null,null,null,null,"AMSA"]
[]
["GOBIERNO DE LA REPÚBLICA DE GUATEMALA"]
["AUTORIDAD PARA EL MANEJO SUSTENTABLE DE LA CUENCA Y DEL LAGO DE AMATITLÁN"]
[]
[]
[{"$f":"A3200","v":"Boleta de Liquidación Mensual Renglón 031 \"Jornales\"   Correspondiente al mes de octubre 2015"}]
[{"$f":"A3201","v":{"$error":"#REF!"}}]
[]
["Empleado:",null,{"$f":"#REF!","v":{"$error":"#REF!"}},null,null,null,null,null,null,null,"Certificación No.",null,null,{"$f":"N3203+1","v":48},null,"Fecha:",null,{"$f":"R2209","v":"2014-08-31"}]
["Contrato:",null,{"$f":"#REF!","v":{"$error":"#REF!"}},null,null,"Puesto Funcional:",null,null,{"$f":"#REF!","v":{"$error":"#REF!"}},null,null,null,"Titulo Jornal:",null,null,{"$f":"#REF!","v":{"$error":"#REF!"}}]
["Cuenta / Banco:",null,null,{"$f":"#REF!","v":{"$error":"#REF!"}},null,"Banco de Desarrollo Rural, S.A.",null,null,null,null,"Jornal Diario:",null,null,{"$f":"#REF!","v":{"$error":"#REF!"}},null,"Días Trabajados:",null,null,{"$f":"#REF!","v":{"$error":"#REF!"}}]
[]
[null,null,null,null,null,null,null,null,null,null,null,null,"Ingresos",null,null,null,"Deducciones "]
[]
[null,"031","DEVENGADO",null,null,null,null,null,null,null,null,null,{"$f":"#REF!","v":{"$error":"#REF!"}}]
[null,"033","BONO ACUERDO GUBERNATIVO 66-2000",null,null,null,null,null,null,null,null,null,{"$f":"#REF!","v":{"$error":"#REF!"}}]
[null,"201","I.G.S.S",null,null,null,null,null,null,null,null,null,null,null,null,null,{"$f":"#REF!","v":{"$error":"#REF!"}}]
[null,"120","DECRETO 81-70",null,null,null,null,null,null,null,null,null,null,null,null,null,0]
[null,"118","MONTEPÍO",null,null,null,null,null,null,null,null,null,null,null,null,null,0]
[null,"211","RETENCIONES JUDICIALES",null,null,null,null,null,null,null,null,null,null,null,null,null,{"$f":"#REF!","v":{"$error":"#REF!"}}]
[null,null,null,null,null,null,null,null,null,null,"Total  :",null,{"$f":"SUM(M3280:O3285)","v":{"$error":"#REF!"}},null,null,null,{"$f":"SUM(Q3282:S3285)","v":{"$error":"#REF!"}}]
[null,null,null,null,null,null,null,null,null,null,"Liquido :",null,{"$f":"M3286-Q3286","v":{"$error":"#REF!"}}]
[]
[]
[]
[]
[]
[]
[]
["María José Ceballos López",null,null,null,null,null,null,null,null,null,null,null,{"$f":"C3274","v":{"$error":"#REF!"}}]
["Encargada de Nómina",null,null,null,null,null,null,null,null,null,null,null,{"$f":"P3275","v":{"$error":"#REF!"}}]
["AMSA ",null,null,null,null,null,null,null,null,null,null,null,"AMSA"]
[]
[]
[]
[]
[]
[]
[]
[]
["GOBIERNO DE LA REPÚBLICA DE GUATEMALA"]
["AUTORIDAD PARA EL MANEJO SUSTENTABLE DE LA CUENCA Y DEL LAGO DE AMATITLÁN"]
[]
[]
[{"$f":"A3271","v":"Boleta de Liquidación Mensual Renglón 031 \"Jornales\"   Correspondiente al mes de octubre 2015"}]
[{"$f":"A3272","v":{"$error":"#REF!"}}]
[]
["Empleado:",null,{"$f":"C3274","v":{"$error":"#REF!"}},null,null,null,null,null,null,null,"Certificación No.",null,null,{"$f":"N3274","v":48},null,"Fecha:",null,{"$f":"R3274","v":"2014-08-31"}]
["Contrato:",null,{"$f":"C3275","v":{"$error":"#REF!"}},null,null,"Puesto Funcional:",null,null,{"$f":"I3275","v":{"$error":"#REF!"}},null,null,null,"Titulo Jornal:",null,null,{"$f":"P3275","v":{"$error":"#REF!"}}]
["Cuenta / Banco:",null,null,{"$f":"D3276","v":{"$error":"#REF!"}},null,"Banco de Desarrollo Rural, S.A.",null,null,null,null,"Jornal Diario:",null,null,{"$f":"N3276","v":{"$error":"#REF!"}},null,"Días Trabajados:",null,null,{"$f":"S3276","v":{"$error":"#REF!"}}]
[]
[null,null,null,null,null,null,null,null,null,null,null,null,"Ingresos",null,null,null,"Deducciones "]
[]
[null,"031","DEVENGADO",null,null,null,null,null,null,null,null,null,{"$f":"M3280","v":{"$error":"#REF!"}}]
[null,"033","BONO ACUERDO GUBERNATIVO 66-2000",null,null,null,null,null,null,null,null,null,{"$f":"M3281","v":{"$error":"#REF!"}}]
[null,"201","I.G.S.S",null,null,null,null,null,null,null,null,null,null,null,null,null,{"$f":"Q3282","v":{"$error":"#REF!"}}]
[null,"120","DECRETO 81-70",null,null,null,null,null,null,null,null,null,null,null,null,null,{"$f":"Q3283","v":0}]
[null,"118","MONTEPÍO",null,null,null,null,null,null,null,null,null,null,null,null,null,{"$f":"Q3284","v":0}]
[null,"211","RETENCIONES JUDICIALES",null,null,null,null,null,null,null,null,null,null,null,null,null,{"$f":"Q3285","v":{"$error":"#REF!"}}]
[null,null,null,null,null,null,null,null,null,null,"Total  :",null,{"$f":"SUM(M3319:O3324)","v":{"$error":"#REF!"}},null,null,null,{"$f":"SUM(Q3321:S3324)","v":{"$error":"#REF!"}}]
[null,null,null,null,null,null,null,null,null,null,"Liquido :",null,{"$f":"M3325-Q3325","v":{"$error":"#REF!"}}]
[]
[]
[]
[]
[]
[]
[]
[{"$f":"A3295","v":"María José Ceballos López"},null,null,null,null,null,null,null,null,null,null,null,{"$f":"C3313","v":{"$error":"#REF!"}}]
[{"$f":"A3296","v":"Encargada de Nómina"},null,null,null,null,null,null,null,null,null,null,null,{"$f":"P3314","v":{"$error":"#REF!"}}]
[{"$f":"A3297","v":"AMSA "},null,null,null,null,null,null,null,null,null,null,null,"AMSA"]
[]
["GOBIERNO DE LA REPÚBLICA DE GUATEMALA"]
["AUTORIDAD PARA EL MANEJO SUSTENTABLE DE LA CUENCA Y DEL LAGO DE AMATITLÁN"]
[]
[]
[{"$f":"A3271","v":"Boleta de Liquidación Mensual Renglón 031 \"Jornales\"   Correspondiente al mes de octubre 2015"}]
[{"$f":"A3272","v":{"$error":"#REF!"}}]
[]
["Empleado:",null,{"$f":"#REF!","v":{"$error":"#REF!"}},null,null,null,null,null,null,null,"Certificación No.",null,null,{"$f":"N3274+1","v":49},null,"Fecha:",null,{"$f":"R2280","v":"2014-09-30"}]
["Contrato:",null,{"$f":"#REF!","v":{"$error":"#REF!"}},null,null,"Puesto Funcional:",null,null,{"$f":"#REF!","v":{"$error":"#REF!"}},null,null,null,"Titulo Jornal:",null,null,{"$f":"#REF!","v":{"$error":"#REF!"}}]
["Cuenta / Banco:",null,null,{"$f":"#REF!","v":{"$error":"#REF!"}},null,"Banco de Desarrollo Rural, S.A.",null,null,null,null,"Jornal Diario:",null,null,{"$f":"#REF!","v":{"$error":"#REF!"}},null,"Días Trabajados:",null,null,{"$f":"#REF!","v":{"$error":"#REF!"}}]
[]
[null,null,null,null,null,null,null,null,null,null,null,null,"Ingresos",null,null,null,"Deducciones "]
[]
[null,"031","DEVENGADO",null,null,null,null,null,null,null,null,null,{"$f":"#REF!","v":{"$error":"#REF!"}}]
[null,"033","BONO ACUERDO GUBERNATIVO 66-2000",null,null,null,null,null,null,null,null,null,{"$f":"#REF!","v":{"$error":"#REF!"}}]
[null,"201","I.G.S.S",null,null,null,null,null,null,null,null,null,null,null,null,null,{"$f":"#REF!","v":{"$error":"#REF!"}}]
[null,"118","MONTEPÍO",null,null,null,null,null,null,null,null,null,null,null,null,null,0]
[null,"211","RETENCIONES JUDICIALES",null,null,null,null,null,null,null,null,null,null,null,null,null,{"$f":"#REF!","v":{"$error":"#REF!"}}]
[null,null,null,null,null,null,null,null,null,null,"Total  :",null,{"$f":"SUM(M3351:O3355)","v":{"$error":"#REF!"}},null,null,null,{"$f":"SUM(Q3353:S3355)","v":{"$error":"#REF!"}}]
[null,null,null,null,null,null,null,null,null,null,"Liquido :",null,{"$f":"M3356-Q3356","v":{"$error":"#REF!"}}]
[]
[]
[]
[]
[]
[]
[]
[]
["María José Ceballos López",null,null,null,null,null,null,null,null,null,null,null,{"$f":"C3345","v":{"$error":"#REF!"}}]
["Encargada de Nómina",null,null,null,null,null,null,null,null,null,null,null,{"$f":"P3346","v":{"$error":"#REF!"}}]
["AMSA ",null,null,null,null,null,null,null,null,null,null,null,"AMSA"]
[]
[]
[]
[]
[]
[]
[]
[]
["GOBIERNO DE LA REPÚBLICA DE GUATEMALA"]
["AUTORIDAD PARA EL MANEJO SUSTENTABLE DE LA CUENCA Y DEL LAGO DE AMATITLÁN"]
[]
[]
[{"$f":"A3342","v":"Boleta de Liquidación Mensual Renglón 031 \"Jornales\"   Correspondiente al mes de octubre 2015"}]
[{"$f":"A3343","v":{"$error":"#REF!"}}]
[]
["Empleado:",null,{"$f":"C3345","v":{"$error":"#REF!"}},null,null,null,null,null,null,null,"Certificación No.",null,null,{"$f":"N3345","v":49},null,"Fecha:",null,{"$f":"R3345","v":"2014-09-30"}]
["Contrato:",null,{"$f":"C3346","v":{"$error":"#REF!"}},null,null,"Puesto Funcional:",null,null,{"$f":"I3346","v":{"$error":"#REF!"}},null,null,null,"Titulo Jornal:",null,null,{"$f":"P3346","v":{"$error":"#REF!"}}]
["Cuenta / Banco:",null,null,{"$f":"D3347","v":{"$error":"#REF!"}},null,"Banco de Desarrollo Rural, S.A.",null,null,null,null,"Jornal Diario:",null,null,{"$f":"N3347","v":{"$error":"#REF!"}},null,"Días Trabajados:",null,null,{"$f":"S3347","v":{"$error":"#REF!"}}]
[]
[null,null,null,null,null,null,null,null,null,null,null,null,"Ingresos",null,null,null,"Deducciones "]
[]
[null,"031","DEVENGADO",null,null,null,null,null,null,null,null,null,{"$f":"M3351","v":{"$error":"#REF!"}}]
[null,"033","BONO ACUERDO GUBERNATIVO 66-2000",null,null,null,null,null,null,null,null,null,{"$f":"M3352","v":{"$error":"#REF!"}}]
[null,"201","I.G.S.S",null,null,null,null,null,null,null,null,null,null,null,null,null,{"$f":"Q3353","v":{"$error":"#REF!"}}]
[null,"118","MONTEPÍO",null,null,null,null,null,null,null,null,null,null,null,null,null,{"$f":"Q3354","v":0}]
[null,"211","RETENCIONES JUDICIALES",null,null,null,null,null,null,null,null,null,null,null,null,null,{"$f":"Q3355","v":{"$error":"#REF!"}}]
[null,null,null,null,null,null,null,null,null,null,"Total  :",null,{"$f":"SUM(M3390:O3394)","v":{"$error":"#REF!"}},null,null,null,{"$f":"SUM(Q3392:S3394)","v":{"$error":"#REF!"}}]
[null,null,null,null,null,null,null,null,null,null,"Liquido :",null,{"$f":"M3395-Q3395","v":{"$error":"#REF!"}}]
[]
[]
[]
[]
[]
[]
[]
[]
[{"$f":"A3366","v":"María José Ceballos López"},null,null,null,null,null,null,null,null,null,null,null,{"$f":"C3384","v":{"$error":"#REF!"}}]
[{"$f":"A3367","v":"Encargada de Nómina"},null,null,null,null,null,null,null,null,null,null,null,{"$f":"P3385","v":{"$error":"#REF!"}}]
[{"$f":"A3368","v":"AMSA "},null,null,null,null,null,null,null,null,null,null,null,"AMSA"]
[]
["GOBIERNO DE LA REPÚBLICA DE GUATEMALA"]
["AUTORIDAD PARA EL MANEJO SUSTENTABLE DE LA CUENCA Y DEL LAGO DE AMATITLÁN"]
[]
[]
[{"$f":"A3342","v":"Boleta de Liquidación Mensual Renglón 031 \"Jornales\"   Correspondiente al mes de octubre 2015"}]
[{"$f":"A3343","v":{"$error":"#REF!"}}]
[]
["Empleado:",null,{"$f":"#REF!","v":{"$error":"#REF!"}},null,null,null,null,null,null,null,"Certificación No.",null,null,{"$f":"N3345+1","v":50},null,"Fecha:",null,{"$f":"R2351","v":"2014-08-31"}]
["Contrato:",null,{"$f":"#REF!","v":{"$error":"#REF!"}},null,null,"Puesto Funcional:",null,null,{"$f":"#REF!","v":{"$error":"#REF!"}},null,null,null,"Titulo Jornal:",null,null,{"$f":"#REF!","v":{"$error":"#REF!"}}]
["Cuenta / Banco:",null,null,{"$f":"#REF!","v":{"$error":"#REF!"}},null,"Banco de Desarrollo Rural, S.A.",null,null,null,null,"Jornal Diario:",null,null,{"$f":"#REF!","v":{"$error":"#REF!"}},null,"Días Trabajados:",null,null,{"$f":"#REF!","v":{"$error":"#REF!"}}]
[]
[null,null,null,null,null,null,null,null,null,null,null,null,"Ingresos",null,null,null,"Deducciones "]
[]
[null,"031","DEVENGADO",null,null,null,null,null,null,null,null,null,{"$f":"#REF!","v":{"$error":"#REF!"}}]
[null,"033","BONO ACUERDO GUBERNATIVO 66-2000",null,null,null,null,null,null,null,null,null,{"$f":"#REF!","v":{"$error":"#REF!"}}]
[null,"201","I.G.S.S",null,null,null,null,null,null,null,null,null,null,null,null,null,{"$f":"#REF!","v":{"$error":"#REF!"}}]
[null,"118","MONTEPÍO",null,null,null,null,null,null,null,null,null,null,null,null,null,0]
[null,"211","RETENCIONES JUDICIALES",null,null,null,null,null,null,null,null,null,null,null,null,null,{"$f":"#REF!","v":{"$error":"#REF!"}}]
[null,null,null,null,null,null,null,null,null,null,"Total  :",null,{"$f":"SUM(M3422:O3426)","v":{"$error":"#REF!"}},null,null,null,{"$f":"SUM(Q3424:S3426)","v":{"$error":"#REF!"}}]
[null,null,null,null,null,null,null,null,null,null,"Liquido :",null,{"$f":"M3427-Q3427","v":{"$error":"#REF!"}}]
[]
[]
[]
[]
[]
[]
[]
[]
["María José Ceballos López",null,null,null,null,null,null,null,null,null,null,null,{"$f":"C3416","v":{"$error":"#REF!"}}]
["Encargada de Nómina",null,null,null,null,null,null,null,null,null,null,null,{"$f":"P3417","v":{"$error":"#REF!"}}]
["AMSA ",null,null,null,null,null,null,null,null,null,null,null,"AMSA"]
[]
[]
[]
[]
[]
[]
[]
[]
["GOBIERNO DE LA REPÚBLICA DE GUATEMALA"]
["AUTORIDAD PARA EL MANEJO SUSTENTABLE DE LA CUENCA Y DEL LAGO DE AMATITLÁN"]
[]
[]
[{"$f":"A3413","v":"Boleta de Liquidación Mensual Renglón 031 \"Jornales\"   Correspondiente al mes de octubre 2015"}]
[{"$f":"A3414","v":{"$error":"#REF!"}}]
[]
["Empleado:",null,{"$f":"C3416","v":{"$error":"#REF!"}},null,null,null,null,null,null,null,"Certificación No.",null,null,{"$f":"N3416","v":50},null,"Fecha:",null,{"$f":"R3416","v":"2014-08-31"}]
["Contrato:",null,{"$f":"C3417","v":{"$error":"#REF!"}},null,null,"Puesto Funcional:",null,null,{"$f":"I3417","v":{"$error":"#REF!"}},null,null,null,"Titulo Jornal:",null,null,{"$f":"P3417","v":{"$error":"#REF!"}}]
["Cuenta / Banco:",null,null,{"$f":"D3418","v":{"$error":"#REF!"}},null,"Banco de Desarrollo Rural, S.A.",null,null,null,null,"Jornal Diario:",null,null,{"$f":"N3418","v":{"$error":"#REF!"}},null,"Días Trabajados:",null,null,{"$f":"S3418","v":{"$error":"#REF!"}}]
[]
[null,null,null,null,null,null,null,null,null,null,null,null,"Ingresos",null,null,null,"Deducciones "]
[]
[null,"031","DEVENGADO",null,null,null,null,null,null,null,null,null,{"$f":"M3422","v":{"$error":"#REF!"}}]
[null,"033","BONO ACUERDO GUBERNATIVO 66-2000",null,null,null,null,null,null,null,null,null,{"$f":"M3423","v":{"$error":"#REF!"}}]
[null,"201","I.G.S.S",null,null,null,null,null,null,null,null,null,null,null,null,null,{"$f":"Q3424","v":{"$error":"#REF!"}}]
[null,"118","MONTEPÍO",null,null,null,null,null,null,null,null,null,null,null,null,null,{"$f":"Q3425","v":0}]
[null,"211","RETENCIONES JUDICIALES",null,null,null,null,null,null,null,null,null,null,null,null,null,{"$f":"Q3426","v":{"$error":"#REF!"}}]
[null,null,null,null,null,null,null,null,null,null,"Total  :",null,{"$f":"SUM(M3461:O3465)","v":{"$error":"#REF!"}},null,null,null,{"$f":"SUM(Q3463:S3465)","v":{"$error":"#REF!"}}]
[null,null,null,null,null,null,null,null,null,null,"Liquido :",null,{"$f":"M3466-Q3466","v":{"$error":"#REF!"}}]
[]
[]
[]
[]
[]
[]
[]
[]
[{"$f":"A3437","v":"María José Ceballos López"},null,null,null,null,null,null,null,null,null,null,null,{"$f":"C3455","v":{"$error":"#REF!"}}]
[{"$f":"A3438","v":"Encargada de Nómina"},null,null,null,null,null,null,null,null,null,null,null,{"$f":"P3456","v":{"$error":"#REF!"}}]
[{"$f":"A3439","v":"AMSA "},null,null,null,null,null,null,null,null,null,null,null,"AMSA"]
[]
["GOBIERNO DE LA REPÚBLICA DE GUATEMALA"]
["AUTORIDAD PARA EL MANEJO SUSTENTABLE DE LA CUENCA Y DEL LAGO DE AMATITLÁN"]
[]
[]
[{"$f":"A3413","v":"Boleta de Liquidación Mensual Renglón 031 \"Jornales\"   Correspondiente al mes de octubre 2015"}]
[{"$f":"A3414","v":{"$error":"#REF!"}}]
[]
["Empleado:",null,{"$f":"#REF!","v":{"$error":"#REF!"}},null,null,null,null,null,null,null,"Certificación No.",null,null,{"$f":"N3416+1","v":51},null,"Fecha:",null,{"$f":"R2422","v":"2015-08-31"}]
["Contrato:",null,{"$f":"#REF!","v":{"$error":"#REF!"}},null,null,"Puesto Funcional:",null,null,{"$f":"#REF!","v":{"$error":"#REF!"}},null,null,null,"Titulo Jornal:",null,null,{"$f":"#REF!","v":{"$error":"#REF!"}}]
["Cuenta / Banco:",null,null,{"$f":"#REF!","v":{"$error":"#REF!"}},null,"Banco de Desarrollo Rural, S.A.",null,null,null,null,"Jornal Diario:",null,null,{"$f":"#REF!","v":{"$error":"#REF!"}},null,"Días Trabajados:",null,null,{"$f":"#REF!","v":{"$error":"#REF!"}}]
[]
[null,null,null,null,null,null,null,null,null,null,null,null,"Ingresos",null,null,null,"Deducciones "]
[]
[null,"031","DEVENGADO",null,null,null,null,null,null,null,null,null,{"$f":"#REF!","v":{"$error":"#REF!"}}]
[null,"033","BONO ACUERDO GUBERNATIVO 66-2000",null,null,null,null,null,null,null,null,null,{"$f":"#REF!","v":{"$error":"#REF!"}}]
[null,"201","I.G.S.S",null,null,null,null,null,null,null,null,null,null,null,null,null,{"$f":"#REF!","v":{"$error":"#REF!"}}]
[null,"118","MONTEPÍO",null,null,null,null,null,null,null,null,null,null,null,null,null,0]
[null,"211","RETENCIONES JUDICIALES",null,null,null,null,null,null,null,null,null,null,null,null,null,{"$f":"#REF!","v":{"$error":"#REF!"}}]
[null,null,null,null,null,null,null,null,null,null,"Total  :",null,{"$f":"SUM(M3493:O3497)","v":{"$error":"#REF!"}},null,null,null,{"$f":"SUM(Q3495:S3497)","v":{"$error":"#REF!"}}]
[null,null,null,null,null,null,null,null,null,null,"Liquido :",null,{"$f":"M3498-Q3498","v":{"$error":"#REF!"}}]
[]
[]
[]
[]
[]
[]
[]
[]
["María José Ceballos López",null,null,null,null,null,null,null,null,null,null,null,{"$f":"C3487","v":{"$error":"#REF!"}}]
["Encargada de Nómina",null,null,null,null,null,null,null,null,null,null,null,{"$f":"P3488","v":{"$error":"#REF!"}}]
["AMSA ",null,null,null,null,null,null,null,null,null,null,null,"AMSA"]
[]
[]
[]
[]
[]
[]
[]
[]
["GOBIERNO DE LA REPÚBLICA DE GUATEMALA"]
["AUTORIDAD PARA EL MANEJO SUSTENTABLE DE LA CUENCA Y DEL LAGO DE AMATITLÁN"]
[]
[]
[{"$f":"A3484","v":"Boleta de Liquidación Mensual Renglón 031 \"Jornales\"   Correspondiente al mes de octubre 2015"}]
[{"$f":"A3485","v":{"$error":"#REF!"}}]
[]
["Empleado:",null,{"$f":"C3487","v":{"$error":"#REF!"}},null,null,null,null,null,null,null,"Certificación No.",null,null,{"$f":"N3487","v":51},null,"Fecha:",null,{"$f":"R3487","v":"2015-08-31"}]
["Contrato:",null,{"$f":"C3488","v":{"$error":"#REF!"}},null,null,"Puesto Funcional:",null,null,{"$f":"I3488","v":{"$error":"#REF!"}},null,null,null,"Titulo Jornal:",null,null,{"$f":"P3488","v":{"$error":"#REF!"}}]
["Cuenta / Banco:",null,null,{"$f":"D3489","v":{"$error":"#REF!"}},null,"Banco de Desarrollo Rural, S.A.",null,null,null,null,"Jornal Diario:",null,null,{"$f":"N3489","v":{"$error":"#REF!"}},null,"Días Trabajados:",null,null,{"$f":"S3489","v":{"$error":"#REF!"}}]
[]
[null,null,null,null,null,null,null,null,null,null,null,null,"Ingresos",null,null,null,"Deducciones "]
[]
[null,"031","DEVENGADO",null,null,null,null,null,null,null,null,null,{"$f":"M3493","v":{"$error":"#REF!"}}]
[null,"033","BONO ACUERDO GUBERNATIVO 66-2000",null,null,null,null,null,null,null,null,null,{"$f":"M3494","v":{"$error":"#REF!"}}]
[null,"201","I.G.S.S",null,null,null,null,null,null,null,null,null,null,null,null,null,{"$f":"Q3495","v":{"$error":"#REF!"}}]
[null,"118","MONTEPÍO",null,null,null,null,null,null,null,null,null,null,null,null,null,{"$f":"Q3496","v":0}]
[null,"211","RETENCIONES JUDICIALES",null,null,null,null,null,null,null,null,null,null,null,null,null,{"$f":"Q3497","v":{"$error":"#REF!"}}]
[null,null,null,null,null,null,null,null,null,null,"Total  :",null,{"$f":"SUM(M3532:O3536)","v":{"$error":"#REF!"}},null,null,null,{"$f":"SUM(Q3534:S3536)","v":{"$error":"#REF!"}}]
[null,null,null,null,null,null,null,null,null,null,"Liquido :",null,{"$f":"M3537-Q3537","v":{"$error":"#REF!"}}]
[]
[]
[]
[]
[]
[]
[]
[]
[{"$f":"A3508","v":"María José Ceballos López"},null,null,null,null,null,null,null,null,null,null,null,{"$f":"C3526","v":{"$error":"#REF!"}}]
[{"$f":"A3509","v":"Encargada de Nómina"},null,null,null,null,null,null,null,null,null,null,null,{"$f":"P3527","v":{"$error":"#REF!"}}]
[{"$f":"A3510","v":"AMSA "},null,null,null,null,null,null,null,null,null,null,null,"AMSA"]
[]
["GOBIERNO DE LA REPÚBLICA DE GUATEMALA"]
["AUTORIDAD PARA EL MANEJO SUSTENTABLE DE LA CUENCA Y DEL LAGO DE AMATITLÁN"]
[]
[]
[{"$f":"A3484","v":"Boleta de Liquidación Mensual Renglón 031 \"Jornales\"   Correspondiente al mes de octubre 2015"}]
[{"$f":"A3485","v":{"$error":"#REF!"}}]
[]
["Empleado:",null,{"$f":"#REF!","v":{"$error":"#REF!"}},null,null,null,null,null,null,null,"Certificación No.",null,null,{"$f":"N3487+1","v":52},null,"Fecha:",null,{"$f":"R2493","v":"2014-08-31"}]
["Contrato:",null,{"$f":"#REF!","v":{"$error":"#REF!"}},null,null,"Puesto Funcional:",null,null,{"$f":"#REF!","v":{"$error":"#REF!"}},null,null,null,"Titulo Jornal:",null,null,{"$f":"#REF!","v":{"$error":"#REF!"}}]
["Cuenta / Banco:",null,null,{"$f":"#REF!","v":{"$error":"#REF!"}},null,"Banco de Desarrollo Rural, S.A.",null,null,null,null,"Jornal Diario:",null,null,{"$f":"#REF!","v":{"$error":"#REF!"}},null,"Días Trabajados:",null,null,{"$f":"#REF!","v":{"$error":"#REF!"}}]
[]
[null,null,null,null,null,null,null,null,null,null,null,null,"Ingresos",null,null,null,"Deducciones "]
[]
[null,"031","DEVENGADO",null,null,null,null,null,null,null,null,null,{"$f":"#REF!","v":{"$error":"#REF!"}}]
[null,"033","BONO ACUERDO GUBERNATIVO 66-2000",null,null,null,null,null,null,null,null,null,{"$f":"#REF!","v":{"$error":"#REF!"}}]
[null,"201","I.G.S.S",null,null,null,null,null,null,null,null,null,null,null,null,null,{"$f":"#REF!","v":{"$error":"#REF!"}}]
[null,"118","MONTEPÍO",null,null,null,null,null,null,null,null,null,null,null,null,null,0]
[null,"211","RETENCIONES JUDICIALES",null,null,null,null,null,null,null,null,null,null,null,null,null,{"$f":"#REF!","v":{"$error":"#REF!"}}]
[null,null,null,null,null,null,null,null,null,null,"Total  :",null,{"$f":"SUM(M3564:O3568)","v":{"$error":"#REF!"}},null,null,null,{"$f":"SUM(Q3566:S3568)","v":{"$error":"#REF!"}}]
[null,null,null,null,null,null,null,null,null,null,"Liquido :",null,{"$f":"M3569-Q3569","v":{"$error":"#REF!"}}]
[]
[]
[]
[]
[]
[]
[]
[]
["María José Ceballos López",null,null,null,null,null,null,null,null,null,null,null,{"$f":"C3558","v":{"$error":"#REF!"}}]
["Encargada de Nómina",null,null,null,null,null,null,null,null,null,null,null,{"$f":"P3559","v":{"$error":"#REF!"}}]
["AMSA ",null,null,null,null,null,null,null,null,null,null,null,"AMSA"]
[]
[]
[]
[]
[]
[]
[]
[]
["GOBIERNO DE LA REPÚBLICA DE GUATEMALA"]
["AUTORIDAD PARA EL MANEJO SUSTENTABLE DE LA CUENCA Y DEL LAGO DE AMATITLÁN"]
[]
[]
[{"$f":"A3555","v":"Boleta de Liquidación Mensual Renglón 031 \"Jornales\"   Correspondiente al mes de octubre 2015"}]
[{"$f":"A3556","v":{"$error":"#REF!"}}]
[]
["Empleado:",null,{"$f":"C3558","v":{"$error":"#REF!"}},null,null,null,null,null,null,null,"Certificación No.",null,null,{"$f":"N3558","v":52},null,"Fecha:",null,{"$f":"R3558","v":"2014-08-31"}]
["Contrato:",null,{"$f":"C3559","v":{"$error":"#REF!"}},null,null,"Puesto Funcional:",null,null,{"$f":"I3559","v":{"$error":"#REF!"}},null,null,null,"Titulo Jornal:",null,null,{"$f":"P3559","v":{"$error":"#REF!"}}]
["Cuenta / Banco:",null,null,{"$f":"D3560","v":{"$error":"#REF!"}},null,"Banco de Desarrollo Rural, S.A.",null,null,null,null,"Jornal Diario:",null,null,{"$f":"N3560","v":{"$error":"#REF!"}},null,"Días Trabajados:",null,null,{"$f":"S3560","v":{"$error":"#REF!"}}]
[]
[null,null,null,null,null,null,null,null,null,null,null,null,"Ingresos",null,null,null,"Deducciones "]
[]
[null,"031","DEVENGADO",null,null,null,null,null,null,null,null,null,{"$f":"M3564","v":{"$error":"#REF!"}}]
[null,"033","BONO ACUERDO GUBERNATIVO 66-2000",null,null,null,null,null,null,null,null,null,{"$f":"M3565","v":{"$error":"#REF!"}}]
[null,"201","I.G.S.S",null,null,null,null,null,null,null,null,null,null,null,null,null,{"$f":"Q3566","v":{"$error":"#REF!"}}]
[null,"118","MONTEPÍO",null,null,null,null,null,null,null,null,null,null,null,null,null,{"$f":"Q3567","v":0}]
[null,"211","RETENCIONES JUDICIALES",null,null,null,null,null,null,null,null,null,null,null,null,null,{"$f":"Q3568","v":{"$error":"#REF!"}}]
[null,null,null,null,null,null,null,null,null,null,"Total  :",null,{"$f":"SUM(M3603:O3607)","v":{"$error":"#REF!"}},null,null,null,{"$f":"SUM(Q3605:S3607)","v":{"$error":"#REF!"}}]
[null,null,null,null,null,null,null,null,null,null,"Liquido :",null,{"$f":"M3608-Q3608","v":{"$error":"#REF!"}}]
[]
[]
[]
[]
[]
[]
[]
[]
[{"$f":"A3579","v":"María José Ceballos López"},null,null,null,null,null,null,null,null,null,null,null,{"$f":"C3597","v":{"$error":"#REF!"}}]
[{"$f":"A3580","v":"Encargada de Nómina"},null,null,null,null,null,null,null,null,null,null,null,{"$f":"P3598","v":{"$error":"#REF!"}}]
[{"$f":"A3581","v":"AMSA "},null,null,null,null,null,null,null,null,null,null,null,"AMSA"]
[]
["GOBIERNO DE LA REPÚBLICA DE GUATEMALA"]
["AUTORIDAD PARA EL MANEJO SUSTENTABLE DE LA CUENCA Y DEL LAGO DE AMATITLÁN"]
[]
[]
[{"$f":"A3555","v":"Boleta de Liquidación Mensual Renglón 031 \"Jornales\"   Correspondiente al mes de octubre 2015"}]
[{"$f":"A3556","v":{"$error":"#REF!"}}]
[]
["Empleado:",null,{"$f":"#REF!","v":{"$error":"#REF!"}},null,null,null,null,null,null,null,"Certificación No.",null,null,{"$f":"N3558+1","v":53},null,"Fecha:",null,{"$f":"R8","v":"2014-08-31"}]
["Contrato:",null,{"$f":"#REF!","v":{"$error":"#REF!"}},null,null,"Puesto Funcional:",null,null,{"$f":"#REF!","v":{"$error":"#REF!"}},null,null,null,"Titulo Jornal:",null,null,{"$f":"#REF!","v":{"$error":"#REF!"}}]
["Cuenta / Banco:",null,null,{"$f":"#REF!","v":{"$error":"#REF!"}},null,"Banco de Desarrollo Rural, S.A.",null,null,null,null,"Jornal Diario:",null,null,{"$f":"#REF!","v":{"$error":"#REF!"}},null,"Días Trabajados:",null,null,{"$f":"#REF!","v":{"$error":"#REF!"}}]
[]
[null,null,null,null,null,null,null,null,null,null,null,null,"Ingresos",null,null,null,"Deducciones "]
[]
[null,"031","DEVENGADO",null,null,null,null,null,null,null,null,null,{"$f":"#REF!","v":{"$error":"#REF!"}}]
[null,"033","BONO ACUERDO GUBERNATIVO 66-2000",null,null,null,null,null,null,null,null,null,{"$f":"#REF!","v":{"$error":"#REF!"}}]
[null,"201","I.G.S.S",null,null,null,null,null,null,null,null,null,null,null,null,null,{"$f":"#REF!","v":{"$error":"#REF!"}}]
[null,"118","MONTEPÍO",null,null,null,null,null,null,null,null,null,null,null,null,null,0]
[null,"211","RETENCIONES JUDICIALES",null,null,null,null,null,null,null,null,null,null,null,null,null,{"$f":"#REF!","v":{"$error":"#REF!"}}]
[null,null,null,null,null,null,null,null,null,null,"Total  :",null,{"$f":"SUM(M3635:O3639)","v":{"$error":"#REF!"}},null,null,null,{"$f":"SUM(Q3637:S3639)","v":{"$error":"#REF!"}}]
[null,null,null,null,null,null,null,null,null,null,"Liquido :",null,{"$f":"M3640-Q3640","v":{"$error":"#REF!"}}]
[]
[]
[]
[]
[]
[]
[]
[]
["María José Ceballos López",null,null,null,null,null,null,null,null,null,null,null,{"$f":"C3629","v":{"$error":"#REF!"}}]
["Encargada de Nómina",null,null,null,null,null,null,null,null,null,null,null,{"$f":"P3630","v":{"$error":"#REF!"}}]
["AMSA ",null,null,null,null,null,null,null,null,null,null,null,"AMSA"]
[]
[]
[]
[]
[]
[]
[]
[]
["GOBIERNO DE LA REPÚBLICA DE GUATEMALA"]
["AUTORIDAD PARA EL MANEJO SUSTENTABLE DE LA CUENCA Y DEL LAGO DE AMATITLÁN"]
[]
[]
[{"$f":"A3626","v":"Boleta de Liquidación Mensual Renglón 031 \"Jornales\"   Correspondiente al mes de octubre 2015"}]
[{"$f":"A3627","v":{"$error":"#REF!"}}]
[]
["Empleado:",null,{"$f":"C3629","v":{"$error":"#REF!"}},null,null,null,null,null,null,null,"Certificación No.",null,null,{"$f":"N3629","v":53},null,"Fecha:",null,{"$f":"R3629","v":"2014-08-31"}]
["Contrato:",null,{"$f":"C3630","v":{"$error":"#REF!"}},null,null,"Puesto Funcional:",null,null,{"$f":"I3630","v":{"$error":"#REF!"}},null,null,null,"Titulo Jornal:",null,null,{"$f":"P3630","v":{"$error":"#REF!"}}]
["Cuenta / Banco:",null,null,{"$f":"D3631","v":{"$error":"#REF!"}},null,"Banco de Desarrollo Rural, S.A.",null,null,null,null,"Jornal Diario:",null,null,{"$f":"N3631","v":{"$error":"#REF!"}},null,"Días Trabajados:",null,null,{"$f":"S3631","v":{"$error":"#REF!"}}]
[]
[null,null,null,null,null,null,null,null,null,null,null,null,"Ingresos",null,null,null,"Deducciones "]
[]
[null,"031","DEVENGADO",null,null,null,null,null,null,null,null,null,{"$f":"M3635","v":{"$error":"#REF!"}}]
[null,"033","BONO ACUERDO GUBERNATIVO 66-2000",null,null,null,null,null,null,null,null,null,{"$f":"M3636","v":{"$error":"#REF!"}}]
[null,"201","I.G.S.S",null,null,null,null,null,null,null,null,null,null,null,null,null,{"$f":"Q3637","v":{"$error":"#REF!"}}]
[null,"118","MONTEPÍO",null,null,null,null,null,null,null,null,null,null,null,null,null,{"$f":"Q3638","v":0}]
[null,"211","RETENCIONES JUDICIALES",null,null,null,null,null,null,null,null,null,null,null,null,null,{"$f":"Q3639","v":{"$error":"#REF!"}}]
[null,null,null,null,null,null,null,null,null,null,"Total  :",null,{"$f":"SUM(M3674:O3678)","v":{"$error":"#REF!"}},null,null,null,{"$f":"SUM(Q3676:S3678)","v":{"$error":"#REF!"}}]
[null,null,null,null,null,null,null,null,null,null,"Liquido :",null,{"$f":"M3679-Q3679","v":{"$error":"#REF!"}}]
[]
[]
[]
[]
[]
[]
[]
[]
[{"$f":"A3650","v":"María José Ceballos López"},null,null,null,null,null,null,null,null,null,null,null,{"$f":"C3668","v":{"$error":"#REF!"}}]
[{"$f":"A3651","v":"Encargada de Nómina"},null,null,null,null,null,null,null,null,null,null,null,{"$f":"P3669","v":{"$error":"#REF!"}}]
[{"$f":"A3652","v":"AMSA "},null,null,null,null,null,null,null,null,null,null,null,"AMSA"]